{"text_format":"1","workbook":"xlsx","n_sheets":14,"sheets":["資料一覧","【共通】","P1","P2-1","P2-2","P2-3","P3","（旧）P5-1","（旧）P5-2","P4","P5-1","P5-2","P5-3","P5-4"],"not_rendered":{"charts":0,"images":0,"macros":1,"external_links":7,"defined_names":838,"comments":0,"pivot_tables":0},"unopened":[],"bounds":{"document_bytes":16777216,"sheet_cells":100000,"rows_first":2000,"rows_last":500,"rows_between":2000,"halvings":0,"cell_chars":16384,"cell_head_chars":4096},"cells_cut":0,"cells_raw":0,"read":"whole","date_system":"1900"}

{"sheet":"資料一覧","index":0,"n_rows":68,"n_cols":3,"rows_kept":68,"cut":false,"hidden":false,"merged":[[39,1,39,2],[41,1,41,2],[55,1,55,2],[3,0,3,2],[25,0,25,2],[30,1,30,2],[0,1,1,1]]}
[null,"【居宅介護等事業所用】"]
[]
[1,"事前提出書類"]
[" ・ 特に指定のあるもの以外は、運営指導実施予定日の属する月の\n　　前々月末時点の状況を記入してください。"]
[null,null,"提出チェック"]
["（1）","事前提出資料（すべてこのエクセルファイルにあります）","事業者"]
[null,"【共通】基本情報　※事業所番号ごとに作成すること"]
[null,"P1　職員の配置状況"]
[null,"P2-1　職員の勤務状況（２）勤務実績　（直近3か月分の実績）"]
[null,"P2-2　職員の勤務状況（２）勤務実績　（直近3か月分の実績）"]
[null,"P2-3　職員の勤務状況（２）勤務実績　（直近3か月分の実績）"]
[null,"P3　サービス提供責任者配置数の根拠"]
[null,"P4　４　（一）体制要件 ア 研修の実施状況　※特定事業所加算Ⅰ/Ⅱ/Ⅲを算定している場合のみ"]
[null,"P5-1　利用者情報及び居宅介護等計画の作成状況（居宅介護）"]
[null,"P5-2　利用者情報及び居宅介護等計画の作成状況（重度訪問介護）"]
[null,"P5-3　利用者情報及び居宅介護等計画の作成状況（行動援護）"]
[null,"P5-4　利用者情報及び居宅介護等計画の作成状況（同行援護）"]
[null,"P6　苦情・事故の対応記録"]
[null,"P7　業務継続計画、衛生管理、身体拘束の禁止及び虐待の防止に関する取組状況"]
[null,"P8　主眼事項・着眼点自己点検"]
[null,"P9　障害福祉サービス事業者（障害者・児施設、事業者）業務管理体制に係る一般検査調書"]
["（2）","運営規程、サービス利用契約書、重要事項説明書、個人情報提供に係る同意書"]
["（3）","法人・事業所の組織図、施設案内（パンフレット等）"]
[]
[2,"当日準備書類等"]
[" ・ 次の書類はすべてのサービスに共通するものではありません。\n ・ 準備すべき書類の中で該当するものがない場合は、\n  　今回の指導のためだけに新たに作成する必要はありません。\n ・ 会場配置図を参考にご用意ください。（会場内に準備してください。）\n ・ 指導当日に追加資料の提示を求める場合があります。\n ・ 指導対象は、基本的に運営指導を行う前年度から指導日の当月までが原則となりますが、\n    さかのぼって資料を求める場合があります。"]
[null,null,"提出チェック"]
["（1）","指定基準に関する書類","事業者"]
["①","指定基準省令と解釈通知"]
["②","報酬告示と留意事項通知"]
["（2）","人員に関する書類"]
["①","職員勤務表"]
["②","出勤簿又はタイムカード"]
["③","専任、兼任の状況がわかる書類"]
["④","利用者数がわかる書類（当該年度の利用者数）"]
["⑤","職員履歴書及び資格、経験がわかる書類（資格証など）"]
["⑥","就業規則"]
["⑦","雇用契約書及び辞令がある場合は辞令書"]
["⑧","給与支払明細書"]
["（3）","設備に関する書類"]
["①","設備・備品台帳"]
["（4）","運営に関する書類"]
["①","定款、寄付行為等"]
["②","サービスの提供の記録(実績記録票、その他ケース記録など）"]
["③","利用契約に関する書類"]
["④","支給決定障害者・保護者に関する市町への通知に係る記録"]
["⑤","サービス等（障害児支援）利用計画書・児童発達支援計画書"]
["⑥","個別支援計画等原案の同意に関する記録"]
["⑦","受給者証写し"]
["⑧","利用申込み受付簿"]
["⑨","身体拘束等の記録（委員会の議事録及び研修の記録等）"]
["⑩","職員研修に関する記録"]
["⑪","苦情の内容等の記録"]
["⑫","事故の状況及び事故に際して採った処置についての記録"]
["⑬","虐待防止のための取組みがわかる記録・書類（委員会の議事録及び研修の記録等）"]
["（5）","自立支援給付費等及び利用者負担額に関する書類"]
["①","介護給付費・訓練等給付費等請求書"]
["②","介護給付費・訓練等給付費等明細書"]
["③","特例介護給付費・訓練等給付費等請求書"]
["④","特例介護給付費・訓練等給付費等明細書"]
["⑤","サービス実績記録票"]
["⑥","各種加算関係書類"]
["⑦","利用者負担額の請求書"]
["⑧","利用者負担額の領収書控"]
["⑨","法定代理受領の通知の写し"]
["⑩","サービス提供証明書"]
["⑪","金銭の支払を求める同意に関する記録"]
["⑫","支払を求める金銭の算定に関する積算の根拠"]

{"sheet":"【共通】","index":1,"n_rows":134,"n_cols":21,"rows_kept":134,"cut":false,"hidden":false,"merged":[[5,1,6,1],[5,2,5,3],[6,3,6,11],[0,10,0,12],[0,13,0,17],[2,1,2,17],[3,9,3,10],[4,2,4,6],[9,1,15,1],[9,2,9,4],[9,5,9,6],[9,7,15,7],[9,8,9,17],[15,2,15,4],[15,9,15,10],[12,2,12,4],[7,2,7,6],[8,2,8,6],[7,8,7,17],[8,9,8,10],[18,7,20,11],[16,2,16,6],[16,8,16,17],[10,2,10,4],[10,9,10,10],[11,2,11,4],[11,9,11,10],[12,9,12,10],[13,2,13,4],[13,9,13,10],[14,2,14,4],[14,9,14,10],[23,9,23,10],[33,0,46,17],[24,0,24,3],[24,4,24,7],[24,8,24,17],[25,0,30,3],[25,4,30,7],[25,8,30,17]]}
[null,null,null,null,null,null,null,null,null,null,"資料作成者"]
[]
[null,"指定障害福祉サービス事業者・障害者支援施設・一般相談・特定相談支援事業者指導資料"]
[null,null,null,null,null,null,null,null,null,"（令和",null,{"$f":"IF(L9=\"\",\"\",IF(N9=1,L9-1,L9))","v":8},"年",{"$f":"IF(N9=\"\",\"\",MONTH(EOMONTH(DATE(SUM(2018+L9),N9,P9),-1)))","v":6},"月",{"$f":"IF(N4=\"\",\"\",20)","v":20},"日現在）"]
[null,"事業所・施設名",null,null,null,null,null,"事業所番号",2,2]
[null,"事業所等所在地","〒     －",null,null,null,null,null,null,null,null,null,"TEL",null,"-",null,"-"]
[null,null,"浜松市",null,null,null,null,null,null,null,null,null,"FAX",null,"-",null,"-"]
[null,"法人名",null,null,null,null,null,"法人代表者"]
[null,"管理者",null,null,null,null,null,"運営指導年月日",null,"令和 ",null,8,"年",7,"月",1,"日"]
[null,"実施サービス種類\n（施設サービス含む）\nとその利用定員、\n利用者の数","サービス種類",null,null,"契約者の数",null,"左記サービスの\n当初指定年月日"]
[null,null,null,null,null,null,"人",null,null,null,null,null,"年",null,"月",1,"日",null,null,null,"平成 "]
[null,null,null,null,null,null,"人",null,null,null,null,null,"年",null,"月",1,"日",null,null,null,"令和 "]
[null,null,null,null,null,null,"人",null,null,null,null,null,"年",null,"月",1,"日"]
[null,null,null,null,null,null,"人",null,null,null,null,null,"年",null,"月",1,"日"]
[null,null,null,null,null,null,"人",null,null,null,null,null,"年",null,"月",1,"日"]
[null,null,null,null,null,null,"人",null,null,null,null,null,"年",null,"月",1,"日"]
[null,"併設事業所",null,null,null,null,null,"バックアップ\n施設等"]
[null,"※事業所番号ごとに作成すること。"]
[null,null,"部分のみ入力可能。",null,null,null,null,"※以降、全シート共通"]
[]
[null,null,"部分はプルダウンメニューから該当するものを選択すること。"]
[]
[]
["●前回指導結果通知に基づく指導事項（助言指導を含む。）の改善状況",null,null,null,null,null,null,null," （前回指導実施日","令和 ",null,null,"年",null,"月",null,"日）"]
["指導事項",null,null,null,"改善措置状況",null,null,null,"未改善の理由"]
[]
[]
[]
[]
[]
[]
[]
["●市への質疑事項"]
[]
[]
[]
[]
[]
[]
[]
[]
[]
[]
[]
[]
[]
[]
[]
[]
[]
[]
[]
[]
[]
[]
[]
[]
[]
[]
[]
[]
[]
[]
[]
[]
[]
[]
[]
[]
[]
[]
[]
[]
[]
[]
[]
[]
[]
[]
[]
[]
[]
[]
[]
[]
[]
[]
[]
[]
[]
[]
[]
[]
[]
[]
[]
[]
[]
[]
[]
[]
[]
[]
[]
[]
[]
[]
[]
[]
[]
[]
[null,null,"居宅介護"]
[null,null,"重度訪問介護"]
[null,null,"同行援護"]
[null,null,"行動援護"]
[null,null,"療養介護"]
[null,null,"生活介護"]
[null,null,"短期入所（空床型）"]
[null,null,"短期入所（併設型）"]
[null,null,"短期入所（単独型）"]
[null,null,"自立訓練（機能訓練）"]
[null,null,"自立訓練（生活訓練）"]
[null,null,"宿泊型自立訓練"]
[null,null,"就労移行支援"]
[null,null,"就労継続支援Ａ型"]
[null,null,"就労継続支援Ｂ型"]
[null,null,"就労定着支援"]
[null,null,"自立生活援助"]
[null,null,"共同生活援助"]
[null,null,"施設入所支援"]
[null,null,"施設入所支援（経過的）"]
[null,null,"地域相談支援（地域移行支援）"]
[null,null,"地域相談支援（地域定着支援）"]
[null,null,"計画相談支援"]

{"sheet":"P1","index":2,"n_rows":96,"n_cols":17,"rows_kept":96,"cut":false,"hidden":false,"merged":[]}
[null,"１　職員の配置状況（既存資料の添付可）",null,null,{"$f":"【共通】!J4&【共通】!L4&【共通】!M4&【共通】!N4&【共通】!O4&【共通】!P4&【共通】!Q4","v":"（令和8年6月20日現在）"},null,null,null,null,null,null,null,null,{"$f":"\" １ / \"&Q1","v":" １ / 1"},null,null,{"$f":"IF(C76<>\"\",4,IF(C53<>\"\",3,IF(C30<>\"\",2,1)))","v":1}]
[null,null,"職　　　　種","氏　　　　名","年齢","雇用\n形態","勤続年数","勤務形態","兼務先","資格","居宅\n介護","重度\n訪問","行動\n援護","同行\n援護",null,null,"常勤／専従"]
[null,"例","管理者兼サービス提供責任者","○○　○○",50,"正","5年以上\n10年未満","常勤／兼務","同事業所","介護福祉士、同行援護従事者養成研修（一般・応用）","サ","サ","×","サ",null,null,"常勤／兼務"]
[null,"例","サービス提供責任者","□□　□□",45,"正","10年以上","常勤／専従","-","実務者研修、ヘルパー２級","サ","サ","×","×",null,null,"非常勤／専従"]
[null,"例","ヘルパー","△△　△△",30,"登","1年以上\n3年未満","非常勤／兼務","他法人","居宅介護職員初任者研修、同行援護従事者養成研修（一般）","従","×","×","従",null,null,"非常勤／兼務"]
[null,1,null,null,null,null,null,null,null,null,null,null,null,null,null,null,"同事業所"]
[null,{"$f":"B6+1","v":2},null,null,null,null,null,null,null,null,null,null,null,null,null,null,"同法人\n他事業所"]
[null,{"$f":"B7+1","v":3},null,null,null,null,null,null,null,null,null,null,null,null,null,null,"他法人"]
[null,4,null,null,null,null,null,null,null,null,null,null,null,null,null,null,"-"]
[null,{"$f":"B9+1","v":5},null,null,null,null,null,null,null,null,null,null,null,null,null,null,"1年未満"]
[null,6,null,null,null,null,null,null,null,null,null,null,null,null,null,null,"1年以上\n3年未満"]
[null,7,null,null,null,null,null,null,null,null,null,null,null,null,null,null,"3年以上\n5年未満"]
[null,8,null,null,null,null,null,null,null,null,null,null,null,null,null,null,"5年以上"]
[null,9]
[null,10]
[null,11]
[null,12]
[null,13]
[null,14]
[null,15]
[null,"注","１　登録ヘルパーも含め、当該事業所の職員として勤務するすべての職員について記載すること。"]
[null,null,"２　雇用形態は、正規職員は「正」、非正規雇用職員は「非」、登録ヘルパーは「登」を選択すること。"]
[null,null,"３　勤務年数は、当該事業所における勤務年数を選択すること。"]
[null,null,"４　勤務形態は、「常勤／専従」、「常勤／兼務」、「非常勤／専従」、「非常勤／兼務」のいずれかを選択すること。"]
[null,null,"５　兼務先は、「同事業所内」、「同法人他事業所」、「他法人」から選択すること。"]
[null,null,"６　資格は、介護福祉士、実務者研修、看護師、各種修了した研修名等を記載すること。"]
[null,null,"７　K～Ｎ列は各サービスの従事状況を記入することとし、サービス提供責任者は「サ」、従業者は「従」、従事しない事業は「×」を選択すること。"]
[null,"１　職員の配置状況（既存資料の添付可）",null,null,{"$f":"$E$1","v":"（令和8年6月20日現在）"},null,null,null,null,null,null,null,null,{"$f":"\" 2 / \"&Q1","v":" 2 / 1"}]
[null,null,"職　　　　種","氏　　　　名","年齢","雇用\n形態","勤続年数","勤務形態","兼務先","資格","居宅\n介護","重度\n訪問","行動\n援護","同行\n援護"]
[null,{"$f":"B20+1","v":16}]
[null,{"$f":"B30+1","v":17}]
[null,{"$f":"B31+1","v":18}]
[null,19]
[null,20]
[null,21]
[null,22]
[null,23]
[null,24]
[null,25]
[null,26]
[null,27]
[null,28]
[null,29]
[null,30]
[null,31]
[null,32]
[null,33]
[null,34]
[null,35]
[null,36]
[null,"１　職員の配置状況（既存資料の添付可）",null,null,{"$f":"$E$1","v":"（令和8年6月20日現在）"},null,null,null,null,null,null,null,null,{"$f":"\" 3 / \"&Q1","v":" 3 / 1"}]
[null,null,"職　　　　種","氏　　　　名","年齢","雇用\n形態","勤続年数","勤務形態","兼務先","資格","居宅\n介護","重度\n訪問","行動\n援護","同行\n援護"]
[null,{"$f":"B50+1","v":37}]
[null,{"$f":"B53+1","v":38}]
[null,{"$f":"B54+1","v":39}]
[null,40]
[null,41]
[null,42]
[null,43]
[null,44]
[null,45]
[null,46]
[null,47]
[null,48]
[null,49]
[null,50]
[null,51]
[null,52]
[null,53]
[null,54]
[null,55]
[null,56]
[null,57]
[null,"１　職員の配置状況（既存資料の添付可）",null,null,{"$f":"$E$1","v":"（令和8年6月20日現在）"},null,null,null,null,null,null,null,null,{"$f":"\" 4 / \"&Q1","v":" 4 / 1"}]
[null,null,"職　　　　種","氏　　　　名","年齢","雇用\n形態","勤続年数","勤務形態","兼務先","資格","居宅\n介護","重度\n訪問","行動\n援護","同行\n援護"]
[null,{"$f":"B73+1","v":58}]
[null,{"$f":"B76+1","v":59}]
[null,{"$f":"B77+1","v":60}]
[null,61]
[null,62]
[null,63]
[null,64]
[null,65]
[null,66]
[null,67]
[null,68]
[null,69]
[null,70]
[null,71]
[null,72]
[null,73]
[null,74]
[null,75]
[null,76]
[null,77]
[null,78]

{"sheet":"P2-1","index":3,"n_rows":222,"n_cols":65,"rows_kept":222,"cut":false,"hidden":false,"merged":[[220,33,221,33],[220,34,221,34],[220,26,221,26],[220,27,221,27],[220,28,221,28],[220,17,221,17],[220,18,221,18],[220,19,221,19],[220,20,221,20],[220,21,221,21],[220,22,221,22],[218,44,219,44],[218,45,219,45],[218,46,219,46],[218,48,219,48],[218,49,219,49],[220,48,221,48],[220,49,221,49],[220,41,221,41],[220,42,221,42],[220,43,221,43],[220,44,221,44],[220,45,221,45],[220,46,221,46],[220,35,221,35],[220,36,221,36],[220,37,221,37],[220,38,221,38],[220,39,221,39],[220,40,221,40],[220,29,221,29],[220,30,221,30],[220,31,221,31],[220,32,221,32],[220,1,221,1],[220,2,221,7],[220,8,221,12],[220,13,221,15],[220,16,221,16],[218,38,219,38],[218,39,219,39],[218,40,219,40],[218,41,219,41],[218,42,219,42],[218,43,219,43],[218,32,219,32],[218,33,219,33],[218,34,219,34],[218,35,219,35],[218,36,219,36],[218,37,219,37],[218,26,219,26],[218,27,219,27],[218,28,219,28],[218,29,219,29],[218,30,219,30],[218,31,219,31],[218,20,219,20],[218,21,219,21],[218,22,219,22],[218,23,219,23],[218,24,219,24],[218,25,219,25],[220,23,221,23],[220,24,221,24],[220,25,221,25],[216,48,217,48],[216,49,217,49],[218,1,219,1],[218,2,219,7],[218,8,219,12],[218,13,219,15],[218,16,219,16],[218,17,219,17],[218,18,219,18],[218,19,219,19],[216,41,217,41],[216,42,217,42],[216,43,217,43],[216,44,217,44],[216,45,217,45],[216,46,217,46],[216,35,217,35],[216,36,217,36],[216,37,217,37],[216,38,217,38],[216,39,217,39],[216,40,217,40],[216,29,217,29],[216,30,217,30],[216,31,217,31],[216,32,217,32],[216,33,217,33],[216,34,217,34],[216,23,217,23],[216,24,217,24],[216,25,217,25],[216,26,217,26],[216,27,217,27],[216,28,217,28],[216,17,217,17],[216,18,217,18],[216,19,217,19],[216,20,217,20],[216,21,217,21],[216,22,217,22],[214,44,215,44],[214,45,215,45],[214,46,215,46],[214,48,215,48],[214,49,215,49],[216,1,217,1],[216,2,217,7],[216,8,217,12],[216,13,217,15],[216,16,217,16],[214,38,215,38],[214,39,215,39],[214,40,215,40],[214,41,215,41],[214,42,215,42],[214,43,215,43],[214,32,215,32],[214,33,215,33],[214,34,215,34],[214,35,215,35],[214,36,215,36],[214,37,215,37],[214,26,215,26],[214,27,215,27],[214,28,215,28],[214,29,215,29],[214,30,215,30],[214,31,215,31],[214,20,215,20],[214,21,215,21],[214,22,215,22],[214,23,215,23],[214,24,215,24],[214,25,215,25],[212,48,213,48],[212,49,213,49],[214,1,215,1],[214,2,215,7],[214,8,215,12],[214,13,215,15],[214,16,215,16],[214,17,215,17],[214,18,215,18],[214,19,215,19],[212,41,213,41],[212,42,213,42],[212,43,213,43],[212,44,213,44],[212,45,213,45],[212,46,213,46],[212,35,213,35],[212,36,213,36],[212,37,213,37],[212,38,213,38],[212,39,213,39],[212,40,213,40],[212,29,213,29],[212,30,213,30],[212,31,213,31],[212,32,213,32],[212,33,213,33],[212,34,213,34],[212,23,213,23],[212,24,213,24],[212,25,213,25],[212,26,213,26],[212,27,213,27],[212,28,213,28],[212,17,213,17],[212,18,213,18],[212,19,213,19],[212,20,213,20],[212,21,213,21],[212,22,213,22],[210,44,211,44],[210,45,211,45],[210,46,211,46],[210,48,211,48],[210,49,211,49],[212,1,213,1],[212,2,213,7],[212,8,213,12],[212,13,213,15],[212,16,213,16],[210,38,211,38],[210,39,211,39],[210,40,211,40],[210,41,211,41],[210,42,211,42],[210,43,211,43],[210,32,211,32],[210,33,211,33],[210,34,211,34],[210,35,211,35],[210,36,211,36],[210,37,211,37],[210,26,211,26],[210,27,211,27],[210,28,211,28],[210,29,211,29],[210,30,211,30],[210,31,211,31],[210,20,211,20],[210,21,211,21],[210,22,211,22],[210,23,211,23],[210,24,211,24],[210,25,211,25],[208,48,209,48],[208,49,209,49],[210,1,211,1],[210,2,211,7],[210,8,211,12],[210,13,211,15],[210,16,211,16],[210,17,211,17],[210,18,211,18],[210,19,211,19],[208,41,209,41],[208,42,209,42],[208,43,209,43],[208,44,209,44],[208,45,209,45],[208,46,209,46],[208,35,209,35],[208,36,209,36],[208,37,209,37],[208,38,209,38],[208,39,209,39],[208,40,209,40],[208,29,209,29],[208,30,209,30],[208,31,209,31],[208,32,209,32],[208,33,209,33],[208,34,209,34],[208,23,209,23],[208,24,209,24],[208,25,209,25],[208,26,209,26],[208,27,209,27],[208,28,209,28],[208,17,209,17],[208,18,209,18],[208,19,209,19],[208,20,209,20],[208,21,209,21],[208,22,209,22],[206,44,207,44],[206,45,207,45],[206,46,207,46],[206,48,207,48],[206,49,207,49],[208,1,209,1],[208,2,209,7],[208,8,209,12],[208,13,209,15],[208,16,209,16],[206,38,207,38],[206,39,207,39],[206,40,207,40],[206,41,207,41],[206,42,207,42],[206,43,207,43],[206,32,207,32],[206,33,207,33],[206,34,207,34],[206,35,207,35],[206,36,207,36],[206,37,207,37],[206,26,207,26],[206,27,207,27],[206,28,207,28],[206,29,207,29],[206,30,207,30],[206,31,207,31],[206,20,207,20],[206,21,207,21],[206,22,207,22],[206,23,207,23],[206,24,207,24],[206,25,207,25],[204,48,205,48],[204,49,205,49],[206,1,207,1],[206,2,207,7],[206,8,207,12],[206,13,207,15],[206,16,207,16],[206,17,207,17],[206,18,207,18],[206,19,207,19],[204,41,205,41],[204,42,205,42],[204,43,205,43],[204,44,205,44],[204,45,205,45],[204,46,205,46],[204,35,205,35],[204,36,205,36],[204,37,205,37],[204,38,205,38],[204,39,205,39],[204,40,205,40],[204,29,205,29],[204,30,205,30],[204,31,205,31],[204,32,205,32],[204,33,205,33],[204,34,205,34],[204,23,205,23],[204,24,205,24],[204,25,205,25],[204,26,205,26],[204,27,205,27],[204,28,205,28],[204,17,205,17],[204,18,205,18],[204,19,205,19],[204,20,205,20],[204,21,205,21],[204,22,205,22],[202,44,203,44],[202,45,203,45],[202,46,203,46],[202,48,203,48],[202,49,203,49],[204,1,205,1],[204,2,205,7],[204,8,205,12],[204,13,205,15],[204,16,205,16],[202,38,203,38],[202,39,203,39],[202,40,203,40],[202,41,203,41],[202,42,203,42],[202,43,203,43],[202,32,203,32],[202,33,203,33],[202,34,203,34],[202,35,203,35],[202,36,203,36],[202,37,203,37],[202,26,203,26],[202,27,203,27],[202,28,203,28],[202,29,203,29],[202,30,203,30],[202,31,203,31],[202,20,203,20],[202,21,203,21],[202,22,203,22],[202,23,203,23],[202,24,203,24],[202,25,203,25],[200,48,201,48],[200,49,201,49],[202,1,203,1],[202,2,203,7],[202,8,203,12],[202,13,203,15],[202,16,203,16],[202,17,203,17],[202,18,203,18],[202,19,203,19],[200,41,201,41],[200,42,201,42],[200,43,201,43],[200,44,201,44],[200,45,201,45],[200,46,201,46],[200,35,201,35],[200,36,201,36],[200,37,201,37],[200,38,201,38],[200,39,201,39],[200,40,201,40],[200,29,201,29],[200,30,201,30],[200,31,201,31],[200,32,201,32],[200,33,201,33],[200,34,201,34],[200,23,201,23],[200,24,201,24],[200,25,201,25],[200,26,201,26],[200,27,201,27],[200,28,201,28],[200,17,201,17],[200,18,201,18],[200,19,201,19],[200,20,201,20],[200,21,201,21],[200,22,201,22],[198,44,199,44],[198,45,199,45],[198,46,199,46],[198,48,199,48],[198,49,199,49],[200,1,201,1],[200,2,201,7],[200,8,201,12],[200,13,201,15],[200,16,201,16],[198,38,199,38],[198,39,199,39],[198,40,199,40],[198,41,199,41],[198,42,199,42],[198,43,199,43],[198,32,199,32],[198,33,199,33],[198,34,199,34],[198,35,199,35],[198,36,199,36],[198,37,199,37],[198,26,199,26],[198,27,199,27],[198,28,199,28],[198,29,199,29],[198,30,199,30],[198,31,199,31],[198,20,199,20],[198,21,199,21],[198,22,199,22],[198,23,199,23],[198,24,199,24],[198,25,199,25],[196,48,197,48],[196,49,197,49],[198,1,199,1],[198,2,199,7],[198,8,199,12],[198,13,199,15],[198,16,199,16],[198,17,199,17],[198,18,199,18],[198,19,199,19],[196,41,197,41],[196,42,197,42],[196,43,197,43],[196,44,197,44],[196,45,197,45],[196,46,197,46],[196,35,197,35],[196,36,197,36],[196,37,197,37],[196,38,197,38],[196,39,197,39],[196,40,197,40],[196,29,197,29],[196,30,197,30],[196,31,197,31],[196,32,197,32],[196,33,197,33],[196,34,197,34],[196,23,197,23],[196,24,197,24],[196,25,197,25],[196,26,197,26],[196,27,197,27],[196,28,197,28],[196,17,197,17],[196,18,197,18],[196,19,197,19],[196,20,197,20],[196,21,197,21],[196,22,197,22],[194,44,195,44],[194,45,195,45],[194,46,195,46],[194,48,195,48],[194,49,195,49],[196,1,197,1],[196,2,197,7],[196,8,197,12],[196,13,197,15],[196,16,197,16],[194,38,195,38],[194,39,195,39],[194,40,195,40],[194,41,195,41],[194,42,195,42],[194,43,195,43],[194,32,195,32],[194,33,195,33],[194,34,195,34],[194,35,195,35],[194,36,195,36],[194,37,195,37],[194,26,195,26],[194,27,195,27],[194,28,195,28],[194,29,195,29],[194,30,195,30],[194,31,195,31],[194,20,195,20],[194,21,195,21],[194,22,195,22],[194,23,195,23],[194,24,195,24],[194,25,195,25],[192,48,193,48],[192,49,193,49],[194,1,195,1],[194,2,195,7],[194,8,195,12],[194,13,195,15],[194,16,195,16],[194,17,195,17],[194,18,195,18],[194,19,195,19],[192,41,193,41],[192,42,193,42],[192,43,193,43],[192,44,193,44],[192,45,193,45],[192,46,193,46],[192,35,193,35],[192,36,193,36],[192,37,193,37],[192,38,193,38],[192,39,193,39],[192,40,193,40],[192,29,193,29],[192,30,193,30],[192,31,193,31],[192,32,193,32],[192,33,193,33],[192,34,193,34],[192,23,193,23],[192,24,193,24],[192,25,193,25],[192,26,193,26],[192,27,193,27],[192,28,193,28],[192,17,193,17],[192,18,193,18],[192,19,193,19],[192,20,193,20],[192,21,193,21],[192,22,193,22],[190,44,191,44],[190,45,191,45],[190,46,191,46],[190,48,191,48],[190,49,191,49],[192,1,193,1],[192,2,193,7],[192,8,193,12],[192,13,193,15],[192,16,193,16],[190,38,191,38],[190,39,191,39],[190,40,191,40],[190,41,191,41],[190,42,191,42],[190,43,191,43],[190,32,191,32],[190,33,191,33],[190,34,191,34],[190,35,191,35],[190,36,191,36],[190,37,191,37],[190,26,191,26],[190,27,191,27],[190,28,191,28],[190,29,191,29],[190,30,191,30],[190,31,191,31],[190,20,191,20],[190,21,191,21],[190,22,191,22],[190,23,191,23],[190,24,191,24],[190,25,191,25],[188,48,189,48],[188,49,189,49],[190,1,191,1],[190,2,191,7],[190,8,191,12],[190,13,191,15],[190,16,191,16],[190,17,191,17],[190,18,191,18],[190,19,191,19],[188,41,189,41],[188,42,189,42],[188,43,189,43],[188,44,189,44],[188,45,189,45],[188,46,189,46],[188,35,189,35],[188,36,189,36],[188,37,189,37],[188,38,189,38],[188,39,189,39],[188,40,189,40],[188,29,189,29],[188,30,189,30],[188,31,189,31],[188,32,189,32],[188,33,189,33],[188,34,189,34],[188,23,189,23],[188,24,189,24],[188,25,189,25],[188,26,189,26],[188,27,189,27],[188,28,189,28],[188,17,189,17],[188,18,189,18],[188,19,189,19],[188,20,189,20],[188,21,189,21],[188,22,189,22],[186,44,187,44],[186,45,187,45],[186,46,187,46],[186,48,187,48],[186,49,187,49],[188,1,189,1],[188,2,189,7],[188,8,189,12],[188,13,189,15],[188,16,189,16],[186,38,187,38],[186,39,187,39],[186,40,187,40],[186,41,187,41],[186,42,187,42],[186,43,187,43],[186,32,187,32],[186,33,187,33],[186,34,187,34],[186,35,187,35],[186,36,187,36],[186,37,187,37],[186,26,187,26],[186,27,187,27],[186,28,187,28],[186,29,187,29],[186,30,187,30],[186,31,187,31],[186,20,187,20],[186,21,187,21],[186,22,187,22],[186,23,187,23],[186,24,187,24],[186,25,187,25],[184,48,185,48],[184,49,185,49],[186,1,187,1],[186,2,187,7],[186,8,187,12],[186,13,187,15],[186,16,187,16],[186,17,187,17],[186,18,187,18],[186,19,187,19],[184,41,185,41],[184,42,185,42],[184,43,185,43],[184,44,185,44],[184,45,185,45],[184,46,185,46],[184,35,185,35],[184,36,185,36],[184,37,185,37],[184,38,185,38],[184,39,185,39],[184,40,185,40],[184,29,185,29],[184,30,185,30],[184,31,185,31],[184,32,185,32],[184,33,185,33],[184,34,185,34],[184,23,185,23],[184,24,185,24],[184,25,185,25],[184,26,185,26],[184,27,185,27],[184,28,185,28],[184,17,185,17],[184,18,185,18],[184,19,185,19],[184,20,185,20],[184,21,185,21],[184,22,185,22],[182,44,183,44],[182,45,183,45],[182,46,183,46],[182,48,183,48],[182,49,183,49],[184,1,185,1],[184,2,185,7],[184,8,185,12],[184,13,185,15],[184,16,185,16],[182,38,183,38],[182,39,183,39],[182,40,183,40],[182,41,183,41],[182,42,183,42],[182,43,183,43],[182,32,183,32],[182,33,183,33],[182,34,183,34],[182,35,183,35],[182,36,183,36],[182,37,183,37],[182,26,183,26],[182,27,183,27],[182,28,183,28],[182,29,183,29],[182,30,183,30],[182,31,183,31],[182,20,183,20],[182,21,183,21],[182,22,183,22],[182,23,183,23],[182,24,183,24],[182,25,183,25],[180,48,181,48],[180,49,181,49],[182,1,183,1],[182,2,183,7],[182,8,183,12],[182,13,183,15],[182,16,183,16],[182,17,183,17],[182,18,183,18],[182,19,183,19],[180,41,181,41],[180,42,181,42],[180,43,181,43],[180,44,181,44],[180,45,181,45],[180,46,181,46],[180,35,181,35],[180,36,181,36],[180,37,181,37],[180,38,181,38],[180,39,181,39],[180,40,181,40],[180,29,181,29],[180,30,181,30],[180,31,181,31],[180,32,181,32],[180,33,181,33],[180,34,181,34],[180,23,181,23],[180,24,181,24],[180,25,181,25],[180,26,181,26],[180,27,181,27],[180,28,181,28],[180,17,181,17],[180,18,181,18],[180,19,181,19],[180,20,181,20],[180,21,181,21],[180,22,181,22],[178,44,179,44],[178,45,179,45],[178,46,179,46],[178,48,179,48],[178,49,179,49],[180,1,181,1],[180,2,181,7],[180,8,181,12],[180,13,181,15],[180,16,181,16],[178,38,179,38],[178,39,179,39],[178,40,179,40],[178,41,179,41],[178,42,179,42],[178,43,179,43],[178,32,179,32],[178,33,179,33],[178,34,179,34],[178,35,179,35],[178,36,179,36],[178,37,179,37],[178,26,179,26],[178,27,179,27],[178,28,179,28],[178,29,179,29],[178,30,179,30],[178,31,179,31],[178,20,179,20],[178,21,179,21],[178,22,179,22],[178,23,179,23],[178,24,179,24],[178,25,179,25],[176,48,177,48],[176,49,177,49],[178,1,179,1],[178,2,179,7],[178,8,179,12],[178,13,179,15],[178,16,179,16],[178,17,179,17],[178,18,179,18],[178,19,179,19],[176,41,177,41],[176,42,177,42],[176,43,177,43],[176,44,177,44],[176,45,177,45],[176,46,177,46],[176,35,177,35],[176,36,177,36],[176,37,177,37],[176,38,177,38],[176,39,177,39],[176,40,177,40],[176,29,177,29],[176,30,177,30],[176,31,177,31],[176,32,177,32],[176,33,177,33],[176,34,177,34],[176,23,177,23],[176,24,177,24],[176,25,177,25],[176,26,177,26],[176,27,177,27],[176,28,177,28],[176,17,177,17],[176,18,177,18],[176,19,177,19],[176,20,177,20],[176,21,177,21],[176,22,177,22],[174,44,175,44],[174,45,175,45],[174,46,175,46],[174,48,175,48],[174,49,175,49],[176,1,177,1],[176,2,177,7],[176,8,177,12],[176,13,177,15],[176,16,177,16],[174,38,175,38],[174,39,175,39],[174,40,175,40],[174,41,175,41],[174,42,175,42],[174,43,175,43],[174,32,175,32],[174,33,175,33],[174,34,175,34],[174,35,175,35],[174,36,175,36],[174,37,175,37],[174,26,175,26],[174,27,175,27],[174,28,175,28],[174,29,175,29],[174,30,175,30],[174,31,175,31],[174,20,175,20],[174,21,175,21],[174,22,175,22],[174,23,175,23],[174,24,175,24],[174,25,175,25],[172,48,173,48],[172,49,173,49],[174,1,175,1],[174,2,175,7],[174,8,175,12],[174,13,175,15],[174,16,175,16],[174,17,175,17],[174,18,175,18],[174,19,175,19],[172,41,173,41],[172,42,173,42],[172,43,173,43],[172,44,173,44],[172,45,173,45],[172,46,173,46],[172,35,173,35],[172,36,173,36],[172,37,173,37],[172,38,173,38],[172,39,173,39],[172,40,173,40],[172,29,173,29],[172,30,173,30],[172,31,173,31],[172,32,173,32],[172,33,173,33],[172,34,173,34],[172,23,173,23],[172,24,173,24],[172,25,173,25],[172,26,173,26],[172,27,173,27],[172,28,173,28],[172,17,173,17],[172,18,173,18],[172,19,173,19],[172,20,173,20],[172,21,173,21],[172,22,173,22],[170,44,171,44],[170,45,171,45],[170,46,171,46],[170,48,171,48],[170,49,171,49],[172,1,173,1],[172,2,173,7],[172,8,173,12],[172,13,173,15],[172,16,173,16],[170,38,171,38],[170,39,171,39],[170,40,171,40],[170,41,171,41],[170,42,171,42],[170,43,171,43],[170,32,171,32],[170,33,171,33],[170,34,171,34],[170,35,171,35],[170,36,171,36],[170,37,171,37],[170,26,171,26],[170,27,171,27],[170,28,171,28],[170,29,171,29],[170,30,171,30],[170,31,171,31],[170,20,171,20],[170,21,171,21],[170,22,171,22],[170,23,171,23],[170,24,171,24],[170,25,171,25],[168,48,169,48],[168,49,169,49],[170,1,171,1],[170,2,171,7],[170,8,171,12],[170,13,171,15],[170,16,171,16],[170,17,171,17],[170,18,171,18],[170,19,171,19],[168,41,169,41],[168,42,169,42],[168,43,169,43],[168,44,169,44],[168,45,169,45],[168,46,169,46],[168,35,169,35],[168,36,169,36],[168,37,169,37],[168,38,169,38],[168,39,169,39],[168,40,169,40],[168,29,169,29],[168,30,169,30],[168,31,169,31],[168,32,169,32],[168,33,169,33],[168,34,169,34],[168,23,169,23],[168,24,169,24],[168,25,169,25],[168,26,169,26],[168,27,169,27],[168,28,169,28],[168,17,169,17],[168,18,169,18],[168,19,169,19],[168,20,169,20],[168,21,169,21],[168,22,169,22],[166,44,167,44],[166,45,167,45],[166,46,167,46],[166,48,167,48],[166,49,167,49],[168,1,169,1]],"merged_total":4010,"flags":["merged_cut"]}
[]
[]
[null,"２　職員の勤務実績（既存資料の添付可）",null,null,null,null,null,null,null,null,null,null,null,{"$f":"YEAR(EOMONTH(DATE(SUM(2018+【共通】!L9),【共通】!N9,【共通】!P9),-2))","v":2026},null,null,null,null,"（",{"$f":"IFERROR(\"令和　\"&VLOOKUP(N3,BL5:BM12,2,FALSE),\"\")","v":"令和　8"},null,"年",{"$f":"MONTH(EOMONTH(DATE(2023,【共通】!N9,【共通】!P9),-2))","v":5},"月分実績",null,"）","当該事業所の常勤の職員が当該月に勤務すべき時間数",null,null,null,null,null,null,null,null,null,null,null,null," 時間／日",null,null,null," 時間／週",null,null,null," 時間／月",null,{"$f":"\"1 / \"&COUNTA(C$7,C$49,#REF!,C$135,C$179)","v":"1 / 2"}]
[]
[null,null,"職　　種",null,null,null,null,null,"氏　　名",null,null,null,null,"勤務\n形態",null,null,{"$f":"DATE($N$3,$W$3,1)","v":"2026-05-01"},{"$f":"Q5+1","v":"2026-05-02"},{"$f":"R5+1","v":"2026-05-03"},{"$f":"S5+1","v":"2026-05-04"},"2026-05-05","2026-05-06","2026-05-07","2026-05-08","2026-05-09","2026-05-10","2026-05-11","2026-05-12","2026-05-13","2026-05-14","2026-05-15","2026-05-16","2026-05-17","2026-05-18","2026-05-19","2026-05-20","2026-05-21","2026-05-22","2026-05-23","2026-05-24","2026-05-25","2026-05-26","2026-05-27",{"$f":"AQ5+1","v":"2026-05-28"},{"$f":"IF(DAY(DATE($N$3,$W$3,29))=29,AR5+1,\"\")","v":"2026-05-29"},{"$f":"IF(DAY(DATE($N$3,$W$3,30))=30,AS5+1,\"\")","v":"2026-05-30"},{"$f":"IF(DAY(DATE($N$3,$W$3,31))=31,AT5+1,\"\")","v":"2026-05-31"},"勤務日数",null,"常勤換算",null,null,null,null,null,null,null,null,null,null,null,null,null,2023,5]
[null,null,null,null,null,null,null,null,null,null,null,null,null,null,null,null,{"$f":"VLOOKUP(WEEKDAY(Q5,2),$BA$7:$BB$14,2,FALSE)","v":"金"},"土","日","月","火","水","木","金","土","日","月","火","水","木","金","土","日","月","火","水","木","金","土","日","月","火","水","木",{"$f":"IF(AS5=\"\",\"\",VLOOKUP(WEEKDAY(AS5,2),$BA$7:$BB$14,2,FALSE))","v":"金"},{"$f":"IF(AT5=\"\",\"\",VLOOKUP(WEEKDAY(AT5,2),$BA$7:$BB$14,2,FALSE))","v":"土"},{"$f":"IF(AU5=\"\",\"\",VLOOKUP(WEEKDAY(AU5,2),$BA$7:$BB$14,2,FALSE))","v":"日"},"勤務時間",null,null,null,null,null,null,null,null,null,null,null,null,null,null,null,{"$f":"BL5+1","v":2024},{"$f":"BM5+1","v":6}]
[null,"例","管理者",null,null,null,null,null,"○○　○○",null,null,null,null,"常勤\n兼務",null,null,7.75,7.75,7.75,null,null,7.75,7.75,7.75,7.75,7.75,null,null,7.75,7.75,7.75,7.75,7.75,null,null,7.75,7.75,7.75,7.75,7.75,null,null,7.75,7.75,7.75,7.75,null,{"$f":"COUNTA(Q7:AU7)","v":22},{"$f":"AV8","v":170.5},1.1000000000000001,null,null,1,"月","管理者",null,null,null,"常勤\n専従","常勤\n兼務","非常勤\n専従","非常勤\n兼務",null,{"$f":"BL6+1","v":2025},7]
[null,null,null,null,null,null,null,null,null,null,null,null,null,null,null,null,null,null,null,null,null,null,null,null,null,null,null,null,null,null,null,null,null,null,null,null,null,null,null,null,null,null,null,null,null,null,null,{"$f":"SUM(Q7:AU8)","v":170.5},null,null,null,null,2,"火","サービス提供責任者",null,null,null,null,null,null,null,null,2026,8]
[null,"例","サービス提供責任者",null,null,null,null,null,"××　××",null,null,null,null,"常勤\n専従",null,null,6.75,6.75,6.75,null,null,6.75,6.75,6.75,6.75,6.75,null,null,6.75,6.75,6.75,6.75,6.75,null,null,6.75,6.75,6.75,6.75,6.75,null,null,6.75,6.75,6.75,6.75,null,{"$f":"COUNTA(Q9:AU9)","v":22},{"$f":"AV10","v":148.5},0.9,null,null,3,"水","ヘルパー",null,null,null,null,null,null,null,null,2027,9]
[null,null,null,null,null,null,null,null,null,null,null,null,null,null,null,null,null,null,null,null,null,null,null,null,null,null,null,null,null,null,null,null,null,null,null,null,null,null,null,null,null,null,null,null,null,null,null,{"$f":"SUM(Q9:AU10)","v":148.5},null,null,null,null,4,"木","登録ヘルパー",null,null,null,null,null,null,null,null,2028,10]
[null,"例","ヘルパー",null,null,null,null,null,"△△　△△",null,null,null,null,"非常勤\n兼務",null,null,null,2.75,2.75,null,null,1.5,1.5,null,2.75,2.75,null,null,1.5,1.5,null,2.75,2.75,null,null,1.5,1.5,null,2.75,2.75,null,null,1.5,1.5,null,2.75,null,{"$f":"COUNTA(Q11:AU11)","v":17},{"$f":"AV12","v":36.75},0.2,null,null,5,"金",null,null,null,null,null,null,null,null,null,2029,11]
[null,null,null,null,null,null,null,null,null,null,null,null,null,null,null,null,null,null,null,null,null,null,null,null,null,null,null,null,null,null,null,null,null,null,null,null,null,null,null,null,null,null,null,null,null,null,null,{"$f":"SUM(Q11:AU12)","v":36.75},null,null,null,null,6,"土",null,null,null,null,null,null,null,null,null,2030,12]
[null,{"$f":"ROW(B1)","v":1},null,null,null,null,null,null,null,null,null,null,null,null,null,null,null,null,null,null,null,null,null,null,null,null,null,null,null,null,null,null,null,null,null,null,null,null,null,null,null,null,null,null,null,null,null,{"$f":"COUNTA(Q13:AU13)","v":0},{"$f":"AV14","v":0},{"$f":"IFERROR(ROUNDDOWN(AV14/$AT$3,1),\"\")","v":""},null,null,7,"日"]
[null,null,null,null,null,null,null,null,null,null,null,null,null,null,null,null,null,null,null,null,null,null,null,null,null,null,null,null,null,null,null,null,null,null,null,null,null,null,null,null,null,null,null,null,null,null,null,{"$f":"SUM(Q13:AU13)","v":0}]
[null,{"$f":"B13+1","v":2},null,null,null,null,null,null,null,null,null,null,null,null,null,null,null,null,null,null,null,null,null,null,null,null,null,null,null,null,null,null,null,null,null,null,null,null,null,null,null,null,null,null,null,null,null,{"$f":"COUNTA(Q15:AU15)","v":0},{"$f":"AV16","v":0},{"$f":"IFERROR(ROUNDDOWN(AV16/$AT$3,1),\"\")","v":""}]
[null,null,null,null,null,null,null,null,null,null,null,null,null,null,null,null,null,null,null,null,null,null,null,null,null,null,null,null,null,null,null,null,null,null,null,null,null,null,null,null,null,null,null,null,null,null,null,{"$f":"SUM(Q15:AU15)","v":0}]
[null,{"$f":"B15+1","v":3},null,null,null,null,null,null,null,null,null,null,null,null,null,null,null,null,null,null,null,null,null,null,null,null,null,null,null,null,null,null,null,null,null,null,null,null,null,null,null,null,null,null,null,null,null,{"$f":"COUNTA(Q17:AU17)","v":0},{"$f":"AV18","v":0},{"$f":"IFERROR(ROUNDDOWN(AV18/$AT$3,1),\"\")","v":""}]
[null,null,null,null,null,null,null,null,null,null,null,null,null,null,null,null,null,null,null,null,null,null,null,null,null,null,null,null,null,null,null,null,null,null,null,null,null,null,null,null,null,null,null,null,null,null,null,{"$f":"SUM(Q17:AU17)","v":0}]
[null,{"$f":"B17+1","v":4},null,null,null,null,null,null,null,null,null,null,null,null,null,null,null,null,null,null,null,null,null,null,null,null,null,null,null,null,null,null,null,null,null,null,null,null,null,null,null,null,null,null,null,null,null,{"$f":"COUNTA(Q19:AU19)","v":0},{"$f":"AV20","v":0},{"$f":"IFERROR(ROUNDDOWN(AV20/$AT$3,1),\"\")","v":""}]
[null,null,null,null,null,null,null,null,null,null,null,null,null,null,null,null,null,null,null,null,null,null,null,null,null,null,null,null,null,null,null,null,null,null,null,null,null,null,null,null,null,null,null,null,null,null,null,{"$f":"SUM(Q19:AU19)","v":0}]
[null,{"$f":"B19+1","v":5},null,null,null,null,null,null,null,null,null,null,null,null,null,null,null,null,null,null,null,null,null,null,null,null,null,null,null,null,null,null,null,null,null,null,null,null,null,null,null,null,null,null,null,null,null,{"$f":"COUNTA(Q21:AU21)","v":0},{"$f":"AV22","v":0},{"$f":"IFERROR(ROUNDDOWN(AV22/$AT$3,1),\"\")","v":""}]
[null,null,null,null,null,null,null,null,null,null,null,null,null,null,null,null,null,null,null,null,null,null,null,null,null,null,null,null,null,null,null,null,null,null,null,null,null,null,null,null,null,null,null,null,null,null,null,{"$f":"SUM(Q21:AU21)","v":0}]
[null,{"$f":"B21+1","v":6},null,null,null,null,null,null,null,null,null,null,null,null,null,null,null,null,null,null,null,null,null,null,null,null,null,null,null,null,null,null,null,null,null,null,null,null,null,null,null,null,null,null,null,null,null,0,{"$f":"AV24","v":0},{"$f":"IFERROR(ROUNDDOWN(AV24/$AT$3,1),\"\")","v":""}]
[null,null,null,null,null,null,null,null,null,null,null,null,null,null,null,null,null,null,null,null,null,null,null,null,null,null,null,null,null,null,null,null,null,null,null,null,null,null,null,null,null,null,null,null,null,null,null,0]
[null,{"$f":"B23+1","v":7},null,null,null,null,null,null,null,null,null,null,null,null,null,null,null,null,null,null,null,null,null,null,null,null,null,null,null,null,null,null,null,null,null,null,null,null,null,null,null,null,null,null,null,null,null,0,{"$f":"AV26","v":0},{"$f":"IFERROR(ROUNDDOWN(AV26/$AT$3,1),\"\")","v":""}]
[null,null,null,null,null,null,null,null,null,null,null,null,null,null,null,null,null,null,null,null,null,null,null,null,null,null,null,null,null,null,null,null,null,null,null,null,null,null,null,null,null,null,null,null,null,null,null,0]
[null,{"$f":"B25+1","v":8},null,null,null,null,null,null,null,null,null,null,null,null,null,null,null,null,null,null,null,null,null,null,null,null,null,null,null,null,null,null,null,null,null,null,null,null,null,null,null,null,null,null,null,null,null,0,{"$f":"AV28","v":0},{"$f":"IFERROR(ROUNDDOWN(AV28/$AT$3,1),\"\")","v":""}]
[null,null,null,null,null,null,null,null,null,null,null,null,null,null,null,null,null,null,null,null,null,null,null,null,null,null,null,null,null,null,null,null,null,null,null,null,null,null,null,null,null,null,null,null,null,null,null,0]
[null,{"$f":"B27+1","v":9},null,null,null,null,null,null,null,null,null,null,null,null,null,null,null,null,null,null,null,null,null,null,null,null,null,null,null,null,null,null,null,null,null,null,null,null,null,null,null,null,null,null,null,null,null,0,{"$f":"AV30","v":0},{"$f":"IFERROR(ROUNDDOWN(AV30/$AT$3,1),\"\")","v":""}]
[null,null,null,null,null,null,null,null,null,null,null,null,null,null,null,null,null,null,null,null,null,null,null,null,null,null,null,null,null,null,null,null,null,null,null,null,null,null,null,null,null,null,null,null,null,null,null,0]
[null,{"$f":"B29+1","v":10},null,null,null,null,null,null,null,null,null,null,null,null,null,null,null,null,null,null,null,null,null,null,null,null,null,null,null,null,null,null,null,null,null,null,null,null,null,null,null,null,null,null,null,null,null,0,{"$f":"AV32","v":0},{"$f":"IFERROR(ROUNDDOWN(AV32/$AT$3,1),\"\")","v":""}]
[null,null,null,null,null,null,null,null,null,null,null,null,null,null,null,null,null,null,null,null,null,null,null,null,null,null,null,null,null,null,null,null,null,null,null,null,null,null,null,null,null,null,null,null,null,null,null,0]
[null,{"$f":"B31+1","v":11},null,null,null,null,null,null,null,null,null,null,null,null,null,null,null,null,null,null,null,null,null,null,null,null,null,null,null,null,null,null,null,null,null,null,null,null,null,null,null,null,null,null,null,null,null,0,{"$f":"AV34","v":0},{"$f":"IFERROR(ROUNDDOWN(AV34/$AT$3,1),\"\")","v":""}]
[null,null,null,null,null,null,null,null,null,null,null,null,null,null,null,null,null,null,null,null,null,null,null,null,null,null,null,null,null,null,null,null,null,null,null,null,null,null,null,null,null,null,null,null,null,null,null,0]
[null,{"$f":"B33+1","v":12},null,null,null,null,null,null,null,null,null,null,null,null,null,null,null,null,null,null,null,null,null,null,null,null,null,null,null,null,null,null,null,null,null,null,null,null,null,null,null,null,null,null,null,null,null,0,{"$f":"AV36","v":0},{"$f":"IFERROR(ROUNDDOWN(AV36/$AT$3,1),\"\")","v":""}]
[null,null,null,null,null,null,null,null,null,null,null,null,null,null,null,null,null,null,null,null,null,null,null,null,null,null,null,null,null,null,null,null,null,null,null,null,null,null,null,null,null,null,null,null,null,null,null,0]
[null,{"$f":"B35+1","v":13},null,null,null,null,null,null,null,null,null,null,null,null,null,null,null,null,null,null,null,null,null,null,null,null,null,null,null,null,null,null,null,null,null,null,null,null,null,null,null,null,null,null,null,null,null,0,{"$f":"AV38","v":0},{"$f":"IFERROR(ROUNDDOWN(AV38/$AT$3,1),\"\")","v":""}]
[null,null,null,null,null,null,null,null,null,null,null,null,null,null,null,null,null,null,null,null,null,null,null,null,null,null,null,null,null,null,null,null,null,null,null,null,null,null,null,null,null,null,null,null,null,null,null,0]
[null,{"$f":"B37+1","v":14},null,null,null,null,null,null,null,null,null,null,null,null,null,null,null,null,null,null,null,null,null,null,null,null,null,null,null,null,null,null,null,null,null,null,null,null,null,null,null,null,null,null,null,null,null,0,{"$f":"AV40","v":0},{"$f":"IFERROR(ROUNDDOWN(AV40/$AT$3,1),\"\")","v":""}]
[null,null,null,null,null,null,null,null,null,null,null,null,null,null,null,null,null,null,null,null,null,null,null,null,null,null,null,null,null,null,null,null,null,null,null,null,null,null,null,null,null,null,null,null,null,null,null,0]
[null,{"$f":"B39+1","v":15},null,null,null,null,null,null,null,null,null,null,null,null,null,null,null,null,null,null,null,null,null,null,null,null,null,null,null,null,null,null,null,null,null,null,null,null,null,null,null,null,null,null,null,null,null,0,{"$f":"AV42","v":0},{"$f":"IFERROR(ROUNDDOWN(AV42/$AT$3,1),\"\")","v":""}]
[null,null,null,null,null,null,null,null,null,null,null,null,null,null,null,null,null,null,null,null,null,null,null,null,null,null,null,null,null,null,null,null,null,null,null,null,null,null,null,null,null,null,null,null,null,null,null,0]
[null,{"$f":"B41+1","v":16},null,null,null,null,null,null,null,null,null,null,null,null,null,null,null,null,null,null,null,null,null,null,null,null,null,null,null,null,null,null,null,null,null,null,null,null,null,null,null,null,null,null,null,null,null,0,{"$f":"AV44","v":0},{"$f":"IFERROR(ROUNDDOWN(AV44/$AT$3,1),\"\")","v":""}]
[null,null,null,null,null,null,null,null,null,null,null,null,null,null,null,null,null,null,null,null,null,null,null,null,null,null,null,null,null,null,null,null,null,null,null,null,null,null,null,null,null,null,null,null,null,null,null,0]
[null,{"$f":"B43+1","v":17},null,null,null,null,null,null,null,null,null,null,null,null,null,null,null,null,null,null,null,null,null,null,null,null,null,null,null,null,null,null,null,null,null,null,null,null,null,null,null,null,null,null,null,null,null,0,{"$f":"AV46","v":0},{"$f":"IFERROR(ROUNDDOWN(AV46/$AT$3,1),\"\")","v":""}]
[null,null,null,null,null,null,null,null,null,null,null,null,null,null,null,null,null,null,null,null,null,null,null,null,null,null,null,null,null,null,null,null,null,null,null,null,null,null,null,null,null,null,null,null,null,null,null,0]
[null,{"$f":"B45+1","v":18},null,null,null,null,null,null,null,null,null,null,null,null,null,null,null,null,null,null,null,null,null,null,null,null,null,null,null,null,null,null,null,null,null,null,null,null,null,null,null,null,null,null,null,null,null,0,{"$f":"AV48","v":0},{"$f":"IFERROR(ROUNDDOWN(AV48/$AT$3,1),\"\")","v":""}]
[null,null,null,null,null,null,null,null,null,null,null,null,null,null,null,null,null,null,null,null,null,null,null,null,null,null,null,null,null,null,null,null,null,null,null,null,null,null,null,null,null,null,null,null,null,null,null,0]
[null,{"$f":"B47+1","v":19},null,null,null,null,null,null,null,null,null,null,null,null,null,null,null,null,null,null,null,null,null,null,null,null,null,null,null,null,null,null,null,null,null,null,null,null,null,null,null,null,null,null,null,null,null,0,{"$f":"AV50","v":0},{"$f":"IFERROR(ROUNDDOWN(AV50/$AT$3,1),\"\")","v":""}]
[null,null,null,null,null,null,null,null,null,null,null,null,null,null,null,null,null,null,null,null,null,null,null,null,null,null,null,null,null,null,null,null,null,null,null,null,null,null,null,null,null,null,null,null,null,null,null,0]
[null,{"$f":"B49+1","v":20},null,null,null,null,null,null,null,null,null,null,null,null,null,null,null,null,null,null,null,null,null,null,null,null,null,null,null,null,null,null,null,null,null,null,null,null,null,null,null,null,null,null,null,null,null,0,{"$f":"AV52","v":0},{"$f":"IFERROR(ROUNDDOWN(AV52/$AT$3,1),\"\")","v":""}]
[null,null,null,null,null,null,null,null,null,null,null,null,null,null,null,null,null,null,null,null,null,null,null,null,null,null,null,null,null,null,null,null,null,null,null,null,null,null,null,null,null,null,null,null,null,null,null,0]
[null,21,null,null,null,null,null,null,null,null,null,null,null,null,null,null,null,null,null,null,null,null,null,null,null,null,null,null,null,null,null,null,null,null,null,null,null,null,null,null,null,null,null,null,null,null,null,0,{"$f":"AV54","v":0},{"$f":"IFERROR(ROUNDDOWN(AV54/$AT$3,1),\"\")","v":""}]
[null,null,null,null,null,null,null,null,null,null,null,null,null,null,null,null,null,null,null,null,null,null,null,null,null,null,null,null,null,null,null,null,null,null,null,null,null,null,null,null,null,null,null,null,null,null,null,0]
[null,22,null,null,null,null,null,null,null,null,null,null,null,null,null,null,null,null,null,null,null,null,null,null,null,null,null,null,null,null,null,null,null,null,null,null,null,null,null,null,null,null,null,null,null,null,null,0,{"$f":"AV56","v":0},{"$f":"IFERROR(ROUNDDOWN(AV56/$AT$3,1),\"\")","v":""}]
[null,null,null,null,null,null,null,null,null,null,null,null,null,null,null,null,null,null,null,null,null,null,null,null,null,null,null,null,null,null,null,null,null,null,null,null,null,null,null,null,null,null,null,null,null,null,null,0]
[null,23,null,null,null,null,null,null,null,null,null,null,null,null,null,null,null,null,null,null,null,null,null,null,null,null,null,null,null,null,null,null,null,null,null,null,null,null,null,null,null,null,null,null,null,null,null,0,{"$f":"AV58","v":0},{"$f":"IFERROR(ROUNDDOWN(AV58/$AT$3,1),\"\")","v":""}]
[null,null,null,null,null,null,null,null,null,null,null,null,null,null,null,null,null,null,null,null,null,null,null,null,null,null,null,null,null,null,null,null,null,null,null,null,null,null,null,null,null,null,null,null,null,null,null,0]
[null,24,null,null,null,null,null,null,null,null,null,null,null,null,null,null,null,null,null,null,null,null,null,null,null,null,null,null,null,null,null,null,null,null,null,null,null,null,null,null,null,null,null,null,null,null,null,0,{"$f":"AV60","v":0},{"$f":"IFERROR(ROUNDDOWN(AV60/$AT$3,1),\"\")","v":""}]
[null,null,null,null,null,null,null,null,null,null,null,null,null,null,null,null,null,null,null,null,null,null,null,null,null,null,null,null,null,null,null,null,null,null,null,null,null,null,null,null,null,null,null,null,null,null,null,0]
[null,25,null,null,null,null,null,null,null,null,null,null,null,null,null,null,null,null,null,null,null,null,null,null,null,null,null,null,null,null,null,null,null,null,null,null,null,null,null,null,null,null,null,null,null,null,null,0,{"$f":"AV62","v":0},{"$f":"IFERROR(ROUNDDOWN(AV62/$AT$3,1),\"\")","v":""}]
[null,null,null,null,null,null,null,null,null,null,null,null,null,null,null,null,null,null,null,null,null,null,null,null,null,null,null,null,null,null,null,null,null,null,null,null,null,null,null,null,null,null,null,null,null,null,null,0]
[null,26,null,null,null,null,null,null,null,null,null,null,null,null,null,null,null,null,null,null,null,null,null,null,null,null,null,null,null,null,null,null,null,null,null,null,null,null,null,null,null,null,null,null,null,null,null,0,{"$f":"AV64","v":0},{"$f":"IFERROR(ROUNDDOWN(AV64/$AT$3,1),\"\")","v":""}]
[null,null,null,null,null,null,null,null,null,null,null,null,null,null,null,null,null,null,null,null,null,null,null,null,null,null,null,null,null,null,null,null,null,null,null,null,null,null,null,null,null,null,null,null,null,null,null,0]
[null,27,null,null,null,null,null,null,null,null,null,null,null,null,null,null,null,null,null,null,null,null,null,null,null,null,null,null,null,null,null,null,null,null,null,null,null,null,null,null,null,null,null,null,null,null,null,0,{"$f":"AV66","v":0},{"$f":"IFERROR(ROUNDDOWN(AV66/$AT$3,1),\"\")","v":""}]
[null,null,null,null,null,null,null,null,null,null,null,null,null,null,null,null,null,null,null,null,null,null,null,null,null,null,null,null,null,null,null,null,null,null,null,null,null,null,null,null,null,null,null,null,null,null,null,0]
[null,28,null,null,null,null,null,null,null,null,null,null,null,null,null,null,null,null,null,null,null,null,null,null,null,null,null,null,null,null,null,null,null,null,null,null,null,null,null,null,null,null,null,null,null,null,null,0,{"$f":"AV68","v":0},{"$f":"IFERROR(ROUNDDOWN(AV68/$AT$3,1),\"\")","v":""}]
[null,null,null,null,null,null,null,null,null,null,null,null,null,null,null,null,null,null,null,null,null,null,null,null,null,null,null,null,null,null,null,null,null,null,null,null,null,null,null,null,null,null,null,null,null,null,null,0]
[null,29,null,null,null,null,null,null,null,null,null,null,null,null,null,null,null,null,null,null,null,null,null,null,null,null,null,null,null,null,null,null,null,null,null,null,null,null,null,null,null,null,null,null,null,null,null,0,{"$f":"AV70","v":0},{"$f":"IFERROR(ROUNDDOWN(AV70/$AT$3,1),\"\")","v":""}]
[null,null,null,null,null,null,null,null,null,null,null,null,null,null,null,null,null,null,null,null,null,null,null,null,null,null,null,null,null,null,null,null,null,null,null,null,null,null,null,null,null,null,null,null,null,null,null,0]
[null,30,null,null,null,null,null,null,null,null,null,null,null,null,null,null,null,null,null,null,null,null,null,null,null,null,null,null,null,null,null,null,null,null,null,null,null,null,null,null,null,null,null,null,null,null,null,0,{"$f":"AV72","v":0},{"$f":"IFERROR(ROUNDDOWN(AV72/$AT$3,1),\"\")","v":""}]
[null,null,null,null,null,null,null,null,null,null,null,null,null,null,null,null,null,null,null,null,null,null,null,null,null,null,null,null,null,null,null,null,null,null,null,null,null,null,null,null,null,null,null,null,null,null,null,0]
[null,31,null,null,null,null,null,null,null,null,null,null,null,null,null,null,null,null,null,null,null,null,null,null,null,null,null,null,null,null,null,null,null,null,null,null,null,null,null,null,null,null,null,null,null,null,null,0,{"$f":"AV74","v":0},{"$f":"IFERROR(ROUNDDOWN(AV74/$AT$3,1),\"\")","v":""}]
[null,null,null,null,null,null,null,null,null,null,null,null,null,null,null,null,null,null,null,null,null,null,null,null,null,null,null,null,null,null,null,null,null,null,null,null,null,null,null,null,null,null,null,null,null,null,null,0]
[null,32,null,null,null,null,null,null,null,null,null,null,null,null,null,null,null,null,null,null,null,null,null,null,null,null,null,null,null,null,null,null,null,null,null,null,null,null,null,null,null,null,null,null,null,null,null,0,{"$f":"AV76","v":0},{"$f":"IFERROR(ROUNDDOWN(AV76/$AT$3,1),\"\")","v":""}]
[null,null,null,null,null,null,null,null,null,null,null,null,null,null,null,null,null,null,null,null,null,null,null,null,null,null,null,null,null,null,null,null,null,null,null,null,null,null,null,null,null,null,null,null,null,null,null,0]
[null,33,null,null,null,null,null,null,null,null,null,null,null,null,null,null,null,null,null,null,null,null,null,null,null,null,null,null,null,null,null,null,null,null,null,null,null,null,null,null,null,null,null,null,null,null,null,0,{"$f":"AV78","v":0},{"$f":"IFERROR(ROUNDDOWN(AV78/$AT$3,1),\"\")","v":""}]
[null,null,null,null,null,null,null,null,null,null,null,null,null,null,null,null,null,null,null,null,null,null,null,null,null,null,null,null,null,null,null,null,null,null,null,null,null,null,null,null,null,null,null,null,null,null,null,0]
[null,34,null,null,null,null,null,null,null,null,null,null,null,null,null,null,null,null,null,null,null,null,null,null,null,null,null,null,null,null,null,null,null,null,null,null,null,null,null,null,null,null,null,null,null,null,null,0,{"$f":"AV80","v":0},{"$f":"IFERROR(ROUNDDOWN(AV80/$AT$3,1),\"\")","v":""}]
[null,null,null,null,null,null,null,null,null,null,null,null,null,null,null,null,null,null,null,null,null,null,null,null,null,null,null,null,null,null,null,null,null,null,null,null,null,null,null,null,null,null,null,null,null,null,null,0]
[null,35,null,null,null,null,null,null,null,null,null,null,null,null,null,null,null,null,null,null,null,null,null,null,null,null,null,null,null,null,null,null,null,null,null,null,null,null,null,null,null,null,null,null,null,null,null,0,{"$f":"AV82","v":0},{"$f":"IFERROR(ROUNDDOWN(AV82/$AT$3,1),\"\")","v":""}]
[null,null,null,null,null,null,null,null,null,null,null,null,null,null,null,null,null,null,null,null,null,null,null,null,null,null,null,null,null,null,null,null,null,null,null,null,null,null,null,null,null,null,null,null,null,null,null,0]
[null,36,null,null,null,null,null,null,null,null,null,null,null,null,null,null,null,null,null,null,null,null,null,null,null,null,null,null,null,null,null,null,null,null,null,null,null,null,null,null,null,null,null,null,null,null,null,0,{"$f":"AV84","v":0},{"$f":"IFERROR(ROUNDDOWN(AV84/$AT$3,1),\"\")","v":""}]
[null,null,null,null,null,null,null,null,null,null,null,null,null,null,null,null,null,null,null,null,null,null,null,null,null,null,null,null,null,null,null,null,null,null,null,null,null,null,null,null,null,null,null,null,null,null,null,0]
[null,37,null,null,null,null,null,null,null,null,null,null,null,null,null,null,null,null,null,null,null,null,null,null,null,null,null,null,null,null,null,null,null,null,null,null,null,null,null,null,null,null,null,null,null,null,null,{"$f":"COUNTA(Q85:AU85)","v":0},{"$f":"AV86","v":0},{"$f":"IFERROR(ROUNDDOWN(AV86/$AT$3,1),\"\")","v":""}]
[null,null,null,null,null,null,null,null,null,null,null,null,null,null,null,null,null,null,null,null,null,null,null,null,null,null,null,null,null,null,null,null,null,null,null,null,null,null,null,null,null,null,null,null,null,null,null,{"$f":"SUM(Q85:AU85)","v":0}]
[null,{"$f":"B85+1","v":38},null,null,null,null,null,null,null,null,null,null,null,null,null,null,null,null,null,null,null,null,null,null,null,null,null,null,null,null,null,null,null,null,null,null,null,null,null,null,null,null,null,null,null,null,null,0,{"$f":"AV88","v":0},{"$f":"IFERROR(ROUNDDOWN(AV88/$AT$3,1),\"\")","v":""}]
[null,null,null,null,null,null,null,null,null,null,null,null,null,null,null,null,null,null,null,null,null,null,null,null,null,null,null,null,null,null,null,null,null,null,null,null,null,null,null,null,null,null,null,null,null,null,null,0]
[null,39,null,null,null,null,null,null,null,null,null,null,null,null,null,null,null,null,null,null,null,null,null,null,null,null,null,null,null,null,null,null,null,null,null,null,null,null,null,null,null,null,null,null,null,null,null,0,{"$f":"AV90","v":0},{"$f":"IFERROR(ROUNDDOWN(AV90/$AT$3,1),\"\")","v":""}]
[null,null,null,null,null,null,null,null,null,null,null,null,null,null,null,null,null,null,null,null,null,null,null,null,null,null,null,null,null,null,null,null,null,null,null,null,null,null,null,null,null,null,null,null,null,null,null,0]
[null,40,null,null,null,null,null,null,null,null,null,null,null,null,null,null,null,null,null,null,null,null,null,null,null,null,null,null,null,null,null,null,null,null,null,null,null,null,null,null,null,null,null,null,null,null,null,0,{"$f":"AV92","v":0},{"$f":"IFERROR(ROUNDDOWN(AV92/$AT$3,1),\"\")","v":""}]
[null,null,null,null,null,null,null,null,null,null,null,null,null,null,null,null,null,null,null,null,null,null,null,null,null,null,null,null,null,null,null,null,null,null,null,null,null,null,null,null,null,null,null,null,null,null,null,0]
[null,41,null,null,null,null,null,null,null,null,null,null,null,null,null,null,null,null,null,null,null,null,null,null,null,null,null,null,null,null,null,null,null,null,null,null,null,null,null,null,null,null,null,null,null,null,null,0,{"$f":"AV94","v":0},{"$f":"IFERROR(ROUNDDOWN(AV94/$AT$3,1),\"\")","v":""}]
[null,null,null,null,null,null,null,null,null,null,null,null,null,null,null,null,null,null,null,null,null,null,null,null,null,null,null,null,null,null,null,null,null,null,null,null,null,null,null,null,null,null,null,null,null,null,null,0]
[null,{"$f":"B93+1","v":42},null,null,null,null,null,null,null,null,null,null,null,null,null,null,null,null,null,null,null,null,null,null,null,null,null,null,null,null,null,null,null,null,null,null,null,null,null,null,null,null,null,null,null,null,null,0,{"$f":"AV96","v":0},{"$f":"IFERROR(ROUNDDOWN(AV96/$AT$3,1),\"\")","v":""}]
[null,null,null,null,null,null,null,null,null,null,null,null,null,null,null,null,null,null,null,null,null,null,null,null,null,null,null,null,null,null,null,null,null,null,null,null,null,null,null,null,null,null,null,null,null,null,null,0]
[null,43,null,null,null,null,null,null,null,null,null,null,null,null,null,null,null,null,null,null,null,null,null,null,null,null,null,null,null,null,null,null,null,null,null,null,null,null,null,null,null,null,null,null,null,null,null,0,{"$f":"AV98","v":0},{"$f":"IFERROR(ROUNDDOWN(AV98/$AT$3,1),\"\")","v":""}]
[null,null,null,null,null,null,null,null,null,null,null,null,null,null,null,null,null,null,null,null,null,null,null,null,null,null,null,null,null,null,null,null,null,null,null,null,null,null,null,null,null,null,null,null,null,null,null,0]
[null,44,null,null,null,null,null,null,null,null,null,null,null,null,null,null,null,null,null,null,null,null,null,null,null,null,null,null,null,null,null,null,null,null,null,null,null,null,null,null,null,null,null,null,null,null,null,0,{"$f":"AV100","v":0},{"$f":"IFERROR(ROUNDDOWN(AV100/$AT$3,1),\"\")","v":""}]
[null,null,null,null,null,null,null,null,null,null,null,null,null,null,null,null,null,null,null,null,null,null,null,null,null,null,null,null,null,null,null,null,null,null,null,null,null,null,null,null,null,null,null,null,null,null,null,0]
[null,45,null,null,null,null,null,null,null,null,null,null,null,null,null,null,null,null,null,null,null,null,null,null,null,null,null,null,null,null,null,null,null,null,null,null,null,null,null,null,null,null,null,null,null,null,null,0,{"$f":"AV102","v":0},{"$f":"IFERROR(ROUNDDOWN(AV102/$AT$3,1),\"\")","v":""}]
[null,null,null,null,null,null,null,null,null,null,null,null,null,null,null,null,null,null,null,null,null,null,null,null,null,null,null,null,null,null,null,null,null,null,null,null,null,null,null,null,null,null,null,null,null,null,null,0]
[null,46,null,null,null,null,null,null,null,null,null,null,null,null,null,null,null,null,null,null,null,null,null,null,null,null,null,null,null,null,null,null,null,null,null,null,null,null,null,null,null,null,null,null,null,null,null,0,{"$f":"AV104","v":0},{"$f":"IFERROR(ROUNDDOWN(AV104/$AT$3,1),\"\")","v":""}]
[null,null,null,null,null,null,null,null,null,null,null,null,null,null,null,null,null,null,null,null,null,null,null,null,null,null,null,null,null,null,null,null,null,null,null,null,null,null,null,null,null,null,null,null,null,null,null,0]
[null,47,null,null,null,null,null,null,null,null,null,null,null,null,null,null,null,null,null,null,null,null,null,null,null,null,null,null,null,null,null,null,null,null,null,null,null,null,null,null,null,null,null,null,null,null,null,0,{"$f":"AV106","v":0},{"$f":"IFERROR(ROUNDDOWN(AV106/$AT$3,1),\"\")","v":""}]
[null,null,null,null,null,null,null,null,null,null,null,null,null,null,null,null,null,null,null,null,null,null,null,null,null,null,null,null,null,null,null,null,null,null,null,null,null,null,null,null,null,null,null,null,null,null,null,0]
[null,48,null,null,null,null,null,null,null,null,null,null,null,null,null,null,null,null,null,null,null,null,null,null,null,null,null,null,null,null,null,null,null,null,null,null,null,null,null,null,null,null,null,null,null,null,null,0,{"$f":"AV108","v":0},{"$f":"IFERROR(ROUNDDOWN(AV108/$AT$3,1),\"\")","v":""}]
[null,null,null,null,null,null,null,null,null,null,null,null,null,null,null,null,null,null,null,null,null,null,null,null,null,null,null,null,null,null,null,null,null,null,null,null,null,null,null,null,null,null,null,null,null,null,null,0]
[null,49,null,null,null,null,null,null,null,null,null,null,null,null,null,null,null,null,null,null,null,null,null,null,null,null,null,null,null,null,null,null,null,null,null,null,null,null,null,null,null,null,null,null,null,null,null,0,{"$f":"AV110","v":0},{"$f":"IFERROR(ROUNDDOWN(AV110/$AT$3,1),\"\")","v":""}]
[null,null,null,null,null,null,null,null,null,null,null,null,null,null,null,null,null,null,null,null,null,null,null,null,null,null,null,null,null,null,null,null,null,null,null,null,null,null,null,null,null,null,null,null,null,null,null,0]
[null,50,null,null,null,null,null,null,null,null,null,null,null,null,null,null,null,null,null,null,null,null,null,null,null,null,null,null,null,null,null,null,null,null,null,null,null,null,null,null,null,null,null,null,null,null,null,0,{"$f":"AV112","v":0},{"$f":"IFERROR(ROUNDDOWN(AV112/$AT$3,1),\"\")","v":""}]
[null,null,null,null,null,null,null,null,null,null,null,null,null,null,null,null,null,null,null,null,null,null,null,null,null,null,null,null,null,null,null,null,null,null,null,null,null,null,null,null,null,null,null,null,null,null,null,0]
[null,51,null,null,null,null,null,null,null,null,null,null,null,null,null,null,null,null,null,null,null,null,null,null,null,null,null,null,null,null,null,null,null,null,null,null,null,null,null,null,null,null,null,null,null,null,null,0,{"$f":"AV114","v":0},{"$f":"IFERROR(ROUNDDOWN(AV114/$AT$3,1),\"\")","v":""}]
[null,null,null,null,null,null,null,null,null,null,null,null,null,null,null,null,null,null,null,null,null,null,null,null,null,null,null,null,null,null,null,null,null,null,null,null,null,null,null,null,null,null,null,null,null,null,null,0]
[null,52,null,null,null,null,null,null,null,null,null,null,null,null,null,null,null,null,null,null,null,null,null,null,null,null,null,null,null,null,null,null,null,null,null,null,null,null,null,null,null,null,null,null,null,null,null,0,{"$f":"AV116","v":0},{"$f":"IFERROR(ROUNDDOWN(AV116/$AT$3,1),\"\")","v":""}]
[null,null,null,null,null,null,null,null,null,null,null,null,null,null,null,null,null,null,null,null,null,null,null,null,null,null,null,null,null,null,null,null,null,null,null,null,null,null,null,null,null,null,null,null,null,null,null,0]
[null,53,null,null,null,null,null,null,null,null,null,null,null,null,null,null,null,null,null,null,null,null,null,null,null,null,null,null,null,null,null,null,null,null,null,null,null,null,null,null,null,null,null,null,null,null,null,0,{"$f":"AV118","v":0},{"$f":"IFERROR(ROUNDDOWN(AV118/$AT$3,1),\"\")","v":""}]
[null,null,null,null,null,null,null,null,null,null,null,null,null,null,null,null,null,null,null,null,null,null,null,null,null,null,null,null,null,null,null,null,null,null,null,null,null,null,null,null,null,null,null,null,null,null,null,0]
[null,54,null,null,null,null,null,null,null,null,null,null,null,null,null,null,null,null,null,null,null,null,null,null,null,null,null,null,null,null,null,null,null,null,null,null,null,null,null,null,null,null,null,null,null,null,null,0,{"$f":"AV120","v":0},{"$f":"IFERROR(ROUNDDOWN(AV120/$AT$3,1),\"\")","v":""}]
[null,null,null,null,null,null,null,null,null,null,null,null,null,null,null,null,null,null,null,null,null,null,null,null,null,null,null,null,null,null,null,null,null,null,null,null,null,null,null,null,null,null,null,null,null,null,null,0]
[null,55,null,null,null,null,null,null,null,null,null,null,null,null,null,null,null,null,null,null,null,null,null,null,null,null,null,null,null,null,null,null,null,null,null,null,null,null,null,null,null,null,null,null,null,null,null,0,{"$f":"AV122","v":0},{"$f":"IFERROR(ROUNDDOWN(AV122/$AT$3,1),\"\")","v":""}]
[null,null,null,null,null,null,null,null,null,null,null,null,null,null,null,null,null,null,null,null,null,null,null,null,null,null,null,null,null,null,null,null,null,null,null,null,null,null,null,null,null,null,null,null,null,null,null,0]
[null,56,null,null,null,null,null,null,null,null,null,null,null,null,null,null,null,null,null,null,null,null,null,null,null,null,null,null,null,null,null,null,null,null,null,null,null,null,null,null,null,null,null,null,null,null,null,{"$f":"COUNTA(Q123:AU123)","v":0},{"$f":"AV124","v":0},{"$f":"IFERROR(ROUNDDOWN(AV124/$AT$3,1),\"\")","v":""}]
[null,null,null,null,null,null,null,null,null,null,null,null,null,null,null,null,null,null,null,null,null,null,null,null,null,null,null,null,null,null,null,null,null,null,null,null,null,null,null,null,null,null,null,null,null,null,null,{"$f":"SUM(Q123:AU123)","v":0}]
[null,57,null,null,null,null,null,null,null,null,null,null,null,null,null,null,null,null,null,null,null,null,null,null,null,null,null,null,null,null,null,null,null,null,null,null,null,null,null,null,null,null,null,null,null,null,null,0,{"$f":"AV126","v":0},{"$f":"IFERROR(ROUNDDOWN(AV126/$AT$3,1),\"\")","v":""}]
[null,null,null,null,null,null,null,null,null,null,null,null,null,null,null,null,null,null,null,null,null,null,null,null,null,null,null,null,null,null,null,null,null,null,null,null,null,null,null,null,null,null,null,null,null,null,null,0]
[null,58,null,null,null,null,null,null,null,null,null,null,null,null,null,null,null,null,null,null,null,null,null,null,null,null,null,null,null,null,null,null,null,null,null,null,null,null,null,null,null,null,null,null,null,null,null,0,{"$f":"AV128","v":0},{"$f":"IFERROR(ROUNDDOWN(AV128/$AT$3,1),\"\")","v":""}]
[null,null,null,null,null,null,null,null,null,null,null,null,null,null,null,null,null,null,null,null,null,null,null,null,null,null,null,null,null,null,null,null,null,null,null,null,null,null,null,null,null,null,null,null,null,null,null,0]
[null,59,null,null,null,null,null,null,null,null,null,null,null,null,null,null,null,null,null,null,null,null,null,null,null,null,null,null,null,null,null,null,null,null,null,null,null,null,null,null,null,null,null,null,null,null,null,0,{"$f":"AV130","v":0},{"$f":"IFERROR(ROUNDDOWN(AV130/$AT$3,1),\"\")","v":""}]
[null,null,null,null,null,null,null,null,null,null,null,null,null,null,null,null,null,null,null,null,null,null,null,null,null,null,null,null,null,null,null,null,null,null,null,null,null,null,null,null,null,null,null,null,null,null,null,0]
[null,60,null,null,null,null,null,null,null,null,null,null,null,null,null,null,null,null,null,null,null,null,null,null,null,null,null,null,null,null,null,null,null,null,null,null,null,null,null,null,null,null,null,null,null,null,null,0,{"$f":"AV132","v":0},{"$f":"IFERROR(ROUNDDOWN(AV132/$AT$3,1),\"\")","v":""}]
[null,null,null,null,null,null,null,null,null,null,null,null,null,null,null,null,null,null,null,null,null,null,null,null,null,null,null,null,null,null,null,null,null,null,null,null,null,null,null,null,null,null,null,null,null,null,null,0]
[null,61,null,null,null,null,null,null,null,null,null,null,null,null,null,null,null,null,null,null,null,null,null,null,null,null,null,null,null,null,null,null,null,null,null,null,null,null,null,null,null,null,null,null,null,null,null,0,{"$f":"AV134","v":0},{"$f":"IFERROR(ROUNDDOWN(AV134/$AT$3,1),\"\")","v":""}]
[null,null,null,null,null,null,null,null,null,null,null,null,null,null,null,null,null,null,null,null,null,null,null,null,null,null,null,null,null,null,null,null,null,null,null,null,null,null,null,null,null,null,null,null,null,null,null,0]
[null,{"$f":"B133+1","v":62},null,null,null,null,null,null,null,null,null,null,null,null,null,null,null,null,null,null,null,null,null,null,null,null,null,null,null,null,null,null,null,null,null,null,null,null,null,null,null,null,null,null,null,null,null,0,{"$f":"AV136","v":0},{"$f":"IFERROR(ROUNDDOWN(AV136/$AT$3,1),\"\")","v":""}]
[null,null,null,null,null,null,null,null,null,null,null,null,null,null,null,null,null,null,null,null,null,null,null,null,null,null,null,null,null,null,null,null,null,null,null,null,null,null,null,null,null,null,null,null,null,null,null,0]
[null,{"$f":"B135+1","v":63},null,null,null,null,null,null,null,null,null,null,null,null,null,null,null,null,null,null,null,null,null,null,null,null,null,null,null,null,null,null,null,null,null,null,null,null,null,null,null,null,null,null,null,null,null,0,{"$f":"AV138","v":0},{"$f":"IFERROR(ROUNDDOWN(AV138/$AT$3,1),\"\")","v":""}]
[null,null,null,null,null,null,null,null,null,null,null,null,null,null,null,null,null,null,null,null,null,null,null,null,null,null,null,null,null,null,null,null,null,null,null,null,null,null,null,null,null,null,null,null,null,null,null,0]
[null,64,null,null,null,null,null,null,null,null,null,null,null,null,null,null,null,null,null,null,null,null,null,null,null,null,null,null,null,null,null,null,null,null,null,null,null,null,null,null,null,null,null,null,null,null,null,0,{"$f":"AV140","v":0},{"$f":"IFERROR(ROUNDDOWN(AV140/$AT$3,1),\"\")","v":""}]
[null,null,null,null,null,null,null,null,null,null,null,null,null,null,null,null,null,null,null,null,null,null,null,null,null,null,null,null,null,null,null,null,null,null,null,null,null,null,null,null,null,null,null,null,null,null,null,0]
[null,65,null,null,null,null,null,null,null,null,null,null,null,null,null,null,null,null,null,null,null,null,null,null,null,null,null,null,null,null,null,null,null,null,null,null,null,null,null,null,null,null,null,null,null,null,null,0,{"$f":"AV142","v":0},{"$f":"IFERROR(ROUNDDOWN(AV142/$AT$3,1),\"\")","v":""}]
[null,null,null,null,null,null,null,null,null,null,null,null,null,null,null,null,null,null,null,null,null,null,null,null,null,null,null,null,null,null,null,null,null,null,null,null,null,null,null,null,null,null,null,null,null,null,null,0]
[null,66,null,null,null,null,null,null,null,null,null,null,null,null,null,null,null,null,null,null,null,null,null,null,null,null,null,null,null,null,null,null,null,null,null,null,null,null,null,null,null,null,null,null,null,null,null,0,{"$f":"AV144","v":0},{"$f":"IFERROR(ROUNDDOWN(AV144/$AT$3,1),\"\")","v":""}]
[null,null,null,null,null,null,null,null,null,null,null,null,null,null,null,null,null,null,null,null,null,null,null,null,null,null,null,null,null,null,null,null,null,null,null,null,null,null,null,null,null,null,null,null,null,null,null,0]
[null,67,null,null,null,null,null,null,null,null,null,null,null,null,null,null,null,null,null,null,null,null,null,null,null,null,null,null,null,null,null,null,null,null,null,null,null,null,null,null,null,null,null,null,null,null,null,0,{"$f":"AV146","v":0},{"$f":"IFERROR(ROUNDDOWN(AV146/$AT$3,1),\"\")","v":""}]
[null,null,null,null,null,null,null,null,null,null,null,null,null,null,null,null,null,null,null,null,null,null,null,null,null,null,null,null,null,null,null,null,null,null,null,null,null,null,null,null,null,null,null,null,null,null,null,0]
[null,68,null,null,null,null,null,null,null,null,null,null,null,null,null,null,null,null,null,null,null,null,null,null,null,null,null,null,null,null,null,null,null,null,null,null,null,null,null,null,null,null,null,null,null,null,null,0,{"$f":"AV148","v":0},{"$f":"IFERROR(ROUNDDOWN(AV148/$AT$3,1),\"\")","v":""}]
[null,null,null,null,null,null,null,null,null,null,null,null,null,null,null,null,null,null,null,null,null,null,null,null,null,null,null,null,null,null,null,null,null,null,null,null,null,null,null,null,null,null,null,null,null,null,null,0]
[null,69,null,null,null,null,null,null,null,null,null,null,null,null,null,null,null,null,null,null,null,null,null,null,null,null,null,null,null,null,null,null,null,null,null,null,null,null,null,null,null,null,null,null,null,null,null,0,{"$f":"AV150","v":0},{"$f":"IFERROR(ROUNDDOWN(AV150/$AT$3,1),\"\")","v":""}]
[null,null,null,null,null,null,null,null,null,null,null,null,null,null,null,null,null,null,null,null,null,null,null,null,null,null,null,null,null,null,null,null,null,null,null,null,null,null,null,null,null,null,null,null,null,null,null,0]
[null,70,null,null,null,null,null,null,null,null,null,null,null,null,null,null,null,null,null,null,null,null,null,null,null,null,null,null,null,null,null,null,null,null,null,null,null,null,null,null,null,null,null,null,null,null,null,0,{"$f":"AV152","v":0},{"$f":"IFERROR(ROUNDDOWN(AV152/$AT$3,1),\"\")","v":""}]
[null,null,null,null,null,null,null,null,null,null,null,null,null,null,null,null,null,null,null,null,null,null,null,null,null,null,null,null,null,null,null,null,null,null,null,null,null,null,null,null,null,null,null,null,null,null,null,0]
[null,71,null,null,null,null,null,null,null,null,null,null,null,null,null,null,null,null,null,null,null,null,null,null,null,null,null,null,null,null,null,null,null,null,null,null,null,null,null,null,null,null,null,null,null,null,null,0,{"$f":"AV154","v":0},{"$f":"IFERROR(ROUNDDOWN(AV154/$AT$3,1),\"\")","v":""}]
[null,null,null,null,null,null,null,null,null,null,null,null,null,null,null,null,null,null,null,null,null,null,null,null,null,null,null,null,null,null,null,null,null,null,null,null,null,null,null,null,null,null,null,null,null,null,null,0]
[null,72,null,null,null,null,null,null,null,null,null,null,null,null,null,null,null,null,null,null,null,null,null,null,null,null,null,null,null,null,null,null,null,null,null,null,null,null,null,null,null,null,null,null,null,null,null,0,{"$f":"AV156","v":0},{"$f":"IFERROR(ROUNDDOWN(AV156/$AT$3,1),\"\")","v":""}]
[null,null,null,null,null,null,null,null,null,null,null,null,null,null,null,null,null,null,null,null,null,null,null,null,null,null,null,null,null,null,null,null,null,null,null,null,null,null,null,null,null,null,null,null,null,null,null,0]
[null,73,null,null,null,null,null,null,null,null,null,null,null,null,null,null,null,null,null,null,null,null,null,null,null,null,null,null,null,null,null,null,null,null,null,null,null,null,null,null,null,null,null,null,null,null,null,0,{"$f":"AV158","v":0},{"$f":"IFERROR(ROUNDDOWN(AV158/$AT$3,1),\"\")","v":""}]
[null,null,null,null,null,null,null,null,null,null,null,null,null,null,null,null,null,null,null,null,null,null,null,null,null,null,null,null,null,null,null,null,null,null,null,null,null,null,null,null,null,null,null,null,null,null,null,0]
[null,74,null,null,null,null,null,null,null,null,null,null,null,null,null,null,null,null,null,null,null,null,null,null,null,null,null,null,null,null,null,null,null,null,null,null,null,null,null,null,null,null,null,null,null,null,null,0,{"$f":"AV160","v":0},{"$f":"IFERROR(ROUNDDOWN(AV160/$AT$3,1),\"\")","v":""}]
[null,null,null,null,null,null,null,null,null,null,null,null,null,null,null,null,null,null,null,null,null,null,null,null,null,null,null,null,null,null,null,null,null,null,null,null,null,null,null,null,null,null,null,null,null,null,null,0]
[null,75,null,null,null,null,null,null,null,null,null,null,null,null,null,null,null,null,null,null,null,null,null,null,null,null,null,null,null,null,null,null,null,null,null,null,null,null,null,null,null,null,null,null,null,null,null,0,{"$f":"AV162","v":0},{"$f":"IFERROR(ROUNDDOWN(AV162/$AT$3,1),\"\")","v":""}]
[null,null,null,null,null,null,null,null,null,null,null,null,null,null,null,null,null,null,null,null,null,null,null,null,null,null,null,null,null,null,null,null,null,null,null,null,null,null,null,null,null,null,null,null,null,null,null,0]
[null,76,null,null,null,null,null,null,null,null,null,null,null,null,null,null,null,null,null,null,null,null,null,null,null,null,null,null,null,null,null,null,null,null,null,null,null,null,null,null,null,null,null,null,null,null,null,0,{"$f":"AV164","v":0},{"$f":"IFERROR(ROUNDDOWN(AV164/$AT$3,1),\"\")","v":""}]
[null,null,null,null,null,null,null,null,null,null,null,null,null,null,null,null,null,null,null,null,null,null,null,null,null,null,null,null,null,null,null,null,null,null,null,null,null,null,null,null,null,null,null,null,null,null,null,0]
[null,77,null,null,null,null,null,null,null,null,null,null,null,null,null,null,null,null,null,null,null,null,null,null,null,null,null,null,null,null,null,null,null,null,null,null,null,null,null,null,null,null,null,null,null,null,null,0,{"$f":"AV166","v":0},{"$f":"IFERROR(ROUNDDOWN(AV166/$AT$3,1),\"\")","v":""}]
[null,null,null,null,null,null,null,null,null,null,null,null,null,null,null,null,null,null,null,null,null,null,null,null,null,null,null,null,null,null,null,null,null,null,null,null,null,null,null,null,null,null,null,null,null,null,null,0]
[null,78,null,null,null,null,null,null,null,null,null,null,null,null,null,null,null,null,null,null,null,null,null,null,null,null,null,null,null,null,null,null,null,null,null,null,null,null,null,null,null,null,null,null,null,null,null,0,{"$f":"AV168","v":0},{"$f":"IFERROR(ROUNDDOWN(AV168/$AT$3,1),\"\")","v":""}]
[null,null,null,null,null,null,null,null,null,null,null,null,null,null,null,null,null,null,null,null,null,null,null,null,null,null,null,null,null,null,null,null,null,null,null,null,null,null,null,null,null,null,null,null,null,null,null,0]
[null,79,null,null,null,null,null,null,null,null,null,null,null,null,null,null,null,null,null,null,null,null,null,null,null,null,null,null,null,null,null,null,null,null,null,null,null,null,null,null,null,null,null,null,null,null,null,0,{"$f":"AV170","v":0},{"$f":"IFERROR(ROUNDDOWN(AV170/$AT$3,1),\"\")","v":""}]
[null,null,null,null,null,null,null,null,null,null,null,null,null,null,null,null,null,null,null,null,null,null,null,null,null,null,null,null,null,null,null,null,null,null,null,null,null,null,null,null,null,null,null,null,null,null,null,0]
[null,80,null,null,null,null,null,null,null,null,null,null,null,null,null,null,null,null,null,null,null,null,null,null,null,null,null,null,null,null,null,null,null,null,null,null,null,null,null,null,null,null,null,null,null,null,null,0,{"$f":"AV172","v":0},{"$f":"IFERROR(ROUNDDOWN(AV172/$AT$3,1),\"\")","v":""}]
[null,null,null,null,null,null,null,null,null,null,null,null,null,null,null,null,null,null,null,null,null,null,null,null,null,null,null,null,null,null,null,null,null,null,null,null,null,null,null,null,null,null,null,null,null,null,null,0]
[null,81,null,null,null,null,null,null,null,null,null,null,null,null,null,null,null,null,null,null,null,null,null,null,null,null,null,null,null,null,null,null,null,null,null,null,null,null,null,null,null,null,null,null,null,null,null,0,{"$f":"AV174","v":0},{"$f":"IFERROR(ROUNDDOWN(AV174/$AT$3,1),\"\")","v":""}]
[null,null,null,null,null,null,null,null,null,null,null,null,null,null,null,null,null,null,null,null,null,null,null,null,null,null,null,null,null,null,null,null,null,null,null,null,null,null,null,null,null,null,null,null,null,null,null,0]
[null,82,null,null,null,null,null,null,null,null,null,null,null,null,null,null,null,null,null,null,null,null,null,null,null,null,null,null,null,null,null,null,null,null,null,null,null,null,null,null,null,null,null,null,null,null,null,0,{"$f":"AV176","v":0},{"$f":"IFERROR(ROUNDDOWN(AV176/$AT$3,1),\"\")","v":""}]
[null,null,null,null,null,null,null,null,null,null,null,null,null,null,null,null,null,null,null,null,null,null,null,null,null,null,null,null,null,null,null,null,null,null,null,null,null,null,null,null,null,null,null,null,null,null,null,0]
[null,83,null,null,null,null,null,null,null,null,null,null,null,null,null,null,null,null,null,null,null,null,null,null,null,null,null,null,null,null,null,null,null,null,null,null,null,null,null,null,null,null,null,null,null,null,null,0,{"$f":"AV178","v":0},{"$f":"IFERROR(ROUNDDOWN(AV178/$AT$3,1),\"\")","v":""}]
[null,null,null,null,null,null,null,null,null,null,null,null,null,null,null,null,null,null,null,null,null,null,null,null,null,null,null,null,null,null,null,null,null,null,null,null,null,null,null,null,null,null,null,null,null,null,null,0]
[null,{"$f":"B177+1","v":84},null,null,null,null,null,null,null,null,null,null,null,null,null,null,null,null,null,null,null,null,null,null,null,null,null,null,null,null,null,null,null,null,null,null,null,null,null,null,null,null,null,null,null,null,null,0,{"$f":"AV180","v":0},{"$f":"IFERROR(ROUNDDOWN(AV180/$AT$3,1),\"\")","v":""}]
[null,null,null,null,null,null,null,null,null,null,null,null,null,null,null,null,null,null,null,null,null,null,null,null,null,null,null,null,null,null,null,null,null,null,null,null,null,null,null,null,null,null,null,null,null,null,null,0]
[null,{"$f":"B179+1","v":85},null,null,null,null,null,null,null,null,null,null,null,null,null,null,null,null,null,null,null,null,null,null,null,null,null,null,null,null,null,null,null,null,null,null,null,null,null,null,null,null,null,null,null,null,null,0,{"$f":"AV182","v":0},{"$f":"IFERROR(ROUNDDOWN(AV182/$AT$3,1),\"\")","v":""}]
[null,null,null,null,null,null,null,null,null,null,null,null,null,null,null,null,null,null,null,null,null,null,null,null,null,null,null,null,null,null,null,null,null,null,null,null,null,null,null,null,null,null,null,null,null,null,null,0]
[null,86,null,null,null,null,null,null,null,null,null,null,null,null,null,null,null,null,null,null,null,null,null,null,null,null,null,null,null,null,null,null,null,null,null,null,null,null,null,null,null,null,null,null,null,null,null,0,{"$f":"AV184","v":0},{"$f":"IFERROR(ROUNDDOWN(AV184/$AT$3,1),\"\")","v":""}]
[null,null,null,null,null,null,null,null,null,null,null,null,null,null,null,null,null,null,null,null,null,null,null,null,null,null,null,null,null,null,null,null,null,null,null,null,null,null,null,null,null,null,null,null,null,null,null,0]
[null,87,null,null,null,null,null,null,null,null,null,null,null,null,null,null,null,null,null,null,null,null,null,null,null,null,null,null,null,null,null,null,null,null,null,null,null,null,null,null,null,null,null,null,null,null,null,0,{"$f":"AV186","v":0},{"$f":"IFERROR(ROUNDDOWN(AV186/$AT$3,1),\"\")","v":""}]
[null,null,null,null,null,null,null,null,null,null,null,null,null,null,null,null,null,null,null,null,null,null,null,null,null,null,null,null,null,null,null,null,null,null,null,null,null,null,null,null,null,null,null,null,null,null,null,0]
[null,88,null,null,null,null,null,null,null,null,null,null,null,null,null,null,null,null,null,null,null,null,null,null,null,null,null,null,null,null,null,null,null,null,null,null,null,null,null,null,null,null,null,null,null,null,null,{"$f":"COUNTA(Q187:AU187)","v":0},{"$f":"AV188","v":0},{"$f":"IFERROR(ROUNDDOWN(AV188/$AT$3,1),\"\")","v":""}]
[null,null,null,null,null,null,null,null,null,null,null,null,null,null,null,null,null,null,null,null,null,null,null,null,null,null,null,null,null,null,null,null,null,null,null,null,null,null,null,null,null,null,null,null,null,null,null,{"$f":"SUM(Q187:AU187)","v":0}]
[null,89,null,null,null,null,null,null,null,null,null,null,null,null,null,null,null,null,null,null,null,null,null,null,null,null,null,null,null,null,null,null,null,null,null,null,null,null,null,null,null,null,null,null,null,null,null,0,{"$f":"AV190","v":0},{"$f":"IFERROR(ROUNDDOWN(AV190/$AT$3,1),\"\")","v":""}]
[null,null,null,null,null,null,null,null,null,null,null,null,null,null,null,null,null,null,null,null,null,null,null,null,null,null,null,null,null,null,null,null,null,null,null,null,null,null,null,null,null,null,null,null,null,null,null,0]
[null,90,null,null,null,null,null,null,null,null,null,null,null,null,null,null,null,null,null,null,null,null,null,null,null,null,null,null,null,null,null,null,null,null,null,null,null,null,null,null,null,null,null,null,null,null,null,0,{"$f":"AV192","v":0},{"$f":"IFERROR(ROUNDDOWN(AV192/$AT$3,1),\"\")","v":""}]
[null,null,null,null,null,null,null,null,null,null,null,null,null,null,null,null,null,null,null,null,null,null,null,null,null,null,null,null,null,null,null,null,null,null,null,null,null,null,null,null,null,null,null,null,null,null,null,0]
[null,91,null,null,null,null,null,null,null,null,null,null,null,null,null,null,null,null,null,null,null,null,null,null,null,null,null,null,null,null,null,null,null,null,null,null,null,null,null,null,null,null,null,null,null,null,null,0,{"$f":"AV194","v":0},{"$f":"IFERROR(ROUNDDOWN(AV194/$AT$3,1),\"\")","v":""}]
[null,null,null,null,null,null,null,null,null,null,null,null,null,null,null,null,null,null,null,null,null,null,null,null,null,null,null,null,null,null,null,null,null,null,null,null,null,null,null,null,null,null,null,null,null,null,null,0]
[null,92,null,null,null,null,null,null,null,null,null,null,null,null,null,null,null,null,null,null,null,null,null,null,null,null,null,null,null,null,null,null,null,null,null,null,null,null,null,null,null,null,null,null,null,null,null,0,{"$f":"AV196","v":0},{"$f":"IFERROR(ROUNDDOWN(AV196/$AT$3,1),\"\")","v":""}]
[null,null,null,null,null,null,null,null,null,null,null,null,null,null,null,null,null,null,null,null,null,null,null,null,null,null,null,null,null,null,null,null,null,null,null,null,null,null,null,null,null,null,null,null,null,null,null,0]
[null,93,null,null,null,null,null,null,null,null,null,null,null,null,null,null,null,null,null,null,null,null,null,null,null,null,null,null,null,null,null,null,null,null,null,null,null,null,null,null,null,null,null,null,null,null,null,0,{"$f":"AV198","v":0},{"$f":"IFERROR(ROUNDDOWN(AV198/$AT$3,1),\"\")","v":""}]
[null,null,null,null,null,null,null,null,null,null,null,null,null,null,null,null,null,null,null,null,null,null,null,null,null,null,null,null,null,null,null,null,null,null,null,null,null,null,null,null,null,null,null,null,null,null,null,0]
[null,94,null,null,null,null,null,null,null,null,null,null,null,null,null,null,null,null,null,null,null,null,null,null,null,null,null,null,null,null,null,null,null,null,null,null,null,null,null,null,null,null,null,null,null,null,null,0,{"$f":"AV200","v":0},{"$f":"IFERROR(ROUNDDOWN(AV200/$AT$3,1),\"\")","v":""}]
[null,null,null,null,null,null,null,null,null,null,null,null,null,null,null,null,null,null,null,null,null,null,null,null,null,null,null,null,null,null,null,null,null,null,null,null,null,null,null,null,null,null,null,null,null,null,null,0]
[null,95,null,null,null,null,null,null,null,null,null,null,null,null,null,null,null,null,null,null,null,null,null,null,null,null,null,null,null,null,null,null,null,null,null,null,null,null,null,null,null,null,null,null,null,null,null,0,{"$f":"AV202","v":0},{"$f":"IFERROR(ROUNDDOWN(AV202/$AT$3,1),\"\")","v":""}]
[null,null,null,null,null,null,null,null,null,null,null,null,null,null,null,null,null,null,null,null,null,null,null,null,null,null,null,null,null,null,null,null,null,null,null,null,null,null,null,null,null,null,null,null,null,null,null,0]
[null,96,null,null,null,null,null,null,null,null,null,null,null,null,null,null,null,null,null,null,null,null,null,null,null,null,null,null,null,null,null,null,null,null,null,null,null,null,null,null,null,null,null,null,null,null,null,0,{"$f":"AV204","v":0},{"$f":"IFERROR(ROUNDDOWN(AV204/$AT$3,1),\"\")","v":""}]
[null,null,null,null,null,null,null,null,null,null,null,null,null,null,null,null,null,null,null,null,null,null,null,null,null,null,null,null,null,null,null,null,null,null,null,null,null,null,null,null,null,null,null,null,null,null,null,0]
[null,97,null,null,null,null,null,null,null,null,null,null,null,null,null,null,null,null,null,null,null,null,null,null,null,null,null,null,null,null,null,null,null,null,null,null,null,null,null,null,null,null,null,null,null,null,null,0,{"$f":"AV206","v":0},{"$f":"IFERROR(ROUNDDOWN(AV206/$AT$3,1),\"\")","v":""}]
[null,null,null,null,null,null,null,null,null,null,null,null,null,null,null,null,null,null,null,null,null,null,null,null,null,null,null,null,null,null,null,null,null,null,null,null,null,null,null,null,null,null,null,null,null,null,null,0]
[null,98,null,null,null,null,null,null,null,null,null,null,null,null,null,null,null,null,null,null,null,null,null,null,null,null,null,null,null,null,null,null,null,null,null,null,null,null,null,null,null,null,null,null,null,null,null,0,{"$f":"AV208","v":0},{"$f":"IFERROR(ROUNDDOWN(AV208/$AT$3,1),\"\")","v":""}]
[null,null,null,null,null,null,null,null,null,null,null,null,null,null,null,null,null,null,null,null,null,null,null,null,null,null,null,null,null,null,null,null,null,null,null,null,null,null,null,null,null,null,null,null,null,null,null,0]
[null,99,null,null,null,null,null,null,null,null,null,null,null,null,null,null,null,null,null,null,null,null,null,null,null,null,null,null,null,null,null,null,null,null,null,null,null,null,null,null,null,null,null,null,null,null,null,0,{"$f":"AV210","v":0},{"$f":"IFERROR(ROUNDDOWN(AV210/$AT$3,1),\"\")","v":""}]
[null,null,null,null,null,null,null,null,null,null,null,null,null,null,null,null,null,null,null,null,null,null,null,null,null,null,null,null,null,null,null,null,null,null,null,null,null,null,null,null,null,null,null,null,null,null,null,0]
[null,100,null,null,null,null,null,null,null,null,null,null,null,null,null,null,null,null,null,null,null,null,null,null,null,null,null,null,null,null,null,null,null,null,null,null,null,null,null,null,null,null,null,null,null,null,null,0,{"$f":"AV212","v":0},{"$f":"IFERROR(ROUNDDOWN(AV212/$AT$3,1),\"\")","v":""}]
[null,null,null,null,null,null,null,null,null,null,null,null,null,null,null,null,null,null,null,null,null,null,null,null,null,null,null,null,null,null,null,null,null,null,null,null,null,null,null,null,null,null,null,null,null,null,null,0]
[null,101,null,null,null,null,null,null,null,null,null,null,null,null,null,null,null,null,null,null,null,null,null,null,null,null,null,null,null,null,null,null,null,null,null,null,null,null,null,null,null,null,null,null,null,null,null,0,{"$f":"AV214","v":0},{"$f":"IFERROR(ROUNDDOWN(AV214/$AT$3,1),\"\")","v":""}]
[null,null,null,null,null,null,null,null,null,null,null,null,null,null,null,null,null,null,null,null,null,null,null,null,null,null,null,null,null,null,null,null,null,null,null,null,null,null,null,null,null,null,null,null,null,null,null,0]
[null,102,null,null,null,null,null,null,null,null,null,null,null,null,null,null,null,null,null,null,null,null,null,null,null,null,null,null,null,null,null,null,null,null,null,null,null,null,null,null,null,null,null,null,null,null,null,0,{"$f":"AV216","v":0},{"$f":"IFERROR(ROUNDDOWN(AV216/$AT$3,1),\"\")","v":""}]
[null,null,null,null,null,null,null,null,null,null,null,null,null,null,null,null,null,null,null,null,null,null,null,null,null,null,null,null,null,null,null,null,null,null,null,null,null,null,null,null,null,null,null,null,null,null,null,0]
[null,103,null,null,null,null,null,null,null,null,null,null,null,null,null,null,null,null,null,null,null,null,null,null,null,null,null,null,null,null,null,null,null,null,null,null,null,null,null,null,null,null,null,null,null,null,null,0,{"$f":"AV218","v":0},{"$f":"IFERROR(ROUNDDOWN(AV218/$AT$3,1),\"\")","v":""}]
[null,null,null,null,null,null,null,null,null,null,null,null,null,null,null,null,null,null,null,null,null,null,null,null,null,null,null,null,null,null,null,null,null,null,null,null,null,null,null,null,null,null,null,null,null,null,null,0]
[null,104,null,null,null,null,null,null,null,null,null,null,null,null,null,null,null,null,null,null,null,null,null,null,null,null,null,null,null,null,null,null,null,null,null,null,null,null,null,null,null,null,null,null,null,null,null,0,{"$f":"AV220","v":0},{"$f":"IFERROR(ROUNDDOWN(AV220/$AT$3,1),\"\")","v":""}]
[null,null,null,null,null,null,null,null,null,null,null,null,null,null,null,null,null,null,null,null,null,null,null,null,null,null,null,null,null,null,null,null,null,null,null,null,null,null,null,null,null,null,null,null,null,null,null,0]
[null,105,null,null,null,null,null,null,null,null,null,null,null,null,null,null,null,null,null,null,null,null,null,null,null,null,null,null,null,null,null,null,null,null,null,null,null,null,null,null,null,null,null,null,null,null,null,0,{"$f":"AV222","v":0},{"$f":"IFERROR(ROUNDDOWN(AV222/$AT$3,1),\"\")","v":""}]
[null,null,null,null,null,null,null,null,null,null,null,null,null,null,null,null,null,null,null,null,null,null,null,null,null,null,null,null,null,null,null,null,null,null,null,null,null,null,null,null,null,null,null,null,null,null,null,0]

{"sheet":"P2-2","index":4,"n_rows":222,"n_cols":65,"rows_kept":222,"cut":false,"hidden":false,"merged":[[220,42,221,42],[220,43,221,43],[220,44,221,44],[220,45,221,45],[218,44,219,44],[218,45,219,45],[218,46,219,46],[220,16,221,16],[220,17,221,17],[220,18,221,18],[220,19,221,19],[220,20,221,20],[220,21,221,21],[220,22,221,22],[220,23,221,23],[220,24,221,24],[220,25,221,25],[220,26,221,26],[220,27,221,27],[220,28,221,28],[220,29,221,29],[220,30,221,30],[220,31,221,31],[220,32,221,32],[220,33,221,33],[220,34,221,34],[216,39,217,39],[216,40,217,40],[216,41,217,41],[216,42,217,42],[216,43,217,43],[216,44,217,44],[216,45,217,45],[216,46,217,46],[218,16,219,16],[218,17,219,17],[218,18,219,18],[218,19,219,19],[218,20,219,20],[218,21,219,21],[218,22,219,22],[218,23,219,23],[218,24,219,24],[218,25,219,25],[218,26,219,26],[218,27,219,27],[218,28,219,28],[218,29,219,29],[218,30,219,30],[218,31,219,31],[216,23,217,23],[216,24,217,24],[216,25,217,25],[216,26,217,26],[216,27,217,27],[216,28,217,28],[216,29,217,29],[216,30,217,30],[216,31,217,31],[216,32,217,32],[216,33,217,33],[216,34,217,34],[216,35,217,35],[216,36,217,36],[216,37,217,37],[216,38,217,38],[214,37,215,37],[214,38,215,38],[212,22,213,22],[212,23,213,23],[212,24,213,24],[212,25,213,25],[212,26,213,26],[212,27,213,27],[212,28,213,28],[214,45,215,45],[214,28,215,28],[214,29,215,29],[214,30,215,30],[214,31,215,31],[214,32,215,32],[214,33,215,33],[214,34,215,34],[214,35,215,35],[214,36,215,36],[212,38,213,38],[212,39,213,39],[212,40,213,40],[212,41,213,41],[212,42,213,42],[212,43,213,43],[212,44,213,44],[212,45,213,45],[214,39,215,39],[214,40,215,40],[214,41,215,41],[214,42,215,42],[214,43,215,43],[214,44,215,44],[208,37,209,37],[208,38,209,38],[208,39,209,39],[208,40,209,40],[208,41,209,41],[208,42,209,42],[208,43,209,43],[208,44,209,44],[212,46,213,46],[212,29,213,29],[212,30,213,30],[212,31,213,31],[212,32,213,32],[212,33,213,33],[212,34,213,34],[212,35,213,35],[212,36,213,36],[212,37,213,37],[208,23,209,23],[208,24,209,24],[208,25,209,25],[208,26,209,26],[208,27,209,27],[208,28,209,28],[208,29,209,29],[208,30,209,30],[208,31,209,31],[208,32,209,32],[208,33,209,33],[208,34,209,34],[208,35,209,35],[208,36,209,36],[208,46,209,46],[210,16,211,16],[210,17,211,17],[210,18,211,18],[210,19,211,19],[210,20,211,20],[210,21,211,21],[210,22,211,22],[210,23,211,23],[210,24,211,24],[210,25,211,25],[210,26,211,26],[210,27,211,27],[210,28,211,28],[210,29,211,29],[210,30,211,30],[210,31,211,31],[210,32,211,32],[204,39,205,39],[204,40,205,40],[204,41,205,41],[204,42,205,42],[204,43,205,43],[204,44,205,44],[204,45,205,45],[204,46,205,46],[206,16,207,16],[206,17,207,17],[206,18,207,18],[206,19,207,19],[206,20,207,20],[206,21,207,21],[206,22,207,22],[206,23,207,23],[206,24,207,24],[206,25,207,25],[206,26,207,26],[206,27,207,27],[206,28,207,28],[206,29,207,29],[206,30,207,30],[206,31,207,31],[206,44,207,44],[206,45,207,45],[206,46,207,46],[204,23,205,23],[204,24,205,24],[204,25,205,25],[204,26,205,26],[204,27,205,27],[204,28,205,28],[204,29,205,29],[204,30,205,30],[204,31,205,31],[204,32,205,32],[204,33,205,33],[204,34,205,34],[204,35,205,35],[204,36,205,36],[204,37,205,37],[204,38,205,38],[202,37,203,37],[202,38,203,38],[200,25,201,25],[200,26,201,26],[200,27,201,27],[200,28,201,28],[202,45,203,45],[202,28,203,28],[202,29,203,29],[202,30,203,30],[202,31,203,31],[202,32,203,32],[202,33,203,33],[202,34,203,34],[202,35,203,35],[202,36,203,36],[200,38,201,38],[200,39,201,39],[200,40,201,40],[200,41,201,41],[200,42,201,42],[200,43,201,43],[200,44,201,44],[200,45,201,45],[202,39,203,39],[202,40,203,40],[202,41,203,41],[202,42,203,42],[202,43,203,43],[202,44,203,44],[196,37,197,37],[196,38,197,38],[196,39,197,39],[196,40,197,40],[196,41,197,41],[196,42,197,42],[196,43,197,43],[196,44,197,44],[200,46,201,46],[200,29,201,29],[200,30,201,30],[200,31,201,31],[200,32,201,32],[200,33,201,33],[200,34,201,34],[200,35,201,35],[200,36,201,36],[200,37,201,37],[196,35,197,35],[196,36,197,36],[196,19,197,19],[196,20,197,20],[196,21,197,21],[196,22,197,22],[196,23,197,23],[196,24,197,24],[196,25,197,25],[196,26,197,26],[196,27,197,27],[196,46,197,46],[198,16,199,16],[198,17,199,17],[198,18,199,18],[198,19,199,19],[198,20,199,20],[198,21,199,21],[198,22,199,22],[198,23,199,23],[198,24,199,24],[198,25,199,25],[198,26,199,26],[198,27,199,27],[198,28,199,28],[198,29,199,29],[198,30,199,30],[198,31,199,31],[198,32,199,32],[198,33,199,33],[198,34,199,34],[198,35,199,35],[192,23,193,23],[192,24,193,24],[192,25,193,25],[192,26,193,26],[192,45,193,45],[192,46,193,46],[194,16,195,16],[194,17,195,17],[194,18,195,18],[194,19,195,19],[194,20,195,20],[194,21,195,21],[194,22,195,22],[194,23,195,23],[194,24,195,24],[194,25,195,25],[194,26,195,26],[194,27,195,27],[194,28,195,28],[194,29,195,29],[194,30,195,30],[194,31,195,31],[194,32,195,32],[194,33,195,33],[194,34,195,34],[194,35,195,35],[194,36,195,36],[194,37,195,37],[192,36,193,36],[192,37,193,37],[192,38,193,38],[192,39,193,39],[188,35,189,35],[188,36,189,36],[188,37,189,37],[188,38,189,38],[188,39,189,39],[188,40,189,40],[188,41,189,41],[188,42,189,42],[192,44,193,44],[192,27,193,27],[192,28,193,28],[192,29,193,29],[192,30,193,30],[192,31,193,31],[192,32,193,32],[192,33,193,33],[192,34,193,34],[192,35,193,35],[192,40,193,40],[192,41,193,41],[192,42,193,42],[192,43,193,43],[188,33,189,33],[188,34,189,34],[188,17,189,17],[188,18,189,18],[188,19,189,19],[188,20,189,20],[188,21,189,21],[188,22,189,22],[188,23,189,23],[188,24,189,24],[188,25,189,25],[188,44,189,44],[188,45,189,45],[188,46,189,46],[190,16,191,16],[190,17,191,17],[190,18,191,18],[190,19,191,19],[190,20,191,20],[190,21,191,21],[190,22,191,22],[190,23,191,23],[190,24,191,24],[190,25,191,25],[190,26,191,26],[190,27,191,27],[190,28,191,28],[190,29,191,29],[190,30,191,30],[190,31,191,31],[190,32,191,32],[190,33,191,33],[184,43,185,43],[184,44,185,44],[184,45,185,45],[184,46,185,46],[186,16,187,16],[186,17,187,17],[186,18,187,18],[186,19,187,19],[186,20,187,20],[186,21,187,21],[186,22,187,22],[186,23,187,23],[186,24,187,24],[186,25,187,25],[186,26,187,26],[186,27,187,27],[186,28,187,28],[186,29,187,29],[186,30,187,30],[186,31,187,31],[186,32,187,32],[186,33,187,33],[186,34,187,34],[186,35,187,35],[184,34,185,34],[184,35,185,35],[184,36,185,36],[184,37,185,37],[184,38,185,38],[184,39,185,39],[184,40,185,40],[184,41,185,41],[184,42,185,42],[184,25,185,25],[184,26,185,26],[184,27,185,27],[184,28,185,28],[184,29,185,29],[184,30,185,30],[184,31,185,31],[184,32,185,32],[184,33,185,33],[184,16,185,16],[184,17,185,17],[184,18,185,18],[184,19,185,19],[184,20,185,20],[184,21,185,21],[184,22,185,22],[184,23,185,23],[184,24,185,24],[180,45,181,45],[180,46,181,46],[182,16,183,16],[182,17,183,17],[182,18,183,18],[182,19,183,19],[182,20,183,20],[182,21,183,21],[182,22,183,22],[182,23,183,23],[182,24,183,24],[182,25,183,25],[182,26,183,26],[182,27,183,27],[182,28,183,28],[182,29,183,29],[182,30,183,30],[182,31,183,31],[182,32,183,32],[182,33,183,33],[182,34,183,34],[180,33,181,33],[180,34,181,34],[180,35,181,35],[180,36,181,36],[180,37,181,37],[180,38,181,38],[180,39,181,39],[180,40,181,40],[180,19,181,19],[180,20,181,20],[180,21,181,21],[180,22,181,22],[180,23,181,23],[180,24,181,24],[180,25,181,25],[180,26,181,26],[180,27,181,27],[180,28,181,28],[180,29,181,29],[180,30,181,30],[180,31,181,31],[180,32,181,32],[178,31,179,31],[178,32,179,32],[178,33,179,33],[176,33,177,33],[176,34,177,34],[176,35,177,35],[176,36,177,36],[176,37,177,37],[174,36,175,36],[174,37,175,37],[174,38,175,38],[174,39,175,39],[174,40,175,40],[174,41,175,41],[180,41,181,41],[178,40,179,40],[178,41,179,41],[178,42,179,42],[178,43,179,43],[178,44,179,44],[178,34,179,34],[178,35,179,35],[178,36,179,36],[178,37,179,37],[180,42,181,42],[180,43,181,43],[180,44,181,44],[176,16,177,16],[176,17,177,17],[176,18,177,18],[176,19,177,19],[176,20,177,20],[176,21,177,21],[176,22,177,22],[176,23,177,23],[176,24,177,24],[176,25,177,25],[176,26,177,26],[176,27,177,27],[176,28,177,28],[176,29,177,29],[176,30,177,30],[176,31,177,31],[176,32,177,32],[174,42,175,42],[174,43,175,43],[174,44,175,44],[172,43,173,43],[172,44,173,44],[172,45,173,45],[172,46,173,46],[174,16,175,16],[174,17,175,17],[174,18,175,18],[174,19,175,19],[174,20,175,20],[174,21,175,21],[174,22,175,22],[174,23,175,23],[174,24,175,24],[174,25,175,25],[174,26,175,26],[174,27,175,27],[174,28,175,28],[174,29,175,29],[174,30,175,30],[174,31,175,31],[174,32,175,32],[174,33,175,33],[174,34,175,34],[174,35,175,35],[174,45,175,45],[174,46,175,46],[170,39,171,39],[170,40,171,40],[170,41,171,41],[170,42,171,42],[170,43,171,43],[170,44,171,44],[170,45,171,45],[170,46,171,46],[172,16,173,16],[172,17,173,17],[172,18,173,18],[172,19,173,19],[172,20,173,20],[172,21,173,21],[172,22,173,22],[172,23,173,23],[172,24,173,24],[172,25,173,25],[172,26,173,26],[172,27,173,27],[172,28,173,28],[172,29,173,29],[172,30,173,30],[172,31,173,31],[170,23,171,23],[170,24,171,24],[170,25,171,25],[170,26,171,26],[170,27,171,27],[170,28,171,28],[170,29,171,29],[170,30,171,30],[170,31,171,31],[170,32,171,32],[170,33,171,33],[170,34,171,34],[170,35,171,35],[170,36,171,36],[170,37,171,37],[170,38,171,38],[168,37,169,37],[168,38,169,38],[166,22,167,22],[166,23,167,23],[166,24,167,24],[166,25,167,25],[166,26,167,26],[166,27,167,27],[166,28,167,28],[168,45,169,45],[168,28,169,28],[168,29,169,29],[168,30,169,30],[168,31,169,31],[168,32,169,32],[168,33,169,33],[168,34,169,34],[168,35,169,35],[168,36,169,36],[166,38,167,38],[166,39,167,39],[166,40,167,40],[166,41,167,41],[166,42,167,42],[166,43,167,43],[166,44,167,44],[166,45,167,45],[168,39,169,39],[168,40,169,40],[168,41,169,41],[168,42,169,42],[168,43,169,43],[168,44,169,44],[162,37,163,37],[162,38,163,38],[162,39,163,39],[162,40,163,40],[162,41,163,41],[162,42,163,42],[162,43,163,43],[162,44,163,44],[166,46,167,46],[166,29,167,29],[166,30,167,30],[166,31,167,31],[166,32,167,32],[166,33,167,33],[166,34,167,34],[166,35,167,35],[166,36,167,36],[166,37,167,37],[162,23,163,23],[162,24,163,24],[162,25,163,25],[162,26,163,26],[162,27,163,27],[162,28,163,28],[162,29,163,29],[162,30,163,30],[162,31,163,31],[162,32,163,32],[162,33,163,33],[162,34,163,34],[162,35,163,35],[162,36,163,36],[162,46,163,46],[164,16,165,16],[164,17,165,17],[164,18,165,18],[164,19,165,19],[164,20,165,20],[164,21,165,21],[164,22,165,22],[164,23,165,23],[164,24,165,24],[164,25,165,25],[164,26,165,26],[164,27,165,27],[164,28,165,28],[164,29,165,29],[164,30,165,30],[164,31,165,31],[164,32,165,32],[158,39,159,39],[158,40,159,40],[158,41,159,41],[158,42,159,42],[158,43,159,43],[158,44,159,44],[158,45,159,45],[158,46,159,46],[160,16,161,16],[160,17,161,17],[160,18,161,18],[160,19,161,19],[160,20,161,20],[160,21,161,21],[160,22,161,22],[160,23,161,23],[160,24,161,24],[160,25,161,25],[160,26,161,26],[160,27,161,27],[160,28,161,28],[160,29,161,29],[160,30,161,30],[160,31,161,31],[160,44,161,44],[160,45,161,45],[160,46,161,46],[158,23,159,23],[158,24,159,24],[158,25,159,25],[158,26,159,26],[158,27,159,27],[158,28,159,28],[158,29,159,29],[158,30,159,30],[158,31,159,31],[158,32,159,32],[158,33,159,33],[158,34,159,34],[158,35,159,35],[158,36,159,36],[158,37,159,37],[158,38,159,38],[156,37,157,37],[156,38,157,38],[154,22,155,22],[154,23,155,23],[154,24,155,24],[154,25,155,25],[154,26,155,26],[154,27,155,27],[154,28,155,28],[156,45,157,45],[156,28,157,28],[156,29,157,29],[156,30,157,30],[156,31,157,31],[156,32,157,32],[156,33,157,33],[156,34,157,34],[156,35,157,35],[156,36,157,36],[154,38,155,38],[154,39,155,39],[154,40,155,40],[154,41,155,41],[154,42,155,42],[154,43,155,43],[154,44,155,44],[154,45,155,45],[156,39,157,39],[156,40,157,40],[156,41,157,41],[156,42,157,42],[156,43,157,43],[156,44,157,44],[150,37,151,37],[150,38,151,38],[150,39,151,39],[150,40,151,40],[150,41,151,41],[150,42,151,42],[150,43,151,43],[150,44,151,44],[154,46,155,46],[154,29,155,29],[154,30,155,30],[154,31,155,31],[154,32,155,32],[154,33,155,33],[154,34,155,34],[154,35,155,35],[154,36,155,36],[154,37,155,37],[150,23,151,23],[150,24,151,24],[150,25,151,25],[150,26,151,26],[150,27,151,27],[150,28,151,28],[150,29,151,29],[150,30,151,30],[150,31,151,31],[150,32,151,32],[150,33,151,33],[150,34,151,34],[150,35,151,35],[150,36,151,36],[150,46,151,46],[152,16,153,16],[152,17,153,17],[152,18,153,18],[152,19,153,19],[152,20,153,20],[152,21,153,21],[152,22,153,22],[152,23,153,23],[152,24,153,24],[152,25,153,25],[152,26,153,26],[152,27,153,27],[152,28,153,28],[152,29,153,29],[152,30,153,30],[152,31,153,31],[152,32,153,32],[144,42,145,42],[144,43,145,43],[144,44,145,44],[146,39,147,39],[146,40,147,40],[146,41,147,41],[146,42,147,42],[146,43,147,43],[146,44,147,44],[146,45,147,45],[146,46,147,46],[148,16,149,16],[148,17,149,17],[148,18,149,18],[148,19,149,19],[148,20,149,20],[148,21,149,21],[148,22,149,22],[148,23,149,23],[148,24,149,24],[148,25,149,25],[148,26,149,26],[148,27,149,27],[148,28,149,28],[148,29,149,29],[148,30,149,30],[148,31,149,31],[148,44,149,44],[148,45,149,45],[148,46,149,46],[146,23,147,23],[146,24,147,24],[146,25,147,25],[146,26,147,26],[146,27,147,27],[146,28,147,28],[146,29,147,29],[146,30,147,30],[146,31,147,31],[146,32,147,32],[146,33,147,33],[146,34,147,34],[146,35,147,35],[146,36,147,36],[146,37,147,37],[146,38,147,38],[144,37,145,37],[144,38,145,38],[142,36,143,36],[142,37,143,37],[142,20,143,20],[142,21,143,21],[142,22,143,22],[142,23,143,23],[142,24,143,24],[142,25,143,25],[142,26,143,26],[142,27,143,27],[142,28,143,28],[144,45,145,45],[144,28,145,28],[144,29,145,29],[144,30,145,30],[144,31,145,31],[144,32,145,32],[144,33,145,33],[144,34,145,34],[144,35,145,35],[144,36,145,36],[142,38,143,38],[142,39,143,39],[142,40,143,40],[142,41,143,41],[142,42,143,42],[142,43,143,43],[142,44,143,44],[142,45,143,45],[144,39,145,39],[144,40,145,40],[144,41,145,41],[138,46,139,46],[140,16,141,16],[140,17,141,17],[140,18,141,18],[140,19,141,19],[140,20,141,20],[140,21,141,21],[140,22,141,22],[140,23,141,23],[140,24,141,24],[140,25,141,25],[140,26,141,26],[140,27,141,27],[140,28,141,28],[140,29,141,29],[140,30,141,30],[140,31,141,31],[140,32,141,32],[140,33,141,33],[140,34,141,34],[140,35,141,35],[140,36,141,36],[140,37,141,37],[140,38,141,38],[138,37,139,37],[138,38,139,38],[138,39,139,39],[138,40,139,40],[138,41,139,41],[138,42,139,42],[138,43,139,43],[138,44,139,44],[138,45,139,45],[138,28,139,28],[138,29,139,29],[138,30,139,30],[138,31,139,31],[138,32,139,32],[138,33,139,33],[138,34,139,34],[138,35,139,35],[138,36,139,36],[138,19,139,19],[138,20,139,20],[138,21,139,21],[138,22,139,22],[138,23,139,23],[138,24,139,24],[138,25,139,25],[138,26,139,26],[138,27,139,27],[136,24,137,24],[136,25,137,25],[136,26,137,26],[136,27,137,27],[136,28,137,28],[136,29,137,29],[136,30,137,30],[136,31,137,31],[136,32,137,32],[136,33,137,33],[136,34,137,34],[136,35,137,35],[136,36,137,36],[136,37,137,37],[134,36,135,36],[134,37,135,37],[134,38,135,38],[132,22,133,22],[132,23,133,23],[132,24,133,24],[132,25,133,25],[132,26,133,26],[132,27,133,27],[132,28,133,28],[134,44,135,44],[134,27,135,27],[134,28,135,28],[134,29,135,29],[134,30,135,30],[134,31,135,31],[134,32,135,32],[134,33,135,33],[134,34,135,34],[134,35,135,35],[132,38,133,38],[132,39,133,39],[132,40,133,40],[132,41,133,41],[132,42,133,42],[132,43,133,43],[132,44,133,44],[134,39,135,39],[134,40,135,40],[134,41,135,41],[134,42,135,42],[134,43,135,43],[128,37,129,37],[128,38,129,38],[128,39,129,39],[128,40,129,40],[128,41,129,41],[128,42,129,42],[128,43,129,43],[128,44,129,44],[132,45,133,45],[132,46,133,46],[132,29,133,29],[132,30,133,30],[132,31,133,31],[132,32,133,32],[132,33,133,33],[132,34,133,34],[132,35,133,35],[132,36,133,36],[132,37,133,37],[128,23,129,23],[128,24,129,24],[128,25,129,25],[128,26,129,26],[128,27,129,27],[128,28,129,28],[128,29,129,29],[128,30,129,30],[128,31,129,31],[128,32,129,32],[128,33,129,33],[128,34,129,34],[128,35,129,35],[128,36,129,36],[128,46,129,46],[130,16,131,16],[130,17,131,17],[130,18,131,18],[130,19,131,19],[130,20,131,20],[130,21,131,21],[130,22,131,22],[130,23,131,23],[130,24,131,24],[130,25,131,25],[130,26,131,26],[130,27,131,27],[130,28,131,28],[130,29,131,29],[130,30,131,30]],"merged_total":4010,"flags":["merged_cut"]}
[]
[]
[null,"２　職員の勤務実績（既存資料の添付可）",null,null,null,null,null,null,null,null,null,null,null,{"$f":"YEAR(EOMONTH(DATE(SUM(2018+【共通】!L9),【共通】!N9,【共通】!P9),-2))","v":2026},null,null,null,null,"（",{"$f":"IFERROR(\"令和　\"&VLOOKUP(N3,BL5:BM12,2,FALSE),\"\")","v":"令和　8"},null,"年",{"$f":"MONTH(EOMONTH(DATE(2023,【共通】!N9,【共通】!P9),-3))","v":4},"月分実績",null,"）","当該事業所の常勤の職員が当該月に勤務すべき時間数",null,null,null,null,null,null,null,null,null,null,null,null," 時間／日",null,null,null," 時間／週",null,null,null," 時間／月",null,{"$f":"\"1 / \"&COUNTA(C$7,C$49,#REF!,C$135,C$179)","v":"1 / 2"}]
[]
[null,null,"職　　種",null,null,null,null,null,"氏　　名",null,null,null,null,"勤務\n形態",null,null,{"$f":"DATE($N$3,$W$3,1)","v":"2026-04-01"},{"$f":"Q5+1","v":"2026-04-02"},{"$f":"R5+1","v":"2026-04-03"},{"$f":"S5+1","v":"2026-04-04"},"2026-04-05","2026-04-06","2026-04-07","2026-04-08","2026-04-09","2026-04-10","2026-04-11","2026-04-12","2026-04-13","2026-04-14","2026-04-15","2026-04-16","2026-04-17","2026-04-18","2026-04-19","2026-04-20","2026-04-21","2026-04-22","2026-04-23","2026-04-24","2026-04-25","2026-04-26","2026-04-27",{"$f":"AQ5+1","v":"2026-04-28"},{"$f":"IF(DAY(DATE($N$3,$W$3,29))=29,AR5+1,\"\")","v":"2026-04-29"},{"$f":"IF(DAY(DATE($N$3,$W$3,30))=30,AS5+1,\"\")","v":"2026-04-30"},{"$f":"IF(DAY(DATE($N$3,$W$3,31))=31,AT5+1,\"\")","v":""},"勤務日数",null,"常勤換算",null,null,null,null,null,null,null,null,null,null,null,null,null,2023,5]
[null,null,null,null,null,null,null,null,null,null,null,null,null,null,null,null,{"$f":"VLOOKUP(WEEKDAY(Q5,2),$BA$7:$BB$14,2,FALSE)","v":"水"},"木","金","土","日","月","火","水","木","金","土","日","月","火","水","木","金","土","日","月","火","水","木","金","土","日","月","火",{"$f":"IF(AS5=\"\",\"\",VLOOKUP(WEEKDAY(AS5,2),$BA$7:$BB$14,2,FALSE))","v":"水"},{"$f":"IF(AT5=\"\",\"\",VLOOKUP(WEEKDAY(AT5,2),$BA$7:$BB$14,2,FALSE))","v":"木"},{"$f":"IF(AU5=\"\",\"\",VLOOKUP(WEEKDAY(AU5,2),$BA$7:$BB$14,2,FALSE))","v":""},"勤務時間",null,null,null,null,null,null,null,null,null,null,null,null,null,null,null,{"$f":"BL5+1","v":2024},{"$f":"BM5+1","v":6}]
[null,"例","管理者",null,null,null,null,null,"○○　○○",null,null,null,null,"常勤\n兼務",null,null,7.75,7.75,7.75,null,null,7.75,7.75,7.75,7.75,7.75,null,null,7.75,7.75,7.75,7.75,7.75,null,null,7.75,7.75,7.75,7.75,7.75,null,null,7.75,7.75,7.75,7.75,null,{"$f":"COUNTA(Q7:AU7)","v":22},{"$f":"AV8","v":170.5},1.1000000000000001,null,null,1,"月","管理者",null,null,null,"常勤\n専従","常勤\n兼務","非常勤\n専従","非常勤\n兼務",null,{"$f":"BL6+1","v":2025},7]
[null,null,null,null,null,null,null,null,null,null,null,null,null,null,null,null,null,null,null,null,null,null,null,null,null,null,null,null,null,null,null,null,null,null,null,null,null,null,null,null,null,null,null,null,null,null,null,{"$f":"SUM(Q7:AU8)","v":170.5},null,null,null,null,2,"火","サービス提供責任者",null,null,null,null,null,null,null,null,2026,8]
[null,"例","サービス提供責任者",null,null,null,null,null,"××　××",null,null,null,null,"常勤\n専従",null,null,6.75,6.75,6.75,null,null,6.75,6.75,6.75,6.75,6.75,null,null,6.75,6.75,6.75,6.75,6.75,null,null,6.75,6.75,6.75,6.75,6.75,null,null,6.75,6.75,6.75,6.75,null,{"$f":"COUNTA(Q9:AU9)","v":22},{"$f":"AV10","v":148.5},0.9,null,null,3,"水","ヘルパー",null,null,null,null,null,null,null,null,2027,9]
[null,null,null,null,null,null,null,null,null,null,null,null,null,null,null,null,null,null,null,null,null,null,null,null,null,null,null,null,null,null,null,null,null,null,null,null,null,null,null,null,null,null,null,null,null,null,null,{"$f":"SUM(Q9:AU10)","v":148.5},null,null,null,null,4,"木","登録ヘルパー",null,null,null,null,null,null,null,null,2028,10]
[null,"例","ヘルパー",null,null,null,null,null,"△△　△△",null,null,null,null,"非常勤\n兼務",null,null,null,2.75,2.75,null,null,1.5,1.5,null,2.75,2.75,null,null,1.5,1.5,null,2.75,2.75,null,null,1.5,1.5,null,2.75,2.75,null,null,1.5,1.5,null,2.75,null,{"$f":"COUNTA(Q11:AU11)","v":17},{"$f":"AV12","v":36.75},0.2,null,null,5,"金",null,null,null,null,null,null,null,null,null,2029,11]
[null,null,null,null,null,null,null,null,null,null,null,null,null,null,null,null,null,null,null,null,null,null,null,null,null,null,null,null,null,null,null,null,null,null,null,null,null,null,null,null,null,null,null,null,null,null,null,{"$f":"SUM(Q11:AU12)","v":36.75},null,null,null,null,6,"土",null,null,null,null,null,null,null,null,null,2030,12]
[null,{"$f":"ROW(B1)","v":1},null,null,null,null,null,null,null,null,null,null,null,null,null,null,null,null,null,null,null,null,null,null,null,null,null,null,null,null,null,null,null,null,null,null,null,null,null,null,null,null,null,null,null,null,null,{"$f":"COUNTA(Q13:AU13)","v":0},{"$f":"AV14","v":0},{"$f":"IFERROR(ROUNDDOWN(AV14/$AT$3,1),\"\")","v":""},null,null,7,"日"]
[null,null,null,null,null,null,null,null,null,null,null,null,null,null,null,null,null,null,null,null,null,null,null,null,null,null,null,null,null,null,null,null,null,null,null,null,null,null,null,null,null,null,null,null,null,null,null,{"$f":"SUM(Q13:AU13)","v":0}]
[null,{"$f":"B13+1","v":2},null,null,null,null,null,null,null,null,null,null,null,null,null,null,null,null,null,null,null,null,null,null,null,null,null,null,null,null,null,null,null,null,null,null,null,null,null,null,null,null,null,null,null,null,null,{"$f":"COUNTA(Q15:AU15)","v":0},{"$f":"AV16","v":0},{"$f":"IFERROR(ROUNDDOWN(AV16/$AT$3,1),\"\")","v":""}]
[null,null,null,null,null,null,null,null,null,null,null,null,null,null,null,null,null,null,null,null,null,null,null,null,null,null,null,null,null,null,null,null,null,null,null,null,null,null,null,null,null,null,null,null,null,null,null,{"$f":"SUM(Q15:AU15)","v":0}]
[null,{"$f":"B15+1","v":3},null,null,null,null,null,null,null,null,null,null,null,null,null,null,null,null,null,null,null,null,null,null,null,null,null,null,null,null,null,null,null,null,null,null,null,null,null,null,null,null,null,null,null,null,null,{"$f":"COUNTA(Q17:AU17)","v":0},{"$f":"AV18","v":0},{"$f":"IFERROR(ROUNDDOWN(AV18/$AT$3,1),\"\")","v":""}]
[null,null,null,null,null,null,null,null,null,null,null,null,null,null,null,null,null,null,null,null,null,null,null,null,null,null,null,null,null,null,null,null,null,null,null,null,null,null,null,null,null,null,null,null,null,null,null,{"$f":"SUM(Q17:AU17)","v":0}]
[null,{"$f":"B17+1","v":4},null,null,null,null,null,null,null,null,null,null,null,null,null,null,null,null,null,null,null,null,null,null,null,null,null,null,null,null,null,null,null,null,null,null,null,null,null,null,null,null,null,null,null,null,null,{"$f":"COUNTA(Q19:AU19)","v":0},{"$f":"AV20","v":0},{"$f":"IFERROR(ROUNDDOWN(AV20/$AT$3,1),\"\")","v":""}]
[null,null,null,null,null,null,null,null,null,null,null,null,null,null,null,null,null,null,null,null,null,null,null,null,null,null,null,null,null,null,null,null,null,null,null,null,null,null,null,null,null,null,null,null,null,null,null,{"$f":"SUM(Q19:AU19)","v":0}]
[null,{"$f":"B19+1","v":5},null,null,null,null,null,null,null,null,null,null,null,null,null,null,null,null,null,null,null,null,null,null,null,null,null,null,null,null,null,null,null,null,null,null,null,null,null,null,null,null,null,null,null,null,null,{"$f":"COUNTA(Q21:AU21)","v":0},{"$f":"AV22","v":0},{"$f":"IFERROR(ROUNDDOWN(AV22/$AT$3,1),\"\")","v":""}]
[null,null,null,null,null,null,null,null,null,null,null,null,null,null,null,null,null,null,null,null,null,null,null,null,null,null,null,null,null,null,null,null,null,null,null,null,null,null,null,null,null,null,null,null,null,null,null,{"$f":"SUM(Q21:AU21)","v":0}]
[null,{"$f":"B21+1","v":6},null,null,null,null,null,null,null,null,null,null,null,null,null,null,null,null,null,null,null,null,null,null,null,null,null,null,null,null,null,null,null,null,null,null,null,null,null,null,null,null,null,null,null,null,null,0,{"$f":"AV24","v":0},{"$f":"IFERROR(ROUNDDOWN(AV24/$AT$3,1),\"\")","v":""}]
[null,null,null,null,null,null,null,null,null,null,null,null,null,null,null,null,null,null,null,null,null,null,null,null,null,null,null,null,null,null,null,null,null,null,null,null,null,null,null,null,null,null,null,null,null,null,null,0]
[null,{"$f":"B23+1","v":7},null,null,null,null,null,null,null,null,null,null,null,null,null,null,null,null,null,null,null,null,null,null,null,null,null,null,null,null,null,null,null,null,null,null,null,null,null,null,null,null,null,null,null,null,null,0,{"$f":"AV26","v":0},{"$f":"IFERROR(ROUNDDOWN(AV26/$AT$3,1),\"\")","v":""}]
[null,null,null,null,null,null,null,null,null,null,null,null,null,null,null,null,null,null,null,null,null,null,null,null,null,null,null,null,null,null,null,null,null,null,null,null,null,null,null,null,null,null,null,null,null,null,null,0]
[null,{"$f":"B25+1","v":8},null,null,null,null,null,null,null,null,null,null,null,null,null,null,null,null,null,null,null,null,null,null,null,null,null,null,null,null,null,null,null,null,null,null,null,null,null,null,null,null,null,null,null,null,null,0,{"$f":"AV28","v":0},{"$f":"IFERROR(ROUNDDOWN(AV28/$AT$3,1),\"\")","v":""}]
[null,null,null,null,null,null,null,null,null,null,null,null,null,null,null,null,null,null,null,null,null,null,null,null,null,null,null,null,null,null,null,null,null,null,null,null,null,null,null,null,null,null,null,null,null,null,null,0]
[null,{"$f":"B27+1","v":9},null,null,null,null,null,null,null,null,null,null,null,null,null,null,null,null,null,null,null,null,null,null,null,null,null,null,null,null,null,null,null,null,null,null,null,null,null,null,null,null,null,null,null,null,null,0,{"$f":"AV30","v":0},{"$f":"IFERROR(ROUNDDOWN(AV30/$AT$3,1),\"\")","v":""}]
[null,null,null,null,null,null,null,null,null,null,null,null,null,null,null,null,null,null,null,null,null,null,null,null,null,null,null,null,null,null,null,null,null,null,null,null,null,null,null,null,null,null,null,null,null,null,null,0]
[null,{"$f":"B29+1","v":10},null,null,null,null,null,null,null,null,null,null,null,null,null,null,null,null,null,null,null,null,null,null,null,null,null,null,null,null,null,null,null,null,null,null,null,null,null,null,null,null,null,null,null,null,null,0,{"$f":"AV32","v":0},{"$f":"IFERROR(ROUNDDOWN(AV32/$AT$3,1),\"\")","v":""}]
[null,null,null,null,null,null,null,null,null,null,null,null,null,null,null,null,null,null,null,null,null,null,null,null,null,null,null,null,null,null,null,null,null,null,null,null,null,null,null,null,null,null,null,null,null,null,null,0]
[null,{"$f":"B31+1","v":11},null,null,null,null,null,null,null,null,null,null,null,null,null,null,null,null,null,null,null,null,null,null,null,null,null,null,null,null,null,null,null,null,null,null,null,null,null,null,null,null,null,null,null,null,null,0,{"$f":"AV34","v":0},{"$f":"IFERROR(ROUNDDOWN(AV34/$AT$3,1),\"\")","v":""}]
[null,null,null,null,null,null,null,null,null,null,null,null,null,null,null,null,null,null,null,null,null,null,null,null,null,null,null,null,null,null,null,null,null,null,null,null,null,null,null,null,null,null,null,null,null,null,null,0]
[null,{"$f":"B33+1","v":12},null,null,null,null,null,null,null,null,null,null,null,null,null,null,null,null,null,null,null,null,null,null,null,null,null,null,null,null,null,null,null,null,null,null,null,null,null,null,null,null,null,null,null,null,null,0,{"$f":"AV36","v":0},{"$f":"IFERROR(ROUNDDOWN(AV36/$AT$3,1),\"\")","v":""}]
[null,null,null,null,null,null,null,null,null,null,null,null,null,null,null,null,null,null,null,null,null,null,null,null,null,null,null,null,null,null,null,null,null,null,null,null,null,null,null,null,null,null,null,null,null,null,null,0]
[null,{"$f":"B35+1","v":13},null,null,null,null,null,null,null,null,null,null,null,null,null,null,null,null,null,null,null,null,null,null,null,null,null,null,null,null,null,null,null,null,null,null,null,null,null,null,null,null,null,null,null,null,null,0,{"$f":"AV38","v":0},{"$f":"IFERROR(ROUNDDOWN(AV38/$AT$3,1),\"\")","v":""}]
[null,null,null,null,null,null,null,null,null,null,null,null,null,null,null,null,null,null,null,null,null,null,null,null,null,null,null,null,null,null,null,null,null,null,null,null,null,null,null,null,null,null,null,null,null,null,null,0]
[null,{"$f":"B37+1","v":14},null,null,null,null,null,null,null,null,null,null,null,null,null,null,null,null,null,null,null,null,null,null,null,null,null,null,null,null,null,null,null,null,null,null,null,null,null,null,null,null,null,null,null,null,null,0,{"$f":"AV40","v":0},{"$f":"IFERROR(ROUNDDOWN(AV40/$AT$3,1),\"\")","v":""}]
[null,null,null,null,null,null,null,null,null,null,null,null,null,null,null,null,null,null,null,null,null,null,null,null,null,null,null,null,null,null,null,null,null,null,null,null,null,null,null,null,null,null,null,null,null,null,null,0]
[null,{"$f":"B39+1","v":15},null,null,null,null,null,null,null,null,null,null,null,null,null,null,null,null,null,null,null,null,null,null,null,null,null,null,null,null,null,null,null,null,null,null,null,null,null,null,null,null,null,null,null,null,null,0,{"$f":"AV42","v":0},{"$f":"IFERROR(ROUNDDOWN(AV42/$AT$3,1),\"\")","v":""}]
[null,null,null,null,null,null,null,null,null,null,null,null,null,null,null,null,null,null,null,null,null,null,null,null,null,null,null,null,null,null,null,null,null,null,null,null,null,null,null,null,null,null,null,null,null,null,null,0]
[null,{"$f":"B41+1","v":16},null,null,null,null,null,null,null,null,null,null,null,null,null,null,null,null,null,null,null,null,null,null,null,null,null,null,null,null,null,null,null,null,null,null,null,null,null,null,null,null,null,null,null,null,null,0,{"$f":"AV44","v":0},{"$f":"IFERROR(ROUNDDOWN(AV44/$AT$3,1),\"\")","v":""}]
[null,null,null,null,null,null,null,null,null,null,null,null,null,null,null,null,null,null,null,null,null,null,null,null,null,null,null,null,null,null,null,null,null,null,null,null,null,null,null,null,null,null,null,null,null,null,null,0]
[null,{"$f":"B43+1","v":17},null,null,null,null,null,null,null,null,null,null,null,null,null,null,null,null,null,null,null,null,null,null,null,null,null,null,null,null,null,null,null,null,null,null,null,null,null,null,null,null,null,null,null,null,null,0,{"$f":"AV46","v":0},{"$f":"IFERROR(ROUNDDOWN(AV46/$AT$3,1),\"\")","v":""}]
[null,null,null,null,null,null,null,null,null,null,null,null,null,null,null,null,null,null,null,null,null,null,null,null,null,null,null,null,null,null,null,null,null,null,null,null,null,null,null,null,null,null,null,null,null,null,null,0]
[null,{"$f":"B45+1","v":18},null,null,null,null,null,null,null,null,null,null,null,null,null,null,null,null,null,null,null,null,null,null,null,null,null,null,null,null,null,null,null,null,null,null,null,null,null,null,null,null,null,null,null,null,null,0,{"$f":"AV48","v":0},{"$f":"IFERROR(ROUNDDOWN(AV48/$AT$3,1),\"\")","v":""}]
[null,null,null,null,null,null,null,null,null,null,null,null,null,null,null,null,null,null,null,null,null,null,null,null,null,null,null,null,null,null,null,null,null,null,null,null,null,null,null,null,null,null,null,null,null,null,null,0]
[null,{"$f":"B47+1","v":19},null,null,null,null,null,null,null,null,null,null,null,null,null,null,null,null,null,null,null,null,null,null,null,null,null,null,null,null,null,null,null,null,null,null,null,null,null,null,null,null,null,null,null,null,null,0,{"$f":"AV50","v":0},{"$f":"IFERROR(ROUNDDOWN(AV50/$AT$3,1),\"\")","v":""}]
[null,null,null,null,null,null,null,null,null,null,null,null,null,null,null,null,null,null,null,null,null,null,null,null,null,null,null,null,null,null,null,null,null,null,null,null,null,null,null,null,null,null,null,null,null,null,null,0]
[null,{"$f":"B49+1","v":20},null,null,null,null,null,null,null,null,null,null,null,null,null,null,null,null,null,null,null,null,null,null,null,null,null,null,null,null,null,null,null,null,null,null,null,null,null,null,null,null,null,null,null,null,null,0,{"$f":"AV52","v":0},{"$f":"IFERROR(ROUNDDOWN(AV52/$AT$3,1),\"\")","v":""}]
[null,null,null,null,null,null,null,null,null,null,null,null,null,null,null,null,null,null,null,null,null,null,null,null,null,null,null,null,null,null,null,null,null,null,null,null,null,null,null,null,null,null,null,null,null,null,null,0]
[null,21,null,null,null,null,null,null,null,null,null,null,null,null,null,null,null,null,null,null,null,null,null,null,null,null,null,null,null,null,null,null,null,null,null,null,null,null,null,null,null,null,null,null,null,null,null,0,{"$f":"AV54","v":0},{"$f":"IFERROR(ROUNDDOWN(AV54/$AT$3,1),\"\")","v":""}]
[null,null,null,null,null,null,null,null,null,null,null,null,null,null,null,null,null,null,null,null,null,null,null,null,null,null,null,null,null,null,null,null,null,null,null,null,null,null,null,null,null,null,null,null,null,null,null,0]
[null,22,null,null,null,null,null,null,null,null,null,null,null,null,null,null,null,null,null,null,null,null,null,null,null,null,null,null,null,null,null,null,null,null,null,null,null,null,null,null,null,null,null,null,null,null,null,0,{"$f":"AV56","v":0},{"$f":"IFERROR(ROUNDDOWN(AV56/$AT$3,1),\"\")","v":""}]
[null,null,null,null,null,null,null,null,null,null,null,null,null,null,null,null,null,null,null,null,null,null,null,null,null,null,null,null,null,null,null,null,null,null,null,null,null,null,null,null,null,null,null,null,null,null,null,0]
[null,23,null,null,null,null,null,null,null,null,null,null,null,null,null,null,null,null,null,null,null,null,null,null,null,null,null,null,null,null,null,null,null,null,null,null,null,null,null,null,null,null,null,null,null,null,null,0,{"$f":"AV58","v":0},{"$f":"IFERROR(ROUNDDOWN(AV58/$AT$3,1),\"\")","v":""}]
[null,null,null,null,null,null,null,null,null,null,null,null,null,null,null,null,null,null,null,null,null,null,null,null,null,null,null,null,null,null,null,null,null,null,null,null,null,null,null,null,null,null,null,null,null,null,null,0]
[null,24,null,null,null,null,null,null,null,null,null,null,null,null,null,null,null,null,null,null,null,null,null,null,null,null,null,null,null,null,null,null,null,null,null,null,null,null,null,null,null,null,null,null,null,null,null,0,{"$f":"AV60","v":0},{"$f":"IFERROR(ROUNDDOWN(AV60/$AT$3,1),\"\")","v":""}]
[null,null,null,null,null,null,null,null,null,null,null,null,null,null,null,null,null,null,null,null,null,null,null,null,null,null,null,null,null,null,null,null,null,null,null,null,null,null,null,null,null,null,null,null,null,null,null,0]
[null,25,null,null,null,null,null,null,null,null,null,null,null,null,null,null,null,null,null,null,null,null,null,null,null,null,null,null,null,null,null,null,null,null,null,null,null,null,null,null,null,null,null,null,null,null,null,0,{"$f":"AV62","v":0},{"$f":"IFERROR(ROUNDDOWN(AV62/$AT$3,1),\"\")","v":""}]
[null,null,null,null,null,null,null,null,null,null,null,null,null,null,null,null,null,null,null,null,null,null,null,null,null,null,null,null,null,null,null,null,null,null,null,null,null,null,null,null,null,null,null,null,null,null,null,0]
[null,26,null,null,null,null,null,null,null,null,null,null,null,null,null,null,null,null,null,null,null,null,null,null,null,null,null,null,null,null,null,null,null,null,null,null,null,null,null,null,null,null,null,null,null,null,null,0,{"$f":"AV64","v":0},{"$f":"IFERROR(ROUNDDOWN(AV64/$AT$3,1),\"\")","v":""}]
[null,null,null,null,null,null,null,null,null,null,null,null,null,null,null,null,null,null,null,null,null,null,null,null,null,null,null,null,null,null,null,null,null,null,null,null,null,null,null,null,null,null,null,null,null,null,null,0]
[null,27,null,null,null,null,null,null,null,null,null,null,null,null,null,null,null,null,null,null,null,null,null,null,null,null,null,null,null,null,null,null,null,null,null,null,null,null,null,null,null,null,null,null,null,null,null,0,{"$f":"AV66","v":0},{"$f":"IFERROR(ROUNDDOWN(AV66/$AT$3,1),\"\")","v":""}]
[null,null,null,null,null,null,null,null,null,null,null,null,null,null,null,null,null,null,null,null,null,null,null,null,null,null,null,null,null,null,null,null,null,null,null,null,null,null,null,null,null,null,null,null,null,null,null,0]
[null,28,null,null,null,null,null,null,null,null,null,null,null,null,null,null,null,null,null,null,null,null,null,null,null,null,null,null,null,null,null,null,null,null,null,null,null,null,null,null,null,null,null,null,null,null,null,0,{"$f":"AV68","v":0},{"$f":"IFERROR(ROUNDDOWN(AV68/$AT$3,1),\"\")","v":""}]
[null,null,null,null,null,null,null,null,null,null,null,null,null,null,null,null,null,null,null,null,null,null,null,null,null,null,null,null,null,null,null,null,null,null,null,null,null,null,null,null,null,null,null,null,null,null,null,0]
[null,29,null,null,null,null,null,null,null,null,null,null,null,null,null,null,null,null,null,null,null,null,null,null,null,null,null,null,null,null,null,null,null,null,null,null,null,null,null,null,null,null,null,null,null,null,null,0,{"$f":"AV70","v":0},{"$f":"IFERROR(ROUNDDOWN(AV70/$AT$3,1),\"\")","v":""}]
[null,null,null,null,null,null,null,null,null,null,null,null,null,null,null,null,null,null,null,null,null,null,null,null,null,null,null,null,null,null,null,null,null,null,null,null,null,null,null,null,null,null,null,null,null,null,null,0]
[null,30,null,null,null,null,null,null,null,null,null,null,null,null,null,null,null,null,null,null,null,null,null,null,null,null,null,null,null,null,null,null,null,null,null,null,null,null,null,null,null,null,null,null,null,null,null,0,{"$f":"AV72","v":0},{"$f":"IFERROR(ROUNDDOWN(AV72/$AT$3,1),\"\")","v":""}]
[null,null,null,null,null,null,null,null,null,null,null,null,null,null,null,null,null,null,null,null,null,null,null,null,null,null,null,null,null,null,null,null,null,null,null,null,null,null,null,null,null,null,null,null,null,null,null,0]
[null,31,null,null,null,null,null,null,null,null,null,null,null,null,null,null,null,null,null,null,null,null,null,null,null,null,null,null,null,null,null,null,null,null,null,null,null,null,null,null,null,null,null,null,null,null,null,0,{"$f":"AV74","v":0},{"$f":"IFERROR(ROUNDDOWN(AV74/$AT$3,1),\"\")","v":""}]
[null,null,null,null,null,null,null,null,null,null,null,null,null,null,null,null,null,null,null,null,null,null,null,null,null,null,null,null,null,null,null,null,null,null,null,null,null,null,null,null,null,null,null,null,null,null,null,0]
[null,32,null,null,null,null,null,null,null,null,null,null,null,null,null,null,null,null,null,null,null,null,null,null,null,null,null,null,null,null,null,null,null,null,null,null,null,null,null,null,null,null,null,null,null,null,null,0,{"$f":"AV76","v":0},{"$f":"IFERROR(ROUNDDOWN(AV76/$AT$3,1),\"\")","v":""}]
[null,null,null,null,null,null,null,null,null,null,null,null,null,null,null,null,null,null,null,null,null,null,null,null,null,null,null,null,null,null,null,null,null,null,null,null,null,null,null,null,null,null,null,null,null,null,null,0]
[null,33,null,null,null,null,null,null,null,null,null,null,null,null,null,null,null,null,null,null,null,null,null,null,null,null,null,null,null,null,null,null,null,null,null,null,null,null,null,null,null,null,null,null,null,null,null,0,{"$f":"AV78","v":0},{"$f":"IFERROR(ROUNDDOWN(AV78/$AT$3,1),\"\")","v":""}]
[null,null,null,null,null,null,null,null,null,null,null,null,null,null,null,null,null,null,null,null,null,null,null,null,null,null,null,null,null,null,null,null,null,null,null,null,null,null,null,null,null,null,null,null,null,null,null,0]
[null,34,null,null,null,null,null,null,null,null,null,null,null,null,null,null,null,null,null,null,null,null,null,null,null,null,null,null,null,null,null,null,null,null,null,null,null,null,null,null,null,null,null,null,null,null,null,0,{"$f":"AV80","v":0},{"$f":"IFERROR(ROUNDDOWN(AV80/$AT$3,1),\"\")","v":""}]
[null,null,null,null,null,null,null,null,null,null,null,null,null,null,null,null,null,null,null,null,null,null,null,null,null,null,null,null,null,null,null,null,null,null,null,null,null,null,null,null,null,null,null,null,null,null,null,0]
[null,35,null,null,null,null,null,null,null,null,null,null,null,null,null,null,null,null,null,null,null,null,null,null,null,null,null,null,null,null,null,null,null,null,null,null,null,null,null,null,null,null,null,null,null,null,null,0,{"$f":"AV82","v":0},{"$f":"IFERROR(ROUNDDOWN(AV82/$AT$3,1),\"\")","v":""}]
[null,null,null,null,null,null,null,null,null,null,null,null,null,null,null,null,null,null,null,null,null,null,null,null,null,null,null,null,null,null,null,null,null,null,null,null,null,null,null,null,null,null,null,null,null,null,null,0]
[null,36,null,null,null,null,null,null,null,null,null,null,null,null,null,null,null,null,null,null,null,null,null,null,null,null,null,null,null,null,null,null,null,null,null,null,null,null,null,null,null,null,null,null,null,null,null,0,{"$f":"AV84","v":0},{"$f":"IFERROR(ROUNDDOWN(AV84/$AT$3,1),\"\")","v":""}]
[null,null,null,null,null,null,null,null,null,null,null,null,null,null,null,null,null,null,null,null,null,null,null,null,null,null,null,null,null,null,null,null,null,null,null,null,null,null,null,null,null,null,null,null,null,null,null,0]
[null,37,null,null,null,null,null,null,null,null,null,null,null,null,null,null,null,null,null,null,null,null,null,null,null,null,null,null,null,null,null,null,null,null,null,null,null,null,null,null,null,null,null,null,null,null,null,{"$f":"COUNTA(Q85:AU85)","v":0},{"$f":"AV86","v":0},{"$f":"IFERROR(ROUNDDOWN(AV86/$AT$3,1),\"\")","v":""}]
[null,null,null,null,null,null,null,null,null,null,null,null,null,null,null,null,null,null,null,null,null,null,null,null,null,null,null,null,null,null,null,null,null,null,null,null,null,null,null,null,null,null,null,null,null,null,null,{"$f":"SUM(Q85:AU85)","v":0}]
[null,{"$f":"B85+1","v":38},null,null,null,null,null,null,null,null,null,null,null,null,null,null,null,null,null,null,null,null,null,null,null,null,null,null,null,null,null,null,null,null,null,null,null,null,null,null,null,null,null,null,null,null,null,0,{"$f":"AV88","v":0},{"$f":"IFERROR(ROUNDDOWN(AV88/$AT$3,1),\"\")","v":""}]
[null,null,null,null,null,null,null,null,null,null,null,null,null,null,null,null,null,null,null,null,null,null,null,null,null,null,null,null,null,null,null,null,null,null,null,null,null,null,null,null,null,null,null,null,null,null,null,0]
[null,39,null,null,null,null,null,null,null,null,null,null,null,null,null,null,null,null,null,null,null,null,null,null,null,null,null,null,null,null,null,null,null,null,null,null,null,null,null,null,null,null,null,null,null,null,null,0,{"$f":"AV90","v":0},{"$f":"IFERROR(ROUNDDOWN(AV90/$AT$3,1),\"\")","v":""}]
[null,null,null,null,null,null,null,null,null,null,null,null,null,null,null,null,null,null,null,null,null,null,null,null,null,null,null,null,null,null,null,null,null,null,null,null,null,null,null,null,null,null,null,null,null,null,null,0]
[null,40,null,null,null,null,null,null,null,null,null,null,null,null,null,null,null,null,null,null,null,null,null,null,null,null,null,null,null,null,null,null,null,null,null,null,null,null,null,null,null,null,null,null,null,null,null,0,{"$f":"AV92","v":0},{"$f":"IFERROR(ROUNDDOWN(AV92/$AT$3,1),\"\")","v":""}]
[null,null,null,null,null,null,null,null,null,null,null,null,null,null,null,null,null,null,null,null,null,null,null,null,null,null,null,null,null,null,null,null,null,null,null,null,null,null,null,null,null,null,null,null,null,null,null,0]
[null,41,null,null,null,null,null,null,null,null,null,null,null,null,null,null,null,null,null,null,null,null,null,null,null,null,null,null,null,null,null,null,null,null,null,null,null,null,null,null,null,null,null,null,null,null,null,0,{"$f":"AV94","v":0},{"$f":"IFERROR(ROUNDDOWN(AV94/$AT$3,1),\"\")","v":""}]
[null,null,null,null,null,null,null,null,null,null,null,null,null,null,null,null,null,null,null,null,null,null,null,null,null,null,null,null,null,null,null,null,null,null,null,null,null,null,null,null,null,null,null,null,null,null,null,0]
[null,{"$f":"B93+1","v":42},null,null,null,null,null,null,null,null,null,null,null,null,null,null,null,null,null,null,null,null,null,null,null,null,null,null,null,null,null,null,null,null,null,null,null,null,null,null,null,null,null,null,null,null,null,0,{"$f":"AV96","v":0},{"$f":"IFERROR(ROUNDDOWN(AV96/$AT$3,1),\"\")","v":""}]
[null,null,null,null,null,null,null,null,null,null,null,null,null,null,null,null,null,null,null,null,null,null,null,null,null,null,null,null,null,null,null,null,null,null,null,null,null,null,null,null,null,null,null,null,null,null,null,0]
[null,43,null,null,null,null,null,null,null,null,null,null,null,null,null,null,null,null,null,null,null,null,null,null,null,null,null,null,null,null,null,null,null,null,null,null,null,null,null,null,null,null,null,null,null,null,null,0,{"$f":"AV98","v":0},{"$f":"IFERROR(ROUNDDOWN(AV98/$AT$3,1),\"\")","v":""}]
[null,null,null,null,null,null,null,null,null,null,null,null,null,null,null,null,null,null,null,null,null,null,null,null,null,null,null,null,null,null,null,null,null,null,null,null,null,null,null,null,null,null,null,null,null,null,null,0]
[null,44,null,null,null,null,null,null,null,null,null,null,null,null,null,null,null,null,null,null,null,null,null,null,null,null,null,null,null,null,null,null,null,null,null,null,null,null,null,null,null,null,null,null,null,null,null,0,{"$f":"AV100","v":0},{"$f":"IFERROR(ROUNDDOWN(AV100/$AT$3,1),\"\")","v":""}]
[null,null,null,null,null,null,null,null,null,null,null,null,null,null,null,null,null,null,null,null,null,null,null,null,null,null,null,null,null,null,null,null,null,null,null,null,null,null,null,null,null,null,null,null,null,null,null,0]
[null,45,null,null,null,null,null,null,null,null,null,null,null,null,null,null,null,null,null,null,null,null,null,null,null,null,null,null,null,null,null,null,null,null,null,null,null,null,null,null,null,null,null,null,null,null,null,0,{"$f":"AV102","v":0},{"$f":"IFERROR(ROUNDDOWN(AV102/$AT$3,1),\"\")","v":""}]
[null,null,null,null,null,null,null,null,null,null,null,null,null,null,null,null,null,null,null,null,null,null,null,null,null,null,null,null,null,null,null,null,null,null,null,null,null,null,null,null,null,null,null,null,null,null,null,0]
[null,46,null,null,null,null,null,null,null,null,null,null,null,null,null,null,null,null,null,null,null,null,null,null,null,null,null,null,null,null,null,null,null,null,null,null,null,null,null,null,null,null,null,null,null,null,null,0,{"$f":"AV104","v":0},{"$f":"IFERROR(ROUNDDOWN(AV104/$AT$3,1),\"\")","v":""}]
[null,null,null,null,null,null,null,null,null,null,null,null,null,null,null,null,null,null,null,null,null,null,null,null,null,null,null,null,null,null,null,null,null,null,null,null,null,null,null,null,null,null,null,null,null,null,null,0]
[null,47,null,null,null,null,null,null,null,null,null,null,null,null,null,null,null,null,null,null,null,null,null,null,null,null,null,null,null,null,null,null,null,null,null,null,null,null,null,null,null,null,null,null,null,null,null,0,{"$f":"AV106","v":0},{"$f":"IFERROR(ROUNDDOWN(AV106/$AT$3,1),\"\")","v":""}]
[null,null,null,null,null,null,null,null,null,null,null,null,null,null,null,null,null,null,null,null,null,null,null,null,null,null,null,null,null,null,null,null,null,null,null,null,null,null,null,null,null,null,null,null,null,null,null,0]
[null,48,null,null,null,null,null,null,null,null,null,null,null,null,null,null,null,null,null,null,null,null,null,null,null,null,null,null,null,null,null,null,null,null,null,null,null,null,null,null,null,null,null,null,null,null,null,0,{"$f":"AV108","v":0},{"$f":"IFERROR(ROUNDDOWN(AV108/$AT$3,1),\"\")","v":""}]
[null,null,null,null,null,null,null,null,null,null,null,null,null,null,null,null,null,null,null,null,null,null,null,null,null,null,null,null,null,null,null,null,null,null,null,null,null,null,null,null,null,null,null,null,null,null,null,0]
[null,49,null,null,null,null,null,null,null,null,null,null,null,null,null,null,null,null,null,null,null,null,null,null,null,null,null,null,null,null,null,null,null,null,null,null,null,null,null,null,null,null,null,null,null,null,null,0,{"$f":"AV110","v":0},{"$f":"IFERROR(ROUNDDOWN(AV110/$AT$3,1),\"\")","v":""}]
[null,null,null,null,null,null,null,null,null,null,null,null,null,null,null,null,null,null,null,null,null,null,null,null,null,null,null,null,null,null,null,null,null,null,null,null,null,null,null,null,null,null,null,null,null,null,null,0]
[null,50,null,null,null,null,null,null,null,null,null,null,null,null,null,null,null,null,null,null,null,null,null,null,null,null,null,null,null,null,null,null,null,null,null,null,null,null,null,null,null,null,null,null,null,null,null,0,{"$f":"AV112","v":0},{"$f":"IFERROR(ROUNDDOWN(AV112/$AT$3,1),\"\")","v":""}]
[null,null,null,null,null,null,null,null,null,null,null,null,null,null,null,null,null,null,null,null,null,null,null,null,null,null,null,null,null,null,null,null,null,null,null,null,null,null,null,null,null,null,null,null,null,null,null,0]
[null,51,null,null,null,null,null,null,null,null,null,null,null,null,null,null,null,null,null,null,null,null,null,null,null,null,null,null,null,null,null,null,null,null,null,null,null,null,null,null,null,null,null,null,null,null,null,0,{"$f":"AV114","v":0},{"$f":"IFERROR(ROUNDDOWN(AV114/$AT$3,1),\"\")","v":""}]
[null,null,null,null,null,null,null,null,null,null,null,null,null,null,null,null,null,null,null,null,null,null,null,null,null,null,null,null,null,null,null,null,null,null,null,null,null,null,null,null,null,null,null,null,null,null,null,0]
[null,52,null,null,null,null,null,null,null,null,null,null,null,null,null,null,null,null,null,null,null,null,null,null,null,null,null,null,null,null,null,null,null,null,null,null,null,null,null,null,null,null,null,null,null,null,null,0,{"$f":"AV116","v":0},{"$f":"IFERROR(ROUNDDOWN(AV116/$AT$3,1),\"\")","v":""}]
[null,null,null,null,null,null,null,null,null,null,null,null,null,null,null,null,null,null,null,null,null,null,null,null,null,null,null,null,null,null,null,null,null,null,null,null,null,null,null,null,null,null,null,null,null,null,null,0]
[null,53,null,null,null,null,null,null,null,null,null,null,null,null,null,null,null,null,null,null,null,null,null,null,null,null,null,null,null,null,null,null,null,null,null,null,null,null,null,null,null,null,null,null,null,null,null,0,{"$f":"AV118","v":0},{"$f":"IFERROR(ROUNDDOWN(AV118/$AT$3,1),\"\")","v":""}]
[null,null,null,null,null,null,null,null,null,null,null,null,null,null,null,null,null,null,null,null,null,null,null,null,null,null,null,null,null,null,null,null,null,null,null,null,null,null,null,null,null,null,null,null,null,null,null,0]
[null,54,null,null,null,null,null,null,null,null,null,null,null,null,null,null,null,null,null,null,null,null,null,null,null,null,null,null,null,null,null,null,null,null,null,null,null,null,null,null,null,null,null,null,null,null,null,0,{"$f":"AV120","v":0},{"$f":"IFERROR(ROUNDDOWN(AV120/$AT$3,1),\"\")","v":""}]
[null,null,null,null,null,null,null,null,null,null,null,null,null,null,null,null,null,null,null,null,null,null,null,null,null,null,null,null,null,null,null,null,null,null,null,null,null,null,null,null,null,null,null,null,null,null,null,0]
[null,55,null,null,null,null,null,null,null,null,null,null,null,null,null,null,null,null,null,null,null,null,null,null,null,null,null,null,null,null,null,null,null,null,null,null,null,null,null,null,null,null,null,null,null,null,null,0,{"$f":"AV122","v":0},{"$f":"IFERROR(ROUNDDOWN(AV122/$AT$3,1),\"\")","v":""}]
[null,null,null,null,null,null,null,null,null,null,null,null,null,null,null,null,null,null,null,null,null,null,null,null,null,null,null,null,null,null,null,null,null,null,null,null,null,null,null,null,null,null,null,null,null,null,null,0]
[null,56,null,null,null,null,null,null,null,null,null,null,null,null,null,null,null,null,null,null,null,null,null,null,null,null,null,null,null,null,null,null,null,null,null,null,null,null,null,null,null,null,null,null,null,null,null,{"$f":"COUNTA(Q123:AU123)","v":0},{"$f":"AV124","v":0},{"$f":"IFERROR(ROUNDDOWN(AV124/$AT$3,1),\"\")","v":""}]
[null,null,null,null,null,null,null,null,null,null,null,null,null,null,null,null,null,null,null,null,null,null,null,null,null,null,null,null,null,null,null,null,null,null,null,null,null,null,null,null,null,null,null,null,null,null,null,{"$f":"SUM(Q123:AU123)","v":0}]
[null,57,null,null,null,null,null,null,null,null,null,null,null,null,null,null,null,null,null,null,null,null,null,null,null,null,null,null,null,null,null,null,null,null,null,null,null,null,null,null,null,null,null,null,null,null,null,0,{"$f":"AV126","v":0},{"$f":"IFERROR(ROUNDDOWN(AV126/$AT$3,1),\"\")","v":""}]
[null,null,null,null,null,null,null,null,null,null,null,null,null,null,null,null,null,null,null,null,null,null,null,null,null,null,null,null,null,null,null,null,null,null,null,null,null,null,null,null,null,null,null,null,null,null,null,0]
[null,58,null,null,null,null,null,null,null,null,null,null,null,null,null,null,null,null,null,null,null,null,null,null,null,null,null,null,null,null,null,null,null,null,null,null,null,null,null,null,null,null,null,null,null,null,null,0,{"$f":"AV128","v":0},{"$f":"IFERROR(ROUNDDOWN(AV128/$AT$3,1),\"\")","v":""}]
[null,null,null,null,null,null,null,null,null,null,null,null,null,null,null,null,null,null,null,null,null,null,null,null,null,null,null,null,null,null,null,null,null,null,null,null,null,null,null,null,null,null,null,null,null,null,null,0]
[null,59,null,null,null,null,null,null,null,null,null,null,null,null,null,null,null,null,null,null,null,null,null,null,null,null,null,null,null,null,null,null,null,null,null,null,null,null,null,null,null,null,null,null,null,null,null,0,{"$f":"AV130","v":0},{"$f":"IFERROR(ROUNDDOWN(AV130/$AT$3,1),\"\")","v":""}]
[null,null,null,null,null,null,null,null,null,null,null,null,null,null,null,null,null,null,null,null,null,null,null,null,null,null,null,null,null,null,null,null,null,null,null,null,null,null,null,null,null,null,null,null,null,null,null,0]
[null,60,null,null,null,null,null,null,null,null,null,null,null,null,null,null,null,null,null,null,null,null,null,null,null,null,null,null,null,null,null,null,null,null,null,null,null,null,null,null,null,null,null,null,null,null,null,0,{"$f":"AV132","v":0},{"$f":"IFERROR(ROUNDDOWN(AV132/$AT$3,1),\"\")","v":""}]
[null,null,null,null,null,null,null,null,null,null,null,null,null,null,null,null,null,null,null,null,null,null,null,null,null,null,null,null,null,null,null,null,null,null,null,null,null,null,null,null,null,null,null,null,null,null,null,0]
[null,61,null,null,null,null,null,null,null,null,null,null,null,null,null,null,null,null,null,null,null,null,null,null,null,null,null,null,null,null,null,null,null,null,null,null,null,null,null,null,null,null,null,null,null,null,null,0,{"$f":"AV134","v":0},{"$f":"IFERROR(ROUNDDOWN(AV134/$AT$3,1),\"\")","v":""}]
[null,null,null,null,null,null,null,null,null,null,null,null,null,null,null,null,null,null,null,null,null,null,null,null,null,null,null,null,null,null,null,null,null,null,null,null,null,null,null,null,null,null,null,null,null,null,null,0]
[null,{"$f":"B133+1","v":62},null,null,null,null,null,null,null,null,null,null,null,null,null,null,null,null,null,null,null,null,null,null,null,null,null,null,null,null,null,null,null,null,null,null,null,null,null,null,null,null,null,null,null,null,null,0,{"$f":"AV136","v":0},{"$f":"IFERROR(ROUNDDOWN(AV136/$AT$3,1),\"\")","v":""}]
[null,null,null,null,null,null,null,null,null,null,null,null,null,null,null,null,null,null,null,null,null,null,null,null,null,null,null,null,null,null,null,null,null,null,null,null,null,null,null,null,null,null,null,null,null,null,null,0]
[null,{"$f":"B135+1","v":63},null,null,null,null,null,null,null,null,null,null,null,null,null,null,null,null,null,null,null,null,null,null,null,null,null,null,null,null,null,null,null,null,null,null,null,null,null,null,null,null,null,null,null,null,null,0,{"$f":"AV138","v":0},{"$f":"IFERROR(ROUNDDOWN(AV138/$AT$3,1),\"\")","v":""}]
[null,null,null,null,null,null,null,null,null,null,null,null,null,null,null,null,null,null,null,null,null,null,null,null,null,null,null,null,null,null,null,null,null,null,null,null,null,null,null,null,null,null,null,null,null,null,null,0]
[null,64,null,null,null,null,null,null,null,null,null,null,null,null,null,null,null,null,null,null,null,null,null,null,null,null,null,null,null,null,null,null,null,null,null,null,null,null,null,null,null,null,null,null,null,null,null,0,{"$f":"AV140","v":0},{"$f":"IFERROR(ROUNDDOWN(AV140/$AT$3,1),\"\")","v":""}]
[null,null,null,null,null,null,null,null,null,null,null,null,null,null,null,null,null,null,null,null,null,null,null,null,null,null,null,null,null,null,null,null,null,null,null,null,null,null,null,null,null,null,null,null,null,null,null,0]
[null,65,null,null,null,null,null,null,null,null,null,null,null,null,null,null,null,null,null,null,null,null,null,null,null,null,null,null,null,null,null,null,null,null,null,null,null,null,null,null,null,null,null,null,null,null,null,0,{"$f":"AV142","v":0},{"$f":"IFERROR(ROUNDDOWN(AV142/$AT$3,1),\"\")","v":""}]
[null,null,null,null,null,null,null,null,null,null,null,null,null,null,null,null,null,null,null,null,null,null,null,null,null,null,null,null,null,null,null,null,null,null,null,null,null,null,null,null,null,null,null,null,null,null,null,0]
[null,66,null,null,null,null,null,null,null,null,null,null,null,null,null,null,null,null,null,null,null,null,null,null,null,null,null,null,null,null,null,null,null,null,null,null,null,null,null,null,null,null,null,null,null,null,null,0,{"$f":"AV144","v":0},{"$f":"IFERROR(ROUNDDOWN(AV144/$AT$3,1),\"\")","v":""}]
[null,null,null,null,null,null,null,null,null,null,null,null,null,null,null,null,null,null,null,null,null,null,null,null,null,null,null,null,null,null,null,null,null,null,null,null,null,null,null,null,null,null,null,null,null,null,null,0]
[null,67,null,null,null,null,null,null,null,null,null,null,null,null,null,null,null,null,null,null,null,null,null,null,null,null,null,null,null,null,null,null,null,null,null,null,null,null,null,null,null,null,null,null,null,null,null,0,{"$f":"AV146","v":0},{"$f":"IFERROR(ROUNDDOWN(AV146/$AT$3,1),\"\")","v":""}]
[null,null,null,null,null,null,null,null,null,null,null,null,null,null,null,null,null,null,null,null,null,null,null,null,null,null,null,null,null,null,null,null,null,null,null,null,null,null,null,null,null,null,null,null,null,null,null,0]
[null,68,null,null,null,null,null,null,null,null,null,null,null,null,null,null,null,null,null,null,null,null,null,null,null,null,null,null,null,null,null,null,null,null,null,null,null,null,null,null,null,null,null,null,null,null,null,0,{"$f":"AV148","v":0},{"$f":"IFERROR(ROUNDDOWN(AV148/$AT$3,1),\"\")","v":""}]
[null,null,null,null,null,null,null,null,null,null,null,null,null,null,null,null,null,null,null,null,null,null,null,null,null,null,null,null,null,null,null,null,null,null,null,null,null,null,null,null,null,null,null,null,null,null,null,0]
[null,69,null,null,null,null,null,null,null,null,null,null,null,null,null,null,null,null,null,null,null,null,null,null,null,null,null,null,null,null,null,null,null,null,null,null,null,null,null,null,null,null,null,null,null,null,null,0,{"$f":"AV150","v":0},{"$f":"IFERROR(ROUNDDOWN(AV150/$AT$3,1),\"\")","v":""}]
[null,null,null,null,null,null,null,null,null,null,null,null,null,null,null,null,null,null,null,null,null,null,null,null,null,null,null,null,null,null,null,null,null,null,null,null,null,null,null,null,null,null,null,null,null,null,null,0]
[null,70,null,null,null,null,null,null,null,null,null,null,null,null,null,null,null,null,null,null,null,null,null,null,null,null,null,null,null,null,null,null,null,null,null,null,null,null,null,null,null,null,null,null,null,null,null,0,{"$f":"AV152","v":0},{"$f":"IFERROR(ROUNDDOWN(AV152/$AT$3,1),\"\")","v":""}]
[null,null,null,null,null,null,null,null,null,null,null,null,null,null,null,null,null,null,null,null,null,null,null,null,null,null,null,null,null,null,null,null,null,null,null,null,null,null,null,null,null,null,null,null,null,null,null,0]
[null,71,null,null,null,null,null,null,null,null,null,null,null,null,null,null,null,null,null,null,null,null,null,null,null,null,null,null,null,null,null,null,null,null,null,null,null,null,null,null,null,null,null,null,null,null,null,0,{"$f":"AV154","v":0},{"$f":"IFERROR(ROUNDDOWN(AV154/$AT$3,1),\"\")","v":""}]
[null,null,null,null,null,null,null,null,null,null,null,null,null,null,null,null,null,null,null,null,null,null,null,null,null,null,null,null,null,null,null,null,null,null,null,null,null,null,null,null,null,null,null,null,null,null,null,0]
[null,72,null,null,null,null,null,null,null,null,null,null,null,null,null,null,null,null,null,null,null,null,null,null,null,null,null,null,null,null,null,null,null,null,null,null,null,null,null,null,null,null,null,null,null,null,null,0,{"$f":"AV156","v":0},{"$f":"IFERROR(ROUNDDOWN(AV156/$AT$3,1),\"\")","v":""}]
[null,null,null,null,null,null,null,null,null,null,null,null,null,null,null,null,null,null,null,null,null,null,null,null,null,null,null,null,null,null,null,null,null,null,null,null,null,null,null,null,null,null,null,null,null,null,null,0]
[null,73,null,null,null,null,null,null,null,null,null,null,null,null,null,null,null,null,null,null,null,null,null,null,null,null,null,null,null,null,null,null,null,null,null,null,null,null,null,null,null,null,null,null,null,null,null,0,{"$f":"AV158","v":0},{"$f":"IFERROR(ROUNDDOWN(AV158/$AT$3,1),\"\")","v":""}]
[null,null,null,null,null,null,null,null,null,null,null,null,null,null,null,null,null,null,null,null,null,null,null,null,null,null,null,null,null,null,null,null,null,null,null,null,null,null,null,null,null,null,null,null,null,null,null,0]
[null,74,null,null,null,null,null,null,null,null,null,null,null,null,null,null,null,null,null,null,null,null,null,null,null,null,null,null,null,null,null,null,null,null,null,null,null,null,null,null,null,null,null,null,null,null,null,0,{"$f":"AV160","v":0},{"$f":"IFERROR(ROUNDDOWN(AV160/$AT$3,1),\"\")","v":""}]
[null,null,null,null,null,null,null,null,null,null,null,null,null,null,null,null,null,null,null,null,null,null,null,null,null,null,null,null,null,null,null,null,null,null,null,null,null,null,null,null,null,null,null,null,null,null,null,0]
[null,75,null,null,null,null,null,null,null,null,null,null,null,null,null,null,null,null,null,null,null,null,null,null,null,null,null,null,null,null,null,null,null,null,null,null,null,null,null,null,null,null,null,null,null,null,null,0,{"$f":"AV162","v":0},{"$f":"IFERROR(ROUNDDOWN(AV162/$AT$3,1),\"\")","v":""}]
[null,null,null,null,null,null,null,null,null,null,null,null,null,null,null,null,null,null,null,null,null,null,null,null,null,null,null,null,null,null,null,null,null,null,null,null,null,null,null,null,null,null,null,null,null,null,null,0]
[null,76,null,null,null,null,null,null,null,null,null,null,null,null,null,null,null,null,null,null,null,null,null,null,null,null,null,null,null,null,null,null,null,null,null,null,null,null,null,null,null,null,null,null,null,null,null,0,{"$f":"AV164","v":0},{"$f":"IFERROR(ROUNDDOWN(AV164/$AT$3,1),\"\")","v":""}]
[null,null,null,null,null,null,null,null,null,null,null,null,null,null,null,null,null,null,null,null,null,null,null,null,null,null,null,null,null,null,null,null,null,null,null,null,null,null,null,null,null,null,null,null,null,null,null,0]
[null,77,null,null,null,null,null,null,null,null,null,null,null,null,null,null,null,null,null,null,null,null,null,null,null,null,null,null,null,null,null,null,null,null,null,null,null,null,null,null,null,null,null,null,null,null,null,0,{"$f":"AV166","v":0},{"$f":"IFERROR(ROUNDDOWN(AV166/$AT$3,1),\"\")","v":""}]
[null,null,null,null,null,null,null,null,null,null,null,null,null,null,null,null,null,null,null,null,null,null,null,null,null,null,null,null,null,null,null,null,null,null,null,null,null,null,null,null,null,null,null,null,null,null,null,0]
[null,78,null,null,null,null,null,null,null,null,null,null,null,null,null,null,null,null,null,null,null,null,null,null,null,null,null,null,null,null,null,null,null,null,null,null,null,null,null,null,null,null,null,null,null,null,null,0,{"$f":"AV168","v":0},{"$f":"IFERROR(ROUNDDOWN(AV168/$AT$3,1),\"\")","v":""}]
[null,null,null,null,null,null,null,null,null,null,null,null,null,null,null,null,null,null,null,null,null,null,null,null,null,null,null,null,null,null,null,null,null,null,null,null,null,null,null,null,null,null,null,null,null,null,null,0]
[null,79,null,null,null,null,null,null,null,null,null,null,null,null,null,null,null,null,null,null,null,null,null,null,null,null,null,null,null,null,null,null,null,null,null,null,null,null,null,null,null,null,null,null,null,null,null,0,{"$f":"AV170","v":0},{"$f":"IFERROR(ROUNDDOWN(AV170/$AT$3,1),\"\")","v":""}]
[null,null,null,null,null,null,null,null,null,null,null,null,null,null,null,null,null,null,null,null,null,null,null,null,null,null,null,null,null,null,null,null,null,null,null,null,null,null,null,null,null,null,null,null,null,null,null,0]
[null,80,null,null,null,null,null,null,null,null,null,null,null,null,null,null,null,null,null,null,null,null,null,null,null,null,null,null,null,null,null,null,null,null,null,null,null,null,null,null,null,null,null,null,null,null,null,0,{"$f":"AV172","v":0},{"$f":"IFERROR(ROUNDDOWN(AV172/$AT$3,1),\"\")","v":""}]
[null,null,null,null,null,null,null,null,null,null,null,null,null,null,null,null,null,null,null,null,null,null,null,null,null,null,null,null,null,null,null,null,null,null,null,null,null,null,null,null,null,null,null,null,null,null,null,0]
[null,81,null,null,null,null,null,null,null,null,null,null,null,null,null,null,null,null,null,null,null,null,null,null,null,null,null,null,null,null,null,null,null,null,null,null,null,null,null,null,null,null,null,null,null,null,null,0,{"$f":"AV174","v":0},{"$f":"IFERROR(ROUNDDOWN(AV174/$AT$3,1),\"\")","v":""}]
[null,null,null,null,null,null,null,null,null,null,null,null,null,null,null,null,null,null,null,null,null,null,null,null,null,null,null,null,null,null,null,null,null,null,null,null,null,null,null,null,null,null,null,null,null,null,null,0]
[null,82,null,null,null,null,null,null,null,null,null,null,null,null,null,null,null,null,null,null,null,null,null,null,null,null,null,null,null,null,null,null,null,null,null,null,null,null,null,null,null,null,null,null,null,null,null,0,{"$f":"AV176","v":0},{"$f":"IFERROR(ROUNDDOWN(AV176/$AT$3,1),\"\")","v":""}]
[null,null,null,null,null,null,null,null,null,null,null,null,null,null,null,null,null,null,null,null,null,null,null,null,null,null,null,null,null,null,null,null,null,null,null,null,null,null,null,null,null,null,null,null,null,null,null,0]
[null,83,null,null,null,null,null,null,null,null,null,null,null,null,null,null,null,null,null,null,null,null,null,null,null,null,null,null,null,null,null,null,null,null,null,null,null,null,null,null,null,null,null,null,null,null,null,0,{"$f":"AV178","v":0},{"$f":"IFERROR(ROUNDDOWN(AV178/$AT$3,1),\"\")","v":""}]
[null,null,null,null,null,null,null,null,null,null,null,null,null,null,null,null,null,null,null,null,null,null,null,null,null,null,null,null,null,null,null,null,null,null,null,null,null,null,null,null,null,null,null,null,null,null,null,0]
[null,{"$f":"B177+1","v":84},null,null,null,null,null,null,null,null,null,null,null,null,null,null,null,null,null,null,null,null,null,null,null,null,null,null,null,null,null,null,null,null,null,null,null,null,null,null,null,null,null,null,null,null,null,0,{"$f":"AV180","v":0},{"$f":"IFERROR(ROUNDDOWN(AV180/$AT$3,1),\"\")","v":""}]
[null,null,null,null,null,null,null,null,null,null,null,null,null,null,null,null,null,null,null,null,null,null,null,null,null,null,null,null,null,null,null,null,null,null,null,null,null,null,null,null,null,null,null,null,null,null,null,0]
[null,{"$f":"B179+1","v":85},null,null,null,null,null,null,null,null,null,null,null,null,null,null,null,null,null,null,null,null,null,null,null,null,null,null,null,null,null,null,null,null,null,null,null,null,null,null,null,null,null,null,null,null,null,0,{"$f":"AV182","v":0},{"$f":"IFERROR(ROUNDDOWN(AV182/$AT$3,1),\"\")","v":""}]
[null,null,null,null,null,null,null,null,null,null,null,null,null,null,null,null,null,null,null,null,null,null,null,null,null,null,null,null,null,null,null,null,null,null,null,null,null,null,null,null,null,null,null,null,null,null,null,0]
[null,86,null,null,null,null,null,null,null,null,null,null,null,null,null,null,null,null,null,null,null,null,null,null,null,null,null,null,null,null,null,null,null,null,null,null,null,null,null,null,null,null,null,null,null,null,null,0,{"$f":"AV184","v":0},{"$f":"IFERROR(ROUNDDOWN(AV184/$AT$3,1),\"\")","v":""}]
[null,null,null,null,null,null,null,null,null,null,null,null,null,null,null,null,null,null,null,null,null,null,null,null,null,null,null,null,null,null,null,null,null,null,null,null,null,null,null,null,null,null,null,null,null,null,null,0]
[null,87,null,null,null,null,null,null,null,null,null,null,null,null,null,null,null,null,null,null,null,null,null,null,null,null,null,null,null,null,null,null,null,null,null,null,null,null,null,null,null,null,null,null,null,null,null,0,{"$f":"AV186","v":0},{"$f":"IFERROR(ROUNDDOWN(AV186/$AT$3,1),\"\")","v":""}]
[null,null,null,null,null,null,null,null,null,null,null,null,null,null,null,null,null,null,null,null,null,null,null,null,null,null,null,null,null,null,null,null,null,null,null,null,null,null,null,null,null,null,null,null,null,null,null,0]
[null,88,null,null,null,null,null,null,null,null,null,null,null,null,null,null,null,null,null,null,null,null,null,null,null,null,null,null,null,null,null,null,null,null,null,null,null,null,null,null,null,null,null,null,null,null,null,{"$f":"COUNTA(Q187:AU187)","v":0},{"$f":"AV188","v":0},{"$f":"IFERROR(ROUNDDOWN(AV188/$AT$3,1),\"\")","v":""}]
[null,null,null,null,null,null,null,null,null,null,null,null,null,null,null,null,null,null,null,null,null,null,null,null,null,null,null,null,null,null,null,null,null,null,null,null,null,null,null,null,null,null,null,null,null,null,null,{"$f":"SUM(Q187:AU187)","v":0}]
[null,89,null,null,null,null,null,null,null,null,null,null,null,null,null,null,null,null,null,null,null,null,null,null,null,null,null,null,null,null,null,null,null,null,null,null,null,null,null,null,null,null,null,null,null,null,null,0,{"$f":"AV190","v":0},{"$f":"IFERROR(ROUNDDOWN(AV190/$AT$3,1),\"\")","v":""}]
[null,null,null,null,null,null,null,null,null,null,null,null,null,null,null,null,null,null,null,null,null,null,null,null,null,null,null,null,null,null,null,null,null,null,null,null,null,null,null,null,null,null,null,null,null,null,null,0]
[null,90,null,null,null,null,null,null,null,null,null,null,null,null,null,null,null,null,null,null,null,null,null,null,null,null,null,null,null,null,null,null,null,null,null,null,null,null,null,null,null,null,null,null,null,null,null,0,{"$f":"AV192","v":0},{"$f":"IFERROR(ROUNDDOWN(AV192/$AT$3,1),\"\")","v":""}]
[null,null,null,null,null,null,null,null,null,null,null,null,null,null,null,null,null,null,null,null,null,null,null,null,null,null,null,null,null,null,null,null,null,null,null,null,null,null,null,null,null,null,null,null,null,null,null,0]
[null,91,null,null,null,null,null,null,null,null,null,null,null,null,null,null,null,null,null,null,null,null,null,null,null,null,null,null,null,null,null,null,null,null,null,null,null,null,null,null,null,null,null,null,null,null,null,0,{"$f":"AV194","v":0},{"$f":"IFERROR(ROUNDDOWN(AV194/$AT$3,1),\"\")","v":""}]
[null,null,null,null,null,null,null,null,null,null,null,null,null,null,null,null,null,null,null,null,null,null,null,null,null,null,null,null,null,null,null,null,null,null,null,null,null,null,null,null,null,null,null,null,null,null,null,0]
[null,92,null,null,null,null,null,null,null,null,null,null,null,null,null,null,null,null,null,null,null,null,null,null,null,null,null,null,null,null,null,null,null,null,null,null,null,null,null,null,null,null,null,null,null,null,null,0,{"$f":"AV196","v":0},{"$f":"IFERROR(ROUNDDOWN(AV196/$AT$3,1),\"\")","v":""}]
[null,null,null,null,null,null,null,null,null,null,null,null,null,null,null,null,null,null,null,null,null,null,null,null,null,null,null,null,null,null,null,null,null,null,null,null,null,null,null,null,null,null,null,null,null,null,null,0]
[null,93,null,null,null,null,null,null,null,null,null,null,null,null,null,null,null,null,null,null,null,null,null,null,null,null,null,null,null,null,null,null,null,null,null,null,null,null,null,null,null,null,null,null,null,null,null,0,{"$f":"AV198","v":0},{"$f":"IFERROR(ROUNDDOWN(AV198/$AT$3,1),\"\")","v":""}]
[null,null,null,null,null,null,null,null,null,null,null,null,null,null,null,null,null,null,null,null,null,null,null,null,null,null,null,null,null,null,null,null,null,null,null,null,null,null,null,null,null,null,null,null,null,null,null,0]
[null,94,null,null,null,null,null,null,null,null,null,null,null,null,null,null,null,null,null,null,null,null,null,null,null,null,null,null,null,null,null,null,null,null,null,null,null,null,null,null,null,null,null,null,null,null,null,0,{"$f":"AV200","v":0},{"$f":"IFERROR(ROUNDDOWN(AV200/$AT$3,1),\"\")","v":""}]
[null,null,null,null,null,null,null,null,null,null,null,null,null,null,null,null,null,null,null,null,null,null,null,null,null,null,null,null,null,null,null,null,null,null,null,null,null,null,null,null,null,null,null,null,null,null,null,0]
[null,95,null,null,null,null,null,null,null,null,null,null,null,null,null,null,null,null,null,null,null,null,null,null,null,null,null,null,null,null,null,null,null,null,null,null,null,null,null,null,null,null,null,null,null,null,null,0,{"$f":"AV202","v":0},{"$f":"IFERROR(ROUNDDOWN(AV202/$AT$3,1),\"\")","v":""}]
[null,null,null,null,null,null,null,null,null,null,null,null,null,null,null,null,null,null,null,null,null,null,null,null,null,null,null,null,null,null,null,null,null,null,null,null,null,null,null,null,null,null,null,null,null,null,null,0]
[null,96,null,null,null,null,null,null,null,null,null,null,null,null,null,null,null,null,null,null,null,null,null,null,null,null,null,null,null,null,null,null,null,null,null,null,null,null,null,null,null,null,null,null,null,null,null,0,{"$f":"AV204","v":0},{"$f":"IFERROR(ROUNDDOWN(AV204/$AT$3,1),\"\")","v":""}]
[null,null,null,null,null,null,null,null,null,null,null,null,null,null,null,null,null,null,null,null,null,null,null,null,null,null,null,null,null,null,null,null,null,null,null,null,null,null,null,null,null,null,null,null,null,null,null,0]
[null,97,null,null,null,null,null,null,null,null,null,null,null,null,null,null,null,null,null,null,null,null,null,null,null,null,null,null,null,null,null,null,null,null,null,null,null,null,null,null,null,null,null,null,null,null,null,0,{"$f":"AV206","v":0},{"$f":"IFERROR(ROUNDDOWN(AV206/$AT$3,1),\"\")","v":""}]
[null,null,null,null,null,null,null,null,null,null,null,null,null,null,null,null,null,null,null,null,null,null,null,null,null,null,null,null,null,null,null,null,null,null,null,null,null,null,null,null,null,null,null,null,null,null,null,0]
[null,98,null,null,null,null,null,null,null,null,null,null,null,null,null,null,null,null,null,null,null,null,null,null,null,null,null,null,null,null,null,null,null,null,null,null,null,null,null,null,null,null,null,null,null,null,null,0,{"$f":"AV208","v":0},{"$f":"IFERROR(ROUNDDOWN(AV208/$AT$3,1),\"\")","v":""}]
[null,null,null,null,null,null,null,null,null,null,null,null,null,null,null,null,null,null,null,null,null,null,null,null,null,null,null,null,null,null,null,null,null,null,null,null,null,null,null,null,null,null,null,null,null,null,null,0]
[null,99,null,null,null,null,null,null,null,null,null,null,null,null,null,null,null,null,null,null,null,null,null,null,null,null,null,null,null,null,null,null,null,null,null,null,null,null,null,null,null,null,null,null,null,null,null,0,{"$f":"AV210","v":0},{"$f":"IFERROR(ROUNDDOWN(AV210/$AT$3,1),\"\")","v":""}]
[null,null,null,null,null,null,null,null,null,null,null,null,null,null,null,null,null,null,null,null,null,null,null,null,null,null,null,null,null,null,null,null,null,null,null,null,null,null,null,null,null,null,null,null,null,null,null,0]
[null,100,null,null,null,null,null,null,null,null,null,null,null,null,null,null,null,null,null,null,null,null,null,null,null,null,null,null,null,null,null,null,null,null,null,null,null,null,null,null,null,null,null,null,null,null,null,0,{"$f":"AV212","v":0},{"$f":"IFERROR(ROUNDDOWN(AV212/$AT$3,1),\"\")","v":""}]
[null,null,null,null,null,null,null,null,null,null,null,null,null,null,null,null,null,null,null,null,null,null,null,null,null,null,null,null,null,null,null,null,null,null,null,null,null,null,null,null,null,null,null,null,null,null,null,0]
[null,101,null,null,null,null,null,null,null,null,null,null,null,null,null,null,null,null,null,null,null,null,null,null,null,null,null,null,null,null,null,null,null,null,null,null,null,null,null,null,null,null,null,null,null,null,null,0,{"$f":"AV214","v":0},{"$f":"IFERROR(ROUNDDOWN(AV214/$AT$3,1),\"\")","v":""}]
[null,null,null,null,null,null,null,null,null,null,null,null,null,null,null,null,null,null,null,null,null,null,null,null,null,null,null,null,null,null,null,null,null,null,null,null,null,null,null,null,null,null,null,null,null,null,null,0]
[null,102,null,null,null,null,null,null,null,null,null,null,null,null,null,null,null,null,null,null,null,null,null,null,null,null,null,null,null,null,null,null,null,null,null,null,null,null,null,null,null,null,null,null,null,null,null,0,{"$f":"AV216","v":0},{"$f":"IFERROR(ROUNDDOWN(AV216/$AT$3,1),\"\")","v":""}]
[null,null,null,null,null,null,null,null,null,null,null,null,null,null,null,null,null,null,null,null,null,null,null,null,null,null,null,null,null,null,null,null,null,null,null,null,null,null,null,null,null,null,null,null,null,null,null,0]
[null,103,null,null,null,null,null,null,null,null,null,null,null,null,null,null,null,null,null,null,null,null,null,null,null,null,null,null,null,null,null,null,null,null,null,null,null,null,null,null,null,null,null,null,null,null,null,0,{"$f":"AV218","v":0},{"$f":"IFERROR(ROUNDDOWN(AV218/$AT$3,1),\"\")","v":""}]
[null,null,null,null,null,null,null,null,null,null,null,null,null,null,null,null,null,null,null,null,null,null,null,null,null,null,null,null,null,null,null,null,null,null,null,null,null,null,null,null,null,null,null,null,null,null,null,0]
[null,104,null,null,null,null,null,null,null,null,null,null,null,null,null,null,null,null,null,null,null,null,null,null,null,null,null,null,null,null,null,null,null,null,null,null,null,null,null,null,null,null,null,null,null,null,null,0,{"$f":"AV220","v":0},{"$f":"IFERROR(ROUNDDOWN(AV220/$AT$3,1),\"\")","v":""}]
[null,null,null,null,null,null,null,null,null,null,null,null,null,null,null,null,null,null,null,null,null,null,null,null,null,null,null,null,null,null,null,null,null,null,null,null,null,null,null,null,null,null,null,null,null,null,null,0]
[null,105,null,null,null,null,null,null,null,null,null,null,null,null,null,null,null,null,null,null,null,null,null,null,null,null,null,null,null,null,null,null,null,null,null,null,null,null,null,null,null,null,null,null,null,null,null,0,{"$f":"AV222","v":0},{"$f":"IFERROR(ROUNDDOWN(AV222/$AT$3,1),\"\")","v":""}]
[null,null,null,null,null,null,null,null,null,null,null,null,null,null,null,null,null,null,null,null,null,null,null,null,null,null,null,null,null,null,null,null,null,null,null,null,null,null,null,null,null,null,null,null,null,null,null,0]

{"sheet":"P2-3","index":5,"n_rows":222,"n_cols":65,"rows_kept":222,"cut":false,"hidden":false,"merged":[[220,33,221,33],[220,34,221,34],[220,26,221,26],[220,27,221,27],[220,28,221,28],[220,17,221,17],[220,18,221,18],[220,19,221,19],[220,20,221,20],[220,21,221,21],[220,22,221,22],[218,44,219,44],[218,45,219,45],[218,46,219,46],[218,48,219,48],[218,49,219,49],[220,48,221,48],[220,49,221,49],[220,41,221,41],[220,42,221,42],[220,43,221,43],[220,44,221,44],[220,45,221,45],[220,46,221,46],[220,35,221,35],[220,36,221,36],[220,37,221,37],[220,38,221,38],[220,39,221,39],[220,40,221,40],[220,29,221,29],[220,30,221,30],[220,31,221,31],[220,32,221,32],[220,1,221,1],[220,2,221,7],[220,8,221,12],[220,13,221,15],[220,16,221,16],[218,38,219,38],[218,39,219,39],[218,40,219,40],[218,41,219,41],[218,42,219,42],[218,43,219,43],[218,32,219,32],[218,33,219,33],[218,34,219,34],[218,35,219,35],[218,36,219,36],[218,37,219,37],[218,26,219,26],[218,27,219,27],[218,28,219,28],[218,29,219,29],[218,30,219,30],[218,31,219,31],[218,20,219,20],[218,21,219,21],[218,22,219,22],[218,23,219,23],[218,24,219,24],[218,25,219,25],[220,23,221,23],[220,24,221,24],[220,25,221,25],[216,48,217,48],[216,49,217,49],[218,1,219,1],[218,2,219,7],[218,8,219,12],[218,13,219,15],[218,16,219,16],[218,17,219,17],[218,18,219,18],[218,19,219,19],[216,41,217,41],[216,42,217,42],[216,43,217,43],[216,44,217,44],[216,45,217,45],[216,46,217,46],[216,35,217,35],[216,36,217,36],[216,37,217,37],[216,38,217,38],[216,39,217,39],[216,40,217,40],[216,29,217,29],[216,30,217,30],[216,31,217,31],[216,32,217,32],[216,33,217,33],[216,34,217,34],[216,23,217,23],[216,24,217,24],[216,25,217,25],[216,26,217,26],[216,27,217,27],[216,28,217,28],[216,17,217,17],[216,18,217,18],[216,19,217,19],[216,20,217,20],[216,21,217,21],[216,22,217,22],[214,44,215,44],[214,45,215,45],[214,46,215,46],[214,48,215,48],[214,49,215,49],[216,1,217,1],[216,2,217,7],[216,8,217,12],[216,13,217,15],[216,16,217,16],[214,38,215,38],[214,39,215,39],[214,40,215,40],[214,41,215,41],[214,42,215,42],[214,43,215,43],[214,32,215,32],[214,33,215,33],[214,34,215,34],[214,35,215,35],[214,36,215,36],[214,37,215,37],[214,26,215,26],[214,27,215,27],[214,28,215,28],[214,29,215,29],[214,30,215,30],[214,31,215,31],[214,20,215,20],[214,21,215,21],[214,22,215,22],[214,23,215,23],[214,24,215,24],[214,25,215,25],[212,48,213,48],[212,49,213,49],[214,1,215,1],[214,2,215,7],[214,8,215,12],[214,13,215,15],[214,16,215,16],[214,17,215,17],[214,18,215,18],[214,19,215,19],[212,41,213,41],[212,42,213,42],[212,43,213,43],[212,44,213,44],[212,45,213,45],[212,46,213,46],[212,35,213,35],[212,36,213,36],[212,37,213,37],[212,38,213,38],[212,39,213,39],[212,40,213,40],[212,29,213,29],[212,30,213,30],[212,31,213,31],[212,32,213,32],[212,33,213,33],[212,34,213,34],[212,23,213,23],[212,24,213,24],[212,25,213,25],[212,26,213,26],[212,27,213,27],[212,28,213,28],[212,17,213,17],[212,18,213,18],[212,19,213,19],[212,20,213,20],[212,21,213,21],[212,22,213,22],[210,44,211,44],[210,45,211,45],[210,46,211,46],[210,48,211,48],[210,49,211,49],[212,1,213,1],[212,2,213,7],[212,8,213,12],[212,13,213,15],[212,16,213,16],[210,38,211,38],[210,39,211,39],[210,40,211,40],[210,41,211,41],[210,42,211,42],[210,43,211,43],[210,32,211,32],[210,33,211,33],[210,34,211,34],[210,35,211,35],[210,36,211,36],[210,37,211,37],[210,26,211,26],[210,27,211,27],[210,28,211,28],[210,29,211,29],[210,30,211,30],[210,31,211,31],[210,20,211,20],[210,21,211,21],[210,22,211,22],[210,23,211,23],[210,24,211,24],[210,25,211,25],[208,48,209,48],[208,49,209,49],[210,1,211,1],[210,2,211,7],[210,8,211,12],[210,13,211,15],[210,16,211,16],[210,17,211,17],[210,18,211,18],[210,19,211,19],[208,41,209,41],[208,42,209,42],[208,43,209,43],[208,44,209,44],[208,45,209,45],[208,46,209,46],[208,35,209,35],[208,36,209,36],[208,37,209,37],[208,38,209,38],[208,39,209,39],[208,40,209,40],[208,29,209,29],[208,30,209,30],[208,31,209,31],[208,32,209,32],[208,33,209,33],[208,34,209,34],[208,23,209,23],[208,24,209,24],[208,25,209,25],[208,26,209,26],[208,27,209,27],[208,28,209,28],[208,17,209,17],[208,18,209,18],[208,19,209,19],[208,20,209,20],[208,21,209,21],[208,22,209,22],[206,44,207,44],[206,45,207,45],[206,46,207,46],[206,48,207,48],[206,49,207,49],[208,1,209,1],[208,2,209,7],[208,8,209,12],[208,13,209,15],[208,16,209,16],[206,38,207,38],[206,39,207,39],[206,40,207,40],[206,41,207,41],[206,42,207,42],[206,43,207,43],[206,32,207,32],[206,33,207,33],[206,34,207,34],[206,35,207,35],[206,36,207,36],[206,37,207,37],[206,26,207,26],[206,27,207,27],[206,28,207,28],[206,29,207,29],[206,30,207,30],[206,31,207,31],[206,20,207,20],[206,21,207,21],[206,22,207,22],[206,23,207,23],[206,24,207,24],[206,25,207,25],[204,48,205,48],[204,49,205,49],[206,1,207,1],[206,2,207,7],[206,8,207,12],[206,13,207,15],[206,16,207,16],[206,17,207,17],[206,18,207,18],[206,19,207,19],[204,41,205,41],[204,42,205,42],[204,43,205,43],[204,44,205,44],[204,45,205,45],[204,46,205,46],[204,35,205,35],[204,36,205,36],[204,37,205,37],[204,38,205,38],[204,39,205,39],[204,40,205,40],[204,29,205,29],[204,30,205,30],[204,31,205,31],[204,32,205,32],[204,33,205,33],[204,34,205,34],[204,23,205,23],[204,24,205,24],[204,25,205,25],[204,26,205,26],[204,27,205,27],[204,28,205,28],[204,17,205,17],[204,18,205,18],[204,19,205,19],[204,20,205,20],[204,21,205,21],[204,22,205,22],[202,44,203,44],[202,45,203,45],[202,46,203,46],[202,48,203,48],[202,49,203,49],[204,1,205,1],[204,2,205,7],[204,8,205,12],[204,13,205,15],[204,16,205,16],[202,38,203,38],[202,39,203,39],[202,40,203,40],[202,41,203,41],[202,42,203,42],[202,43,203,43],[202,32,203,32],[202,33,203,33],[202,34,203,34],[202,35,203,35],[202,36,203,36],[202,37,203,37],[202,26,203,26],[202,27,203,27],[202,28,203,28],[202,29,203,29],[202,30,203,30],[202,31,203,31],[202,20,203,20],[202,21,203,21],[202,22,203,22],[202,23,203,23],[202,24,203,24],[202,25,203,25],[200,48,201,48],[200,49,201,49],[202,1,203,1],[202,2,203,7],[202,8,203,12],[202,13,203,15],[202,16,203,16],[202,17,203,17],[202,18,203,18],[202,19,203,19],[200,41,201,41],[200,42,201,42],[200,43,201,43],[200,44,201,44],[200,45,201,45],[200,46,201,46],[200,35,201,35],[200,36,201,36],[200,37,201,37],[200,38,201,38],[200,39,201,39],[200,40,201,40],[200,29,201,29],[200,30,201,30],[200,31,201,31],[200,32,201,32],[200,33,201,33],[200,34,201,34],[200,23,201,23],[200,24,201,24],[200,25,201,25],[200,26,201,26],[200,27,201,27],[200,28,201,28],[200,17,201,17],[200,18,201,18],[200,19,201,19],[200,20,201,20],[200,21,201,21],[200,22,201,22],[198,44,199,44],[198,45,199,45],[198,46,199,46],[198,48,199,48],[198,49,199,49],[200,1,201,1],[200,2,201,7],[200,8,201,12],[200,13,201,15],[200,16,201,16],[198,38,199,38],[198,39,199,39],[198,40,199,40],[198,41,199,41],[198,42,199,42],[198,43,199,43],[198,32,199,32],[198,33,199,33],[198,34,199,34],[198,35,199,35],[198,36,199,36],[198,37,199,37],[198,26,199,26],[198,27,199,27],[198,28,199,28],[198,29,199,29],[198,30,199,30],[198,31,199,31],[198,20,199,20],[198,21,199,21],[198,22,199,22],[198,23,199,23],[198,24,199,24],[198,25,199,25],[196,48,197,48],[196,49,197,49],[198,1,199,1],[198,2,199,7],[198,8,199,12],[198,13,199,15],[198,16,199,16],[198,17,199,17],[198,18,199,18],[198,19,199,19],[196,41,197,41],[196,42,197,42],[196,43,197,43],[196,44,197,44],[196,45,197,45],[196,46,197,46],[196,35,197,35],[196,36,197,36],[196,37,197,37],[196,38,197,38],[196,39,197,39],[196,40,197,40],[196,29,197,29],[196,30,197,30],[196,31,197,31],[196,32,197,32],[196,33,197,33],[196,34,197,34],[196,23,197,23],[196,24,197,24],[196,25,197,25],[196,26,197,26],[196,27,197,27],[196,28,197,28],[196,17,197,17],[196,18,197,18],[196,19,197,19],[196,20,197,20],[196,21,197,21],[196,22,197,22],[194,44,195,44],[194,45,195,45],[194,46,195,46],[194,48,195,48],[194,49,195,49],[196,1,197,1],[196,2,197,7],[196,8,197,12],[196,13,197,15],[196,16,197,16],[194,38,195,38],[194,39,195,39],[194,40,195,40],[194,41,195,41],[194,42,195,42],[194,43,195,43],[194,32,195,32],[194,33,195,33],[194,34,195,34],[194,35,195,35],[194,36,195,36],[194,37,195,37],[194,26,195,26],[194,27,195,27],[194,28,195,28],[194,29,195,29],[194,30,195,30],[194,31,195,31],[194,20,195,20],[194,21,195,21],[194,22,195,22],[194,23,195,23],[194,24,195,24],[194,25,195,25],[192,48,193,48],[192,49,193,49],[194,1,195,1],[194,2,195,7],[194,8,195,12],[194,13,195,15],[194,16,195,16],[194,17,195,17],[194,18,195,18],[194,19,195,19],[192,41,193,41],[192,42,193,42],[192,43,193,43],[192,44,193,44],[192,45,193,45],[192,46,193,46],[192,35,193,35],[192,36,193,36],[192,37,193,37],[192,38,193,38],[192,39,193,39],[192,40,193,40],[192,29,193,29],[192,30,193,30],[192,31,193,31],[192,32,193,32],[192,33,193,33],[192,34,193,34],[192,23,193,23],[192,24,193,24],[192,25,193,25],[192,26,193,26],[192,27,193,27],[192,28,193,28],[192,17,193,17],[192,18,193,18],[192,19,193,19],[192,20,193,20],[192,21,193,21],[192,22,193,22],[190,44,191,44],[190,45,191,45],[190,46,191,46],[190,48,191,48],[190,49,191,49],[192,1,193,1],[192,2,193,7],[192,8,193,12],[192,13,193,15],[192,16,193,16],[190,38,191,38],[190,39,191,39],[190,40,191,40],[190,41,191,41],[190,42,191,42],[190,43,191,43],[190,32,191,32],[190,33,191,33],[190,34,191,34],[190,35,191,35],[190,36,191,36],[190,37,191,37],[190,26,191,26],[190,27,191,27],[190,28,191,28],[190,29,191,29],[190,30,191,30],[190,31,191,31],[190,20,191,20],[190,21,191,21],[190,22,191,22],[190,23,191,23],[190,24,191,24],[190,25,191,25],[188,48,189,48],[188,49,189,49],[190,1,191,1],[190,2,191,7],[190,8,191,12],[190,13,191,15],[190,16,191,16],[190,17,191,17],[190,18,191,18],[190,19,191,19],[188,41,189,41],[188,42,189,42],[188,43,189,43],[188,44,189,44],[188,45,189,45],[188,46,189,46],[188,35,189,35],[188,36,189,36],[188,37,189,37],[188,38,189,38],[188,39,189,39],[188,40,189,40],[188,29,189,29],[188,30,189,30],[188,31,189,31],[188,32,189,32],[188,33,189,33],[188,34,189,34],[188,23,189,23],[188,24,189,24],[188,25,189,25],[188,26,189,26],[188,27,189,27],[188,28,189,28],[188,17,189,17],[188,18,189,18],[188,19,189,19],[188,20,189,20],[188,21,189,21],[188,22,189,22],[186,44,187,44],[186,45,187,45],[186,46,187,46],[186,48,187,48],[186,49,187,49],[188,1,189,1],[188,2,189,7],[188,8,189,12],[188,13,189,15],[188,16,189,16],[186,38,187,38],[186,39,187,39],[186,40,187,40],[186,41,187,41],[186,42,187,42],[186,43,187,43],[186,32,187,32],[186,33,187,33],[186,34,187,34],[186,35,187,35],[186,36,187,36],[186,37,187,37],[186,26,187,26],[186,27,187,27],[186,28,187,28],[186,29,187,29],[186,30,187,30],[186,31,187,31],[186,20,187,20],[186,21,187,21],[186,22,187,22],[186,23,187,23],[186,24,187,24],[186,25,187,25],[184,48,185,48],[184,49,185,49],[186,1,187,1],[186,2,187,7],[186,8,187,12],[186,13,187,15],[186,16,187,16],[186,17,187,17],[186,18,187,18],[186,19,187,19],[184,41,185,41],[184,42,185,42],[184,43,185,43],[184,44,185,44],[184,45,185,45],[184,46,185,46],[184,35,185,35],[184,36,185,36],[184,37,185,37],[184,38,185,38],[184,39,185,39],[184,40,185,40],[184,29,185,29],[184,30,185,30],[184,31,185,31],[184,32,185,32],[184,33,185,33],[184,34,185,34],[184,23,185,23],[184,24,185,24],[184,25,185,25],[184,26,185,26],[184,27,185,27],[184,28,185,28],[184,17,185,17],[184,18,185,18],[184,19,185,19],[184,20,185,20],[184,21,185,21],[184,22,185,22],[182,44,183,44],[182,45,183,45],[182,46,183,46],[182,48,183,48],[182,49,183,49],[184,1,185,1],[184,2,185,7],[184,8,185,12],[184,13,185,15],[184,16,185,16],[182,38,183,38],[182,39,183,39],[182,40,183,40],[182,41,183,41],[182,42,183,42],[182,43,183,43],[182,32,183,32],[182,33,183,33],[182,34,183,34],[182,35,183,35],[182,36,183,36],[182,37,183,37],[182,26,183,26],[182,27,183,27],[182,28,183,28],[182,29,183,29],[182,30,183,30],[182,31,183,31],[182,20,183,20],[182,21,183,21],[182,22,183,22],[182,23,183,23],[182,24,183,24],[182,25,183,25],[180,48,181,48],[180,49,181,49],[182,1,183,1],[182,2,183,7],[182,8,183,12],[182,13,183,15],[182,16,183,16],[182,17,183,17],[182,18,183,18],[182,19,183,19],[180,41,181,41],[180,42,181,42],[180,43,181,43],[180,44,181,44],[180,45,181,45],[180,46,181,46],[180,35,181,35],[180,36,181,36],[180,37,181,37],[180,38,181,38],[180,39,181,39],[180,40,181,40],[180,29,181,29],[180,30,181,30],[180,31,181,31],[180,32,181,32],[180,33,181,33],[180,34,181,34],[180,23,181,23],[180,24,181,24],[180,25,181,25],[180,26,181,26],[180,27,181,27],[180,28,181,28],[180,17,181,17],[180,18,181,18],[180,19,181,19],[180,20,181,20],[180,21,181,21],[180,22,181,22],[178,44,179,44],[178,45,179,45],[178,46,179,46],[178,48,179,48],[178,49,179,49],[180,1,181,1],[180,2,181,7],[180,8,181,12],[180,13,181,15],[180,16,181,16],[178,38,179,38],[178,39,179,39],[178,40,179,40],[178,41,179,41],[178,42,179,42],[178,43,179,43],[178,32,179,32],[178,33,179,33],[178,34,179,34],[178,35,179,35],[178,36,179,36],[178,37,179,37],[178,26,179,26],[178,27,179,27],[178,28,179,28],[178,29,179,29],[178,30,179,30],[178,31,179,31],[178,20,179,20],[178,21,179,21],[178,22,179,22],[178,23,179,23],[178,24,179,24],[178,25,179,25],[176,48,177,48],[176,49,177,49],[178,1,179,1],[178,2,179,7],[178,8,179,12],[178,13,179,15],[178,16,179,16],[178,17,179,17],[178,18,179,18],[178,19,179,19],[176,41,177,41],[176,42,177,42],[176,43,177,43],[176,44,177,44],[176,45,177,45],[176,46,177,46],[176,35,177,35],[176,36,177,36],[176,37,177,37],[176,38,177,38],[176,39,177,39],[176,40,177,40],[176,29,177,29],[176,30,177,30],[176,31,177,31],[176,32,177,32],[176,33,177,33],[176,34,177,34],[176,23,177,23],[176,24,177,24],[176,25,177,25],[176,26,177,26],[176,27,177,27],[176,28,177,28],[176,17,177,17],[176,18,177,18],[176,19,177,19],[176,20,177,20],[176,21,177,21],[176,22,177,22],[174,44,175,44],[174,45,175,45],[174,46,175,46],[174,48,175,48],[174,49,175,49],[176,1,177,1],[176,2,177,7],[176,8,177,12],[176,13,177,15],[176,16,177,16],[174,38,175,38],[174,39,175,39],[174,40,175,40],[174,41,175,41],[174,42,175,42],[174,43,175,43],[174,32,175,32],[174,33,175,33],[174,34,175,34],[174,35,175,35],[174,36,175,36],[174,37,175,37],[174,26,175,26],[174,27,175,27],[174,28,175,28],[174,29,175,29],[174,30,175,30],[174,31,175,31],[174,20,175,20],[174,21,175,21],[174,22,175,22],[174,23,175,23],[174,24,175,24],[174,25,175,25],[172,48,173,48],[172,49,173,49],[174,1,175,1],[174,2,175,7],[174,8,175,12],[174,13,175,15],[174,16,175,16],[174,17,175,17],[174,18,175,18],[174,19,175,19],[172,41,173,41],[172,42,173,42],[172,43,173,43],[172,44,173,44],[172,45,173,45],[172,46,173,46],[172,35,173,35],[172,36,173,36],[172,37,173,37],[172,38,173,38],[172,39,173,39],[172,40,173,40],[172,29,173,29],[172,30,173,30],[172,31,173,31],[172,32,173,32],[172,33,173,33],[172,34,173,34],[172,23,173,23],[172,24,173,24],[172,25,173,25],[172,26,173,26],[172,27,173,27],[172,28,173,28],[172,17,173,17],[172,18,173,18],[172,19,173,19],[172,20,173,20],[172,21,173,21],[172,22,173,22],[170,44,171,44],[170,45,171,45],[170,46,171,46],[170,48,171,48],[170,49,171,49],[172,1,173,1],[172,2,173,7],[172,8,173,12],[172,13,173,15],[172,16,173,16],[170,38,171,38],[170,39,171,39],[170,40,171,40],[170,41,171,41],[170,42,171,42],[170,43,171,43],[170,32,171,32],[170,33,171,33],[170,34,171,34],[170,35,171,35],[170,36,171,36],[170,37,171,37],[170,26,171,26],[170,27,171,27],[170,28,171,28],[170,29,171,29],[170,30,171,30],[170,31,171,31],[170,20,171,20],[170,21,171,21],[170,22,171,22],[170,23,171,23],[170,24,171,24],[170,25,171,25],[168,48,169,48],[168,49,169,49],[170,1,171,1],[170,2,171,7],[170,8,171,12],[170,13,171,15],[170,16,171,16],[170,17,171,17],[170,18,171,18],[170,19,171,19],[168,41,169,41],[168,42,169,42],[168,43,169,43],[168,44,169,44],[168,45,169,45],[168,46,169,46],[168,35,169,35],[168,36,169,36],[168,37,169,37],[168,38,169,38],[168,39,169,39],[168,40,169,40],[168,29,169,29],[168,30,169,30],[168,31,169,31],[168,32,169,32],[168,33,169,33],[168,34,169,34],[168,23,169,23],[168,24,169,24],[168,25,169,25],[168,26,169,26],[168,27,169,27],[168,28,169,28],[168,17,169,17],[168,18,169,18],[168,19,169,19],[168,20,169,20],[168,21,169,21],[168,22,169,22],[166,44,167,44],[166,45,167,45],[166,46,167,46],[166,48,167,48],[166,49,167,49],[168,1,169,1]],"merged_total":4010,"flags":["merged_cut"]}
[]
[]
[null,"２　職員の勤務実績（既存資料の添付可）",null,null,null,null,null,null,null,null,null,null,null,{"$f":"YEAR(EOMONTH(DATE(SUM(2018+【共通】!L9),【共通】!N9,【共通】!P9),-2))","v":2026},null,null,null,null,"（",{"$f":"IFERROR(\"令和　\"&VLOOKUP(N3,BL5:BM12,2,FALSE),\"\")","v":"令和　8"},null,"年",{"$f":"MONTH(EOMONTH(DATE(2023,【共通】!N9,【共通】!P9),-4))","v":3},"月分実績",null,"）","当該事業所の常勤の職員が当該月に勤務すべき時間数",null,null,null,null,null,null,null,null,null,null,null,null," 時間／日",null,null,null," 時間／週",null,null,null," 時間／月",null,{"$f":"\"1 / \"&COUNTA(C$7,C$49,#REF!,C$135,C$179)","v":"1 / 2"}]
[]
[null,null,"職　　種",null,null,null,null,null,"氏　　名",null,null,null,null,"勤務\n形態",null,null,{"$f":"DATE($N$3,$W$3,1)","v":"2026-03-01"},{"$f":"Q5+1","v":"2026-03-02"},{"$f":"R5+1","v":"2026-03-03"},{"$f":"S5+1","v":"2026-03-04"},"2026-03-05","2026-03-06","2026-03-07","2026-03-08","2026-03-09","2026-03-10","2026-03-11","2026-03-12","2026-03-13","2026-03-14","2026-03-15","2026-03-16","2026-03-17","2026-03-18","2026-03-19","2026-03-20","2026-03-21","2026-03-22","2026-03-23","2026-03-24","2026-03-25","2026-03-26","2026-03-27",{"$f":"AQ5+1","v":"2026-03-28"},{"$f":"IF(DAY(DATE($N$3,$W$3,29))=29,AR5+1,\"\")","v":"2026-03-29"},{"$f":"IF(DAY(DATE($N$3,$W$3,30))=30,AS5+1,\"\")","v":"2026-03-30"},{"$f":"IF(DAY(DATE($N$3,$W$3,31))=31,AT5+1,\"\")","v":"2026-03-31"},"勤務日数",null,"常勤換算",null,null,null,null,null,null,null,null,null,null,null,null,null,2023,5]
[null,null,null,null,null,null,null,null,null,null,null,null,null,null,null,null,{"$f":"VLOOKUP(WEEKDAY(Q5,2),$BA$7:$BB$14,2,FALSE)","v":"日"},"月","火","水","木","金","土","日","月","火","水","木","金","土","日","月","火","水","木","金","土","日","月","火","水","木","金","土",{"$f":"IF(AS5=\"\",\"\",VLOOKUP(WEEKDAY(AS5,2),$BA$7:$BB$14,2,FALSE))","v":"日"},{"$f":"IF(AT5=\"\",\"\",VLOOKUP(WEEKDAY(AT5,2),$BA$7:$BB$14,2,FALSE))","v":"月"},{"$f":"IF(AU5=\"\",\"\",VLOOKUP(WEEKDAY(AU5,2),$BA$7:$BB$14,2,FALSE))","v":"火"},"勤務時間",null,null,null,null,null,null,null,null,null,null,null,null,null,null,null,{"$f":"BL5+1","v":2024},{"$f":"BM5+1","v":6}]
[null,"例","管理者",null,null,null,null,null,"○○　○○",null,null,null,null,"常勤\n兼務",null,null,7.75,7.75,7.75,null,null,7.75,7.75,7.75,7.75,7.75,null,null,7.75,7.75,7.75,7.75,7.75,null,null,7.75,7.75,7.75,7.75,7.75,null,null,7.75,7.75,7.75,7.75,null,{"$f":"COUNTA(Q7:AU7)","v":22},{"$f":"AV8","v":170.5},1.1000000000000001,null,null,1,"月","管理者",null,null,null,"常勤\n専従","常勤\n兼務","非常勤\n専従","非常勤\n兼務",null,{"$f":"BL6+1","v":2025},7]
[null,null,null,null,null,null,null,null,null,null,null,null,null,null,null,null,null,null,null,null,null,null,null,null,null,null,null,null,null,null,null,null,null,null,null,null,null,null,null,null,null,null,null,null,null,null,null,{"$f":"SUM(Q7:AU8)","v":170.5},null,null,null,null,2,"火","サービス提供責任者",null,null,null,null,null,null,null,null,2026,8]
[null,"例","サービス提供責任者",null,null,null,null,null,"××　××",null,null,null,null,"常勤\n専従",null,null,6.75,6.75,6.75,null,null,6.75,6.75,6.75,6.75,6.75,null,null,6.75,6.75,6.75,6.75,6.75,null,null,6.75,6.75,6.75,6.75,6.75,null,null,6.75,6.75,6.75,6.75,null,{"$f":"COUNTA(Q9:AU9)","v":22},{"$f":"AV10","v":148.5},0.9,null,null,3,"水","ヘルパー",null,null,null,null,null,null,null,null,2027,9]
[null,null,null,null,null,null,null,null,null,null,null,null,null,null,null,null,null,null,null,null,null,null,null,null,null,null,null,null,null,null,null,null,null,null,null,null,null,null,null,null,null,null,null,null,null,null,null,{"$f":"SUM(Q9:AU10)","v":148.5},null,null,null,null,4,"木","登録ヘルパー",null,null,null,null,null,null,null,null,2028,10]
[null,"例","ヘルパー",null,null,null,null,null,"△△　△△",null,null,null,null,"非常勤\n兼務",null,null,null,2.75,2.75,null,null,1.5,1.5,null,2.75,2.75,null,null,1.5,1.5,null,2.75,2.75,null,null,1.5,1.5,null,2.75,2.75,null,null,1.5,1.5,null,2.75,null,{"$f":"COUNTA(Q11:AU11)","v":17},{"$f":"AV12","v":36.75},0.2,null,null,5,"金",null,null,null,null,null,null,null,null,null,2029,11]
[null,null,null,null,null,null,null,null,null,null,null,null,null,null,null,null,null,null,null,null,null,null,null,null,null,null,null,null,null,null,null,null,null,null,null,null,null,null,null,null,null,null,null,null,null,null,null,{"$f":"SUM(Q11:AU12)","v":36.75},null,null,null,null,6,"土",null,null,null,null,null,null,null,null,null,2030,12]
[null,{"$f":"ROW(B1)","v":1},null,null,null,null,null,null,null,null,null,null,null,null,null,null,null,null,null,null,null,null,null,null,null,null,null,null,null,null,null,null,null,null,null,null,null,null,null,null,null,null,null,null,null,null,null,{"$f":"COUNTA(Q13:AU13)","v":0},{"$f":"AV14","v":0},{"$f":"IFERROR(ROUNDDOWN(AV14/$AT$3,1),\"\")","v":""},null,null,7,"日"]
[null,null,null,null,null,null,null,null,null,null,null,null,null,null,null,null,null,null,null,null,null,null,null,null,null,null,null,null,null,null,null,null,null,null,null,null,null,null,null,null,null,null,null,null,null,null,null,{"$f":"SUM(Q13:AU13)","v":0}]
[null,{"$f":"B13+1","v":2},null,null,null,null,null,null,null,null,null,null,null,null,null,null,null,null,null,null,null,null,null,null,null,null,null,null,null,null,null,null,null,null,null,null,null,null,null,null,null,null,null,null,null,null,null,{"$f":"COUNTA(Q15:AU15)","v":0},{"$f":"AV16","v":0},{"$f":"IFERROR(ROUNDDOWN(AV16/$AT$3,1),\"\")","v":""}]
[null,null,null,null,null,null,null,null,null,null,null,null,null,null,null,null,null,null,null,null,null,null,null,null,null,null,null,null,null,null,null,null,null,null,null,null,null,null,null,null,null,null,null,null,null,null,null,{"$f":"SUM(Q15:AU15)","v":0}]
[null,{"$f":"B15+1","v":3},null,null,null,null,null,null,null,null,null,null,null,null,null,null,null,null,null,null,null,null,null,null,null,null,null,null,null,null,null,null,null,null,null,null,null,null,null,null,null,null,null,null,null,null,null,{"$f":"COUNTA(Q17:AU17)","v":0},{"$f":"AV18","v":0},{"$f":"IFERROR(ROUNDDOWN(AV18/$AT$3,1),\"\")","v":""}]
[null,null,null,null,null,null,null,null,null,null,null,null,null,null,null,null,null,null,null,null,null,null,null,null,null,null,null,null,null,null,null,null,null,null,null,null,null,null,null,null,null,null,null,null,null,null,null,{"$f":"SUM(Q17:AU17)","v":0}]
[null,{"$f":"B17+1","v":4},null,null,null,null,null,null,null,null,null,null,null,null,null,null,null,null,null,null,null,null,null,null,null,null,null,null,null,null,null,null,null,null,null,null,null,null,null,null,null,null,null,null,null,null,null,{"$f":"COUNTA(Q19:AU19)","v":0},{"$f":"AV20","v":0},{"$f":"IFERROR(ROUNDDOWN(AV20/$AT$3,1),\"\")","v":""}]
[null,null,null,null,null,null,null,null,null,null,null,null,null,null,null,null,null,null,null,null,null,null,null,null,null,null,null,null,null,null,null,null,null,null,null,null,null,null,null,null,null,null,null,null,null,null,null,{"$f":"SUM(Q19:AU19)","v":0}]
[null,{"$f":"B19+1","v":5},null,null,null,null,null,null,null,null,null,null,null,null,null,null,null,null,null,null,null,null,null,null,null,null,null,null,null,null,null,null,null,null,null,null,null,null,null,null,null,null,null,null,null,null,null,{"$f":"COUNTA(Q21:AU21)","v":0},{"$f":"AV22","v":0},{"$f":"IFERROR(ROUNDDOWN(AV22/$AT$3,1),\"\")","v":""}]
[null,null,null,null,null,null,null,null,null,null,null,null,null,null,null,null,null,null,null,null,null,null,null,null,null,null,null,null,null,null,null,null,null,null,null,null,null,null,null,null,null,null,null,null,null,null,null,{"$f":"SUM(Q21:AU21)","v":0}]
[null,{"$f":"B21+1","v":6},null,null,null,null,null,null,null,null,null,null,null,null,null,null,null,null,null,null,null,null,null,null,null,null,null,null,null,null,null,null,null,null,null,null,null,null,null,null,null,null,null,null,null,null,null,0,{"$f":"AV24","v":0},{"$f":"IFERROR(ROUNDDOWN(AV24/$AT$3,1),\"\")","v":""}]
[null,null,null,null,null,null,null,null,null,null,null,null,null,null,null,null,null,null,null,null,null,null,null,null,null,null,null,null,null,null,null,null,null,null,null,null,null,null,null,null,null,null,null,null,null,null,null,0]
[null,{"$f":"B23+1","v":7},null,null,null,null,null,null,null,null,null,null,null,null,null,null,null,null,null,null,null,null,null,null,null,null,null,null,null,null,null,null,null,null,null,null,null,null,null,null,null,null,null,null,null,null,null,0,{"$f":"AV26","v":0},{"$f":"IFERROR(ROUNDDOWN(AV26/$AT$3,1),\"\")","v":""}]
[null,null,null,null,null,null,null,null,null,null,null,null,null,null,null,null,null,null,null,null,null,null,null,null,null,null,null,null,null,null,null,null,null,null,null,null,null,null,null,null,null,null,null,null,null,null,null,0]
[null,{"$f":"B25+1","v":8},null,null,null,null,null,null,null,null,null,null,null,null,null,null,null,null,null,null,null,null,null,null,null,null,null,null,null,null,null,null,null,null,null,null,null,null,null,null,null,null,null,null,null,null,null,0,{"$f":"AV28","v":0},{"$f":"IFERROR(ROUNDDOWN(AV28/$AT$3,1),\"\")","v":""}]
[null,null,null,null,null,null,null,null,null,null,null,null,null,null,null,null,null,null,null,null,null,null,null,null,null,null,null,null,null,null,null,null,null,null,null,null,null,null,null,null,null,null,null,null,null,null,null,0]
[null,{"$f":"B27+1","v":9},null,null,null,null,null,null,null,null,null,null,null,null,null,null,null,null,null,null,null,null,null,null,null,null,null,null,null,null,null,null,null,null,null,null,null,null,null,null,null,null,null,null,null,null,null,0,{"$f":"AV30","v":0},{"$f":"IFERROR(ROUNDDOWN(AV30/$AT$3,1),\"\")","v":""}]
[null,null,null,null,null,null,null,null,null,null,null,null,null,null,null,null,null,null,null,null,null,null,null,null,null,null,null,null,null,null,null,null,null,null,null,null,null,null,null,null,null,null,null,null,null,null,null,0]
[null,{"$f":"B29+1","v":10},null,null,null,null,null,null,null,null,null,null,null,null,null,null,null,null,null,null,null,null,null,null,null,null,null,null,null,null,null,null,null,null,null,null,null,null,null,null,null,null,null,null,null,null,null,0,{"$f":"AV32","v":0},{"$f":"IFERROR(ROUNDDOWN(AV32/$AT$3,1),\"\")","v":""}]
[null,null,null,null,null,null,null,null,null,null,null,null,null,null,null,null,null,null,null,null,null,null,null,null,null,null,null,null,null,null,null,null,null,null,null,null,null,null,null,null,null,null,null,null,null,null,null,0]
[null,{"$f":"B31+1","v":11},null,null,null,null,null,null,null,null,null,null,null,null,null,null,null,null,null,null,null,null,null,null,null,null,null,null,null,null,null,null,null,null,null,null,null,null,null,null,null,null,null,null,null,null,null,0,{"$f":"AV34","v":0},{"$f":"IFERROR(ROUNDDOWN(AV34/$AT$3,1),\"\")","v":""}]
[null,null,null,null,null,null,null,null,null,null,null,null,null,null,null,null,null,null,null,null,null,null,null,null,null,null,null,null,null,null,null,null,null,null,null,null,null,null,null,null,null,null,null,null,null,null,null,0]
[null,{"$f":"B33+1","v":12},null,null,null,null,null,null,null,null,null,null,null,null,null,null,null,null,null,null,null,null,null,null,null,null,null,null,null,null,null,null,null,null,null,null,null,null,null,null,null,null,null,null,null,null,null,0,{"$f":"AV36","v":0},{"$f":"IFERROR(ROUNDDOWN(AV36/$AT$3,1),\"\")","v":""}]
[null,null,null,null,null,null,null,null,null,null,null,null,null,null,null,null,null,null,null,null,null,null,null,null,null,null,null,null,null,null,null,null,null,null,null,null,null,null,null,null,null,null,null,null,null,null,null,0]
[null,{"$f":"B35+1","v":13},null,null,null,null,null,null,null,null,null,null,null,null,null,null,null,null,null,null,null,null,null,null,null,null,null,null,null,null,null,null,null,null,null,null,null,null,null,null,null,null,null,null,null,null,null,0,{"$f":"AV38","v":0},{"$f":"IFERROR(ROUNDDOWN(AV38/$AT$3,1),\"\")","v":""}]
[null,null,null,null,null,null,null,null,null,null,null,null,null,null,null,null,null,null,null,null,null,null,null,null,null,null,null,null,null,null,null,null,null,null,null,null,null,null,null,null,null,null,null,null,null,null,null,0]
[null,{"$f":"B37+1","v":14},null,null,null,null,null,null,null,null,null,null,null,null,null,null,null,null,null,null,null,null,null,null,null,null,null,null,null,null,null,null,null,null,null,null,null,null,null,null,null,null,null,null,null,null,null,0,{"$f":"AV40","v":0},{"$f":"IFERROR(ROUNDDOWN(AV40/$AT$3,1),\"\")","v":""}]
[null,null,null,null,null,null,null,null,null,null,null,null,null,null,null,null,null,null,null,null,null,null,null,null,null,null,null,null,null,null,null,null,null,null,null,null,null,null,null,null,null,null,null,null,null,null,null,0]
[null,{"$f":"B39+1","v":15},null,null,null,null,null,null,null,null,null,null,null,null,null,null,null,null,null,null,null,null,null,null,null,null,null,null,null,null,null,null,null,null,null,null,null,null,null,null,null,null,null,null,null,null,null,0,{"$f":"AV42","v":0},{"$f":"IFERROR(ROUNDDOWN(AV42/$AT$3,1),\"\")","v":""}]
[null,null,null,null,null,null,null,null,null,null,null,null,null,null,null,null,null,null,null,null,null,null,null,null,null,null,null,null,null,null,null,null,null,null,null,null,null,null,null,null,null,null,null,null,null,null,null,0]
[null,{"$f":"B41+1","v":16},null,null,null,null,null,null,null,null,null,null,null,null,null,null,null,null,null,null,null,null,null,null,null,null,null,null,null,null,null,null,null,null,null,null,null,null,null,null,null,null,null,null,null,null,null,0,{"$f":"AV44","v":0},{"$f":"IFERROR(ROUNDDOWN(AV44/$AT$3,1),\"\")","v":""}]
[null,null,null,null,null,null,null,null,null,null,null,null,null,null,null,null,null,null,null,null,null,null,null,null,null,null,null,null,null,null,null,null,null,null,null,null,null,null,null,null,null,null,null,null,null,null,null,0]
[null,{"$f":"B43+1","v":17},null,null,null,null,null,null,null,null,null,null,null,null,null,null,null,null,null,null,null,null,null,null,null,null,null,null,null,null,null,null,null,null,null,null,null,null,null,null,null,null,null,null,null,null,null,0,{"$f":"AV46","v":0},{"$f":"IFERROR(ROUNDDOWN(AV46/$AT$3,1),\"\")","v":""}]
[null,null,null,null,null,null,null,null,null,null,null,null,null,null,null,null,null,null,null,null,null,null,null,null,null,null,null,null,null,null,null,null,null,null,null,null,null,null,null,null,null,null,null,null,null,null,null,0]
[null,{"$f":"B45+1","v":18},null,null,null,null,null,null,null,null,null,null,null,null,null,null,null,null,null,null,null,null,null,null,null,null,null,null,null,null,null,null,null,null,null,null,null,null,null,null,null,null,null,null,null,null,null,0,{"$f":"AV48","v":0},{"$f":"IFERROR(ROUNDDOWN(AV48/$AT$3,1),\"\")","v":""}]
[null,null,null,null,null,null,null,null,null,null,null,null,null,null,null,null,null,null,null,null,null,null,null,null,null,null,null,null,null,null,null,null,null,null,null,null,null,null,null,null,null,null,null,null,null,null,null,0]
[null,{"$f":"B47+1","v":19},null,null,null,null,null,null,null,null,null,null,null,null,null,null,null,null,null,null,null,null,null,null,null,null,null,null,null,null,null,null,null,null,null,null,null,null,null,null,null,null,null,null,null,null,null,0,{"$f":"AV50","v":0},{"$f":"IFERROR(ROUNDDOWN(AV50/$AT$3,1),\"\")","v":""}]
[null,null,null,null,null,null,null,null,null,null,null,null,null,null,null,null,null,null,null,null,null,null,null,null,null,null,null,null,null,null,null,null,null,null,null,null,null,null,null,null,null,null,null,null,null,null,null,0]
[null,{"$f":"B49+1","v":20},null,null,null,null,null,null,null,null,null,null,null,null,null,null,null,null,null,null,null,null,null,null,null,null,null,null,null,null,null,null,null,null,null,null,null,null,null,null,null,null,null,null,null,null,null,0,{"$f":"AV52","v":0},{"$f":"IFERROR(ROUNDDOWN(AV52/$AT$3,1),\"\")","v":""}]
[null,null,null,null,null,null,null,null,null,null,null,null,null,null,null,null,null,null,null,null,null,null,null,null,null,null,null,null,null,null,null,null,null,null,null,null,null,null,null,null,null,null,null,null,null,null,null,0]
[null,21,null,null,null,null,null,null,null,null,null,null,null,null,null,null,null,null,null,null,null,null,null,null,null,null,null,null,null,null,null,null,null,null,null,null,null,null,null,null,null,null,null,null,null,null,null,0,{"$f":"AV54","v":0},{"$f":"IFERROR(ROUNDDOWN(AV54/$AT$3,1),\"\")","v":""}]
[null,null,null,null,null,null,null,null,null,null,null,null,null,null,null,null,null,null,null,null,null,null,null,null,null,null,null,null,null,null,null,null,null,null,null,null,null,null,null,null,null,null,null,null,null,null,null,0]
[null,22,null,null,null,null,null,null,null,null,null,null,null,null,null,null,null,null,null,null,null,null,null,null,null,null,null,null,null,null,null,null,null,null,null,null,null,null,null,null,null,null,null,null,null,null,null,0,{"$f":"AV56","v":0},{"$f":"IFERROR(ROUNDDOWN(AV56/$AT$3,1),\"\")","v":""}]
[null,null,null,null,null,null,null,null,null,null,null,null,null,null,null,null,null,null,null,null,null,null,null,null,null,null,null,null,null,null,null,null,null,null,null,null,null,null,null,null,null,null,null,null,null,null,null,0]
[null,23,null,null,null,null,null,null,null,null,null,null,null,null,null,null,null,null,null,null,null,null,null,null,null,null,null,null,null,null,null,null,null,null,null,null,null,null,null,null,null,null,null,null,null,null,null,0,{"$f":"AV58","v":0},{"$f":"IFERROR(ROUNDDOWN(AV58/$AT$3,1),\"\")","v":""}]
[null,null,null,null,null,null,null,null,null,null,null,null,null,null,null,null,null,null,null,null,null,null,null,null,null,null,null,null,null,null,null,null,null,null,null,null,null,null,null,null,null,null,null,null,null,null,null,0]
[null,24,null,null,null,null,null,null,null,null,null,null,null,null,null,null,null,null,null,null,null,null,null,null,null,null,null,null,null,null,null,null,null,null,null,null,null,null,null,null,null,null,null,null,null,null,null,0,{"$f":"AV60","v":0},{"$f":"IFERROR(ROUNDDOWN(AV60/$AT$3,1),\"\")","v":""}]
[null,null,null,null,null,null,null,null,null,null,null,null,null,null,null,null,null,null,null,null,null,null,null,null,null,null,null,null,null,null,null,null,null,null,null,null,null,null,null,null,null,null,null,null,null,null,null,0]
[null,25,null,null,null,null,null,null,null,null,null,null,null,null,null,null,null,null,null,null,null,null,null,null,null,null,null,null,null,null,null,null,null,null,null,null,null,null,null,null,null,null,null,null,null,null,null,0,{"$f":"AV62","v":0},{"$f":"IFERROR(ROUNDDOWN(AV62/$AT$3,1),\"\")","v":""}]
[null,null,null,null,null,null,null,null,null,null,null,null,null,null,null,null,null,null,null,null,null,null,null,null,null,null,null,null,null,null,null,null,null,null,null,null,null,null,null,null,null,null,null,null,null,null,null,0]
[null,26,null,null,null,null,null,null,null,null,null,null,null,null,null,null,null,null,null,null,null,null,null,null,null,null,null,null,null,null,null,null,null,null,null,null,null,null,null,null,null,null,null,null,null,null,null,0,{"$f":"AV64","v":0},{"$f":"IFERROR(ROUNDDOWN(AV64/$AT$3,1),\"\")","v":""}]
[null,null,null,null,null,null,null,null,null,null,null,null,null,null,null,null,null,null,null,null,null,null,null,null,null,null,null,null,null,null,null,null,null,null,null,null,null,null,null,null,null,null,null,null,null,null,null,0]
[null,27,null,null,null,null,null,null,null,null,null,null,null,null,null,null,null,null,null,null,null,null,null,null,null,null,null,null,null,null,null,null,null,null,null,null,null,null,null,null,null,null,null,null,null,null,null,0,{"$f":"AV66","v":0},{"$f":"IFERROR(ROUNDDOWN(AV66/$AT$3,1),\"\")","v":""}]
[null,null,null,null,null,null,null,null,null,null,null,null,null,null,null,null,null,null,null,null,null,null,null,null,null,null,null,null,null,null,null,null,null,null,null,null,null,null,null,null,null,null,null,null,null,null,null,0]
[null,28,null,null,null,null,null,null,null,null,null,null,null,null,null,null,null,null,null,null,null,null,null,null,null,null,null,null,null,null,null,null,null,null,null,null,null,null,null,null,null,null,null,null,null,null,null,0,{"$f":"AV68","v":0},{"$f":"IFERROR(ROUNDDOWN(AV68/$AT$3,1),\"\")","v":""}]
[null,null,null,null,null,null,null,null,null,null,null,null,null,null,null,null,null,null,null,null,null,null,null,null,null,null,null,null,null,null,null,null,null,null,null,null,null,null,null,null,null,null,null,null,null,null,null,0]
[null,29,null,null,null,null,null,null,null,null,null,null,null,null,null,null,null,null,null,null,null,null,null,null,null,null,null,null,null,null,null,null,null,null,null,null,null,null,null,null,null,null,null,null,null,null,null,0,{"$f":"AV70","v":0},{"$f":"IFERROR(ROUNDDOWN(AV70/$AT$3,1),\"\")","v":""}]
[null,null,null,null,null,null,null,null,null,null,null,null,null,null,null,null,null,null,null,null,null,null,null,null,null,null,null,null,null,null,null,null,null,null,null,null,null,null,null,null,null,null,null,null,null,null,null,0]
[null,30,null,null,null,null,null,null,null,null,null,null,null,null,null,null,null,null,null,null,null,null,null,null,null,null,null,null,null,null,null,null,null,null,null,null,null,null,null,null,null,null,null,null,null,null,null,0,{"$f":"AV72","v":0},{"$f":"IFERROR(ROUNDDOWN(AV72/$AT$3,1),\"\")","v":""}]
[null,null,null,null,null,null,null,null,null,null,null,null,null,null,null,null,null,null,null,null,null,null,null,null,null,null,null,null,null,null,null,null,null,null,null,null,null,null,null,null,null,null,null,null,null,null,null,0]
[null,31,null,null,null,null,null,null,null,null,null,null,null,null,null,null,null,null,null,null,null,null,null,null,null,null,null,null,null,null,null,null,null,null,null,null,null,null,null,null,null,null,null,null,null,null,null,0,{"$f":"AV74","v":0},{"$f":"IFERROR(ROUNDDOWN(AV74/$AT$3,1),\"\")","v":""}]
[null,null,null,null,null,null,null,null,null,null,null,null,null,null,null,null,null,null,null,null,null,null,null,null,null,null,null,null,null,null,null,null,null,null,null,null,null,null,null,null,null,null,null,null,null,null,null,0]
[null,32,null,null,null,null,null,null,null,null,null,null,null,null,null,null,null,null,null,null,null,null,null,null,null,null,null,null,null,null,null,null,null,null,null,null,null,null,null,null,null,null,null,null,null,null,null,0,{"$f":"AV76","v":0},{"$f":"IFERROR(ROUNDDOWN(AV76/$AT$3,1),\"\")","v":""}]
[null,null,null,null,null,null,null,null,null,null,null,null,null,null,null,null,null,null,null,null,null,null,null,null,null,null,null,null,null,null,null,null,null,null,null,null,null,null,null,null,null,null,null,null,null,null,null,0]
[null,33,null,null,null,null,null,null,null,null,null,null,null,null,null,null,null,null,null,null,null,null,null,null,null,null,null,null,null,null,null,null,null,null,null,null,null,null,null,null,null,null,null,null,null,null,null,0,{"$f":"AV78","v":0},{"$f":"IFERROR(ROUNDDOWN(AV78/$AT$3,1),\"\")","v":""}]
[null,null,null,null,null,null,null,null,null,null,null,null,null,null,null,null,null,null,null,null,null,null,null,null,null,null,null,null,null,null,null,null,null,null,null,null,null,null,null,null,null,null,null,null,null,null,null,0]
[null,34,null,null,null,null,null,null,null,null,null,null,null,null,null,null,null,null,null,null,null,null,null,null,null,null,null,null,null,null,null,null,null,null,null,null,null,null,null,null,null,null,null,null,null,null,null,0,{"$f":"AV80","v":0},{"$f":"IFERROR(ROUNDDOWN(AV80/$AT$3,1),\"\")","v":""}]
[null,null,null,null,null,null,null,null,null,null,null,null,null,null,null,null,null,null,null,null,null,null,null,null,null,null,null,null,null,null,null,null,null,null,null,null,null,null,null,null,null,null,null,null,null,null,null,0]
[null,35,null,null,null,null,null,null,null,null,null,null,null,null,null,null,null,null,null,null,null,null,null,null,null,null,null,null,null,null,null,null,null,null,null,null,null,null,null,null,null,null,null,null,null,null,null,0,{"$f":"AV82","v":0},{"$f":"IFERROR(ROUNDDOWN(AV82/$AT$3,1),\"\")","v":""}]
[null,null,null,null,null,null,null,null,null,null,null,null,null,null,null,null,null,null,null,null,null,null,null,null,null,null,null,null,null,null,null,null,null,null,null,null,null,null,null,null,null,null,null,null,null,null,null,0]
[null,36,null,null,null,null,null,null,null,null,null,null,null,null,null,null,null,null,null,null,null,null,null,null,null,null,null,null,null,null,null,null,null,null,null,null,null,null,null,null,null,null,null,null,null,null,null,0,{"$f":"AV84","v":0},{"$f":"IFERROR(ROUNDDOWN(AV84/$AT$3,1),\"\")","v":""}]
[null,null,null,null,null,null,null,null,null,null,null,null,null,null,null,null,null,null,null,null,null,null,null,null,null,null,null,null,null,null,null,null,null,null,null,null,null,null,null,null,null,null,null,null,null,null,null,0]
[null,37,null,null,null,null,null,null,null,null,null,null,null,null,null,null,null,null,null,null,null,null,null,null,null,null,null,null,null,null,null,null,null,null,null,null,null,null,null,null,null,null,null,null,null,null,null,{"$f":"COUNTA(Q85:AU85)","v":0},{"$f":"AV86","v":0},{"$f":"IFERROR(ROUNDDOWN(AV86/$AT$3,1),\"\")","v":""}]
[null,null,null,null,null,null,null,null,null,null,null,null,null,null,null,null,null,null,null,null,null,null,null,null,null,null,null,null,null,null,null,null,null,null,null,null,null,null,null,null,null,null,null,null,null,null,null,{"$f":"SUM(Q85:AU85)","v":0}]
[null,{"$f":"B85+1","v":38},null,null,null,null,null,null,null,null,null,null,null,null,null,null,null,null,null,null,null,null,null,null,null,null,null,null,null,null,null,null,null,null,null,null,null,null,null,null,null,null,null,null,null,null,null,0,{"$f":"AV88","v":0},{"$f":"IFERROR(ROUNDDOWN(AV88/$AT$3,1),\"\")","v":""}]
[null,null,null,null,null,null,null,null,null,null,null,null,null,null,null,null,null,null,null,null,null,null,null,null,null,null,null,null,null,null,null,null,null,null,null,null,null,null,null,null,null,null,null,null,null,null,null,0]
[null,39,null,null,null,null,null,null,null,null,null,null,null,null,null,null,null,null,null,null,null,null,null,null,null,null,null,null,null,null,null,null,null,null,null,null,null,null,null,null,null,null,null,null,null,null,null,0,{"$f":"AV90","v":0},{"$f":"IFERROR(ROUNDDOWN(AV90/$AT$3,1),\"\")","v":""}]
[null,null,null,null,null,null,null,null,null,null,null,null,null,null,null,null,null,null,null,null,null,null,null,null,null,null,null,null,null,null,null,null,null,null,null,null,null,null,null,null,null,null,null,null,null,null,null,0]
[null,40,null,null,null,null,null,null,null,null,null,null,null,null,null,null,null,null,null,null,null,null,null,null,null,null,null,null,null,null,null,null,null,null,null,null,null,null,null,null,null,null,null,null,null,null,null,0,{"$f":"AV92","v":0},{"$f":"IFERROR(ROUNDDOWN(AV92/$AT$3,1),\"\")","v":""}]
[null,null,null,null,null,null,null,null,null,null,null,null,null,null,null,null,null,null,null,null,null,null,null,null,null,null,null,null,null,null,null,null,null,null,null,null,null,null,null,null,null,null,null,null,null,null,null,0]
[null,41,null,null,null,null,null,null,null,null,null,null,null,null,null,null,null,null,null,null,null,null,null,null,null,null,null,null,null,null,null,null,null,null,null,null,null,null,null,null,null,null,null,null,null,null,null,0,{"$f":"AV94","v":0},{"$f":"IFERROR(ROUNDDOWN(AV94/$AT$3,1),\"\")","v":""}]
[null,null,null,null,null,null,null,null,null,null,null,null,null,null,null,null,null,null,null,null,null,null,null,null,null,null,null,null,null,null,null,null,null,null,null,null,null,null,null,null,null,null,null,null,null,null,null,0]
[null,{"$f":"B93+1","v":42},null,null,null,null,null,null,null,null,null,null,null,null,null,null,null,null,null,null,null,null,null,null,null,null,null,null,null,null,null,null,null,null,null,null,null,null,null,null,null,null,null,null,null,null,null,0,{"$f":"AV96","v":0},{"$f":"IFERROR(ROUNDDOWN(AV96/$AT$3,1),\"\")","v":""}]
[null,null,null,null,null,null,null,null,null,null,null,null,null,null,null,null,null,null,null,null,null,null,null,null,null,null,null,null,null,null,null,null,null,null,null,null,null,null,null,null,null,null,null,null,null,null,null,0]
[null,43,null,null,null,null,null,null,null,null,null,null,null,null,null,null,null,null,null,null,null,null,null,null,null,null,null,null,null,null,null,null,null,null,null,null,null,null,null,null,null,null,null,null,null,null,null,0,{"$f":"AV98","v":0},{"$f":"IFERROR(ROUNDDOWN(AV98/$AT$3,1),\"\")","v":""}]
[null,null,null,null,null,null,null,null,null,null,null,null,null,null,null,null,null,null,null,null,null,null,null,null,null,null,null,null,null,null,null,null,null,null,null,null,null,null,null,null,null,null,null,null,null,null,null,0]
[null,44,null,null,null,null,null,null,null,null,null,null,null,null,null,null,null,null,null,null,null,null,null,null,null,null,null,null,null,null,null,null,null,null,null,null,null,null,null,null,null,null,null,null,null,null,null,0,{"$f":"AV100","v":0},{"$f":"IFERROR(ROUNDDOWN(AV100/$AT$3,1),\"\")","v":""}]
[null,null,null,null,null,null,null,null,null,null,null,null,null,null,null,null,null,null,null,null,null,null,null,null,null,null,null,null,null,null,null,null,null,null,null,null,null,null,null,null,null,null,null,null,null,null,null,0]
[null,45,null,null,null,null,null,null,null,null,null,null,null,null,null,null,null,null,null,null,null,null,null,null,null,null,null,null,null,null,null,null,null,null,null,null,null,null,null,null,null,null,null,null,null,null,null,0,{"$f":"AV102","v":0},{"$f":"IFERROR(ROUNDDOWN(AV102/$AT$3,1),\"\")","v":""}]
[null,null,null,null,null,null,null,null,null,null,null,null,null,null,null,null,null,null,null,null,null,null,null,null,null,null,null,null,null,null,null,null,null,null,null,null,null,null,null,null,null,null,null,null,null,null,null,0]
[null,46,null,null,null,null,null,null,null,null,null,null,null,null,null,null,null,null,null,null,null,null,null,null,null,null,null,null,null,null,null,null,null,null,null,null,null,null,null,null,null,null,null,null,null,null,null,0,{"$f":"AV104","v":0},{"$f":"IFERROR(ROUNDDOWN(AV104/$AT$3,1),\"\")","v":""}]
[null,null,null,null,null,null,null,null,null,null,null,null,null,null,null,null,null,null,null,null,null,null,null,null,null,null,null,null,null,null,null,null,null,null,null,null,null,null,null,null,null,null,null,null,null,null,null,0]
[null,47,null,null,null,null,null,null,null,null,null,null,null,null,null,null,null,null,null,null,null,null,null,null,null,null,null,null,null,null,null,null,null,null,null,null,null,null,null,null,null,null,null,null,null,null,null,0,{"$f":"AV106","v":0},{"$f":"IFERROR(ROUNDDOWN(AV106/$AT$3,1),\"\")","v":""}]
[null,null,null,null,null,null,null,null,null,null,null,null,null,null,null,null,null,null,null,null,null,null,null,null,null,null,null,null,null,null,null,null,null,null,null,null,null,null,null,null,null,null,null,null,null,null,null,0]
[null,48,null,null,null,null,null,null,null,null,null,null,null,null,null,null,null,null,null,null,null,null,null,null,null,null,null,null,null,null,null,null,null,null,null,null,null,null,null,null,null,null,null,null,null,null,null,0,{"$f":"AV108","v":0},{"$f":"IFERROR(ROUNDDOWN(AV108/$AT$3,1),\"\")","v":""}]
[null,null,null,null,null,null,null,null,null,null,null,null,null,null,null,null,null,null,null,null,null,null,null,null,null,null,null,null,null,null,null,null,null,null,null,null,null,null,null,null,null,null,null,null,null,null,null,0]
[null,49,null,null,null,null,null,null,null,null,null,null,null,null,null,null,null,null,null,null,null,null,null,null,null,null,null,null,null,null,null,null,null,null,null,null,null,null,null,null,null,null,null,null,null,null,null,0,{"$f":"AV110","v":0},{"$f":"IFERROR(ROUNDDOWN(AV110/$AT$3,1),\"\")","v":""}]
[null,null,null,null,null,null,null,null,null,null,null,null,null,null,null,null,null,null,null,null,null,null,null,null,null,null,null,null,null,null,null,null,null,null,null,null,null,null,null,null,null,null,null,null,null,null,null,0]
[null,50,null,null,null,null,null,null,null,null,null,null,null,null,null,null,null,null,null,null,null,null,null,null,null,null,null,null,null,null,null,null,null,null,null,null,null,null,null,null,null,null,null,null,null,null,null,0,{"$f":"AV112","v":0},{"$f":"IFERROR(ROUNDDOWN(AV112/$AT$3,1),\"\")","v":""}]
[null,null,null,null,null,null,null,null,null,null,null,null,null,null,null,null,null,null,null,null,null,null,null,null,null,null,null,null,null,null,null,null,null,null,null,null,null,null,null,null,null,null,null,null,null,null,null,0]
[null,51,null,null,null,null,null,null,null,null,null,null,null,null,null,null,null,null,null,null,null,null,null,null,null,null,null,null,null,null,null,null,null,null,null,null,null,null,null,null,null,null,null,null,null,null,null,0,{"$f":"AV114","v":0},{"$f":"IFERROR(ROUNDDOWN(AV114/$AT$3,1),\"\")","v":""}]
[null,null,null,null,null,null,null,null,null,null,null,null,null,null,null,null,null,null,null,null,null,null,null,null,null,null,null,null,null,null,null,null,null,null,null,null,null,null,null,null,null,null,null,null,null,null,null,0]
[null,52,null,null,null,null,null,null,null,null,null,null,null,null,null,null,null,null,null,null,null,null,null,null,null,null,null,null,null,null,null,null,null,null,null,null,null,null,null,null,null,null,null,null,null,null,null,0,{"$f":"AV116","v":0},{"$f":"IFERROR(ROUNDDOWN(AV116/$AT$3,1),\"\")","v":""}]
[null,null,null,null,null,null,null,null,null,null,null,null,null,null,null,null,null,null,null,null,null,null,null,null,null,null,null,null,null,null,null,null,null,null,null,null,null,null,null,null,null,null,null,null,null,null,null,0]
[null,53,null,null,null,null,null,null,null,null,null,null,null,null,null,null,null,null,null,null,null,null,null,null,null,null,null,null,null,null,null,null,null,null,null,null,null,null,null,null,null,null,null,null,null,null,null,0,{"$f":"AV118","v":0},{"$f":"IFERROR(ROUNDDOWN(AV118/$AT$3,1),\"\")","v":""}]
[null,null,null,null,null,null,null,null,null,null,null,null,null,null,null,null,null,null,null,null,null,null,null,null,null,null,null,null,null,null,null,null,null,null,null,null,null,null,null,null,null,null,null,null,null,null,null,0]
[null,54,null,null,null,null,null,null,null,null,null,null,null,null,null,null,null,null,null,null,null,null,null,null,null,null,null,null,null,null,null,null,null,null,null,null,null,null,null,null,null,null,null,null,null,null,null,0,{"$f":"AV120","v":0},{"$f":"IFERROR(ROUNDDOWN(AV120/$AT$3,1),\"\")","v":""}]
[null,null,null,null,null,null,null,null,null,null,null,null,null,null,null,null,null,null,null,null,null,null,null,null,null,null,null,null,null,null,null,null,null,null,null,null,null,null,null,null,null,null,null,null,null,null,null,0]
[null,55,null,null,null,null,null,null,null,null,null,null,null,null,null,null,null,null,null,null,null,null,null,null,null,null,null,null,null,null,null,null,null,null,null,null,null,null,null,null,null,null,null,null,null,null,null,0,{"$f":"AV122","v":0},{"$f":"IFERROR(ROUNDDOWN(AV122/$AT$3,1),\"\")","v":""}]
[null,null,null,null,null,null,null,null,null,null,null,null,null,null,null,null,null,null,null,null,null,null,null,null,null,null,null,null,null,null,null,null,null,null,null,null,null,null,null,null,null,null,null,null,null,null,null,0]
[null,56,null,null,null,null,null,null,null,null,null,null,null,null,null,null,null,null,null,null,null,null,null,null,null,null,null,null,null,null,null,null,null,null,null,null,null,null,null,null,null,null,null,null,null,null,null,{"$f":"COUNTA(Q123:AU123)","v":0},{"$f":"AV124","v":0},{"$f":"IFERROR(ROUNDDOWN(AV124/$AT$3,1),\"\")","v":""}]
[null,null,null,null,null,null,null,null,null,null,null,null,null,null,null,null,null,null,null,null,null,null,null,null,null,null,null,null,null,null,null,null,null,null,null,null,null,null,null,null,null,null,null,null,null,null,null,{"$f":"SUM(Q123:AU123)","v":0}]
[null,57,null,null,null,null,null,null,null,null,null,null,null,null,null,null,null,null,null,null,null,null,null,null,null,null,null,null,null,null,null,null,null,null,null,null,null,null,null,null,null,null,null,null,null,null,null,0,{"$f":"AV126","v":0},{"$f":"IFERROR(ROUNDDOWN(AV126/$AT$3,1),\"\")","v":""}]
[null,null,null,null,null,null,null,null,null,null,null,null,null,null,null,null,null,null,null,null,null,null,null,null,null,null,null,null,null,null,null,null,null,null,null,null,null,null,null,null,null,null,null,null,null,null,null,0]
[null,58,null,null,null,null,null,null,null,null,null,null,null,null,null,null,null,null,null,null,null,null,null,null,null,null,null,null,null,null,null,null,null,null,null,null,null,null,null,null,null,null,null,null,null,null,null,0,{"$f":"AV128","v":0},{"$f":"IFERROR(ROUNDDOWN(AV128/$AT$3,1),\"\")","v":""}]
[null,null,null,null,null,null,null,null,null,null,null,null,null,null,null,null,null,null,null,null,null,null,null,null,null,null,null,null,null,null,null,null,null,null,null,null,null,null,null,null,null,null,null,null,null,null,null,0]
[null,59,null,null,null,null,null,null,null,null,null,null,null,null,null,null,null,null,null,null,null,null,null,null,null,null,null,null,null,null,null,null,null,null,null,null,null,null,null,null,null,null,null,null,null,null,null,0,{"$f":"AV130","v":0},{"$f":"IFERROR(ROUNDDOWN(AV130/$AT$3,1),\"\")","v":""}]
[null,null,null,null,null,null,null,null,null,null,null,null,null,null,null,null,null,null,null,null,null,null,null,null,null,null,null,null,null,null,null,null,null,null,null,null,null,null,null,null,null,null,null,null,null,null,null,0]
[null,60,null,null,null,null,null,null,null,null,null,null,null,null,null,null,null,null,null,null,null,null,null,null,null,null,null,null,null,null,null,null,null,null,null,null,null,null,null,null,null,null,null,null,null,null,null,0,{"$f":"AV132","v":0},{"$f":"IFERROR(ROUNDDOWN(AV132/$AT$3,1),\"\")","v":""}]
[null,null,null,null,null,null,null,null,null,null,null,null,null,null,null,null,null,null,null,null,null,null,null,null,null,null,null,null,null,null,null,null,null,null,null,null,null,null,null,null,null,null,null,null,null,null,null,0]
[null,61,null,null,null,null,null,null,null,null,null,null,null,null,null,null,null,null,null,null,null,null,null,null,null,null,null,null,null,null,null,null,null,null,null,null,null,null,null,null,null,null,null,null,null,null,null,0,{"$f":"AV134","v":0},{"$f":"IFERROR(ROUNDDOWN(AV134/$AT$3,1),\"\")","v":""}]
[null,null,null,null,null,null,null,null,null,null,null,null,null,null,null,null,null,null,null,null,null,null,null,null,null,null,null,null,null,null,null,null,null,null,null,null,null,null,null,null,null,null,null,null,null,null,null,0]
[null,{"$f":"B133+1","v":62},null,null,null,null,null,null,null,null,null,null,null,null,null,null,null,null,null,null,null,null,null,null,null,null,null,null,null,null,null,null,null,null,null,null,null,null,null,null,null,null,null,null,null,null,null,0,{"$f":"AV136","v":0},{"$f":"IFERROR(ROUNDDOWN(AV136/$AT$3,1),\"\")","v":""}]
[null,null,null,null,null,null,null,null,null,null,null,null,null,null,null,null,null,null,null,null,null,null,null,null,null,null,null,null,null,null,null,null,null,null,null,null,null,null,null,null,null,null,null,null,null,null,null,0]
[null,{"$f":"B135+1","v":63},null,null,null,null,null,null,null,null,null,null,null,null,null,null,null,null,null,null,null,null,null,null,null,null,null,null,null,null,null,null,null,null,null,null,null,null,null,null,null,null,null,null,null,null,null,0,{"$f":"AV138","v":0},{"$f":"IFERROR(ROUNDDOWN(AV138/$AT$3,1),\"\")","v":""}]
[null,null,null,null,null,null,null,null,null,null,null,null,null,null,null,null,null,null,null,null,null,null,null,null,null,null,null,null,null,null,null,null,null,null,null,null,null,null,null,null,null,null,null,null,null,null,null,0]
[null,64,null,null,null,null,null,null,null,null,null,null,null,null,null,null,null,null,null,null,null,null,null,null,null,null,null,null,null,null,null,null,null,null,null,null,null,null,null,null,null,null,null,null,null,null,null,0,{"$f":"AV140","v":0},{"$f":"IFERROR(ROUNDDOWN(AV140/$AT$3,1),\"\")","v":""}]
[null,null,null,null,null,null,null,null,null,null,null,null,null,null,null,null,null,null,null,null,null,null,null,null,null,null,null,null,null,null,null,null,null,null,null,null,null,null,null,null,null,null,null,null,null,null,null,0]
[null,65,null,null,null,null,null,null,null,null,null,null,null,null,null,null,null,null,null,null,null,null,null,null,null,null,null,null,null,null,null,null,null,null,null,null,null,null,null,null,null,null,null,null,null,null,null,0,{"$f":"AV142","v":0},{"$f":"IFERROR(ROUNDDOWN(AV142/$AT$3,1),\"\")","v":""}]
[null,null,null,null,null,null,null,null,null,null,null,null,null,null,null,null,null,null,null,null,null,null,null,null,null,null,null,null,null,null,null,null,null,null,null,null,null,null,null,null,null,null,null,null,null,null,null,0]
[null,66,null,null,null,null,null,null,null,null,null,null,null,null,null,null,null,null,null,null,null,null,null,null,null,null,null,null,null,null,null,null,null,null,null,null,null,null,null,null,null,null,null,null,null,null,null,0,{"$f":"AV144","v":0},{"$f":"IFERROR(ROUNDDOWN(AV144/$AT$3,1),\"\")","v":""}]
[null,null,null,null,null,null,null,null,null,null,null,null,null,null,null,null,null,null,null,null,null,null,null,null,null,null,null,null,null,null,null,null,null,null,null,null,null,null,null,null,null,null,null,null,null,null,null,0]
[null,67,null,null,null,null,null,null,null,null,null,null,null,null,null,null,null,null,null,null,null,null,null,null,null,null,null,null,null,null,null,null,null,null,null,null,null,null,null,null,null,null,null,null,null,null,null,0,{"$f":"AV146","v":0},{"$f":"IFERROR(ROUNDDOWN(AV146/$AT$3,1),\"\")","v":""}]
[null,null,null,null,null,null,null,null,null,null,null,null,null,null,null,null,null,null,null,null,null,null,null,null,null,null,null,null,null,null,null,null,null,null,null,null,null,null,null,null,null,null,null,null,null,null,null,0]
[null,68,null,null,null,null,null,null,null,null,null,null,null,null,null,null,null,null,null,null,null,null,null,null,null,null,null,null,null,null,null,null,null,null,null,null,null,null,null,null,null,null,null,null,null,null,null,0,{"$f":"AV148","v":0},{"$f":"IFERROR(ROUNDDOWN(AV148/$AT$3,1),\"\")","v":""}]
[null,null,null,null,null,null,null,null,null,null,null,null,null,null,null,null,null,null,null,null,null,null,null,null,null,null,null,null,null,null,null,null,null,null,null,null,null,null,null,null,null,null,null,null,null,null,null,0]
[null,69,null,null,null,null,null,null,null,null,null,null,null,null,null,null,null,null,null,null,null,null,null,null,null,null,null,null,null,null,null,null,null,null,null,null,null,null,null,null,null,null,null,null,null,null,null,0,{"$f":"AV150","v":0},{"$f":"IFERROR(ROUNDDOWN(AV150/$AT$3,1),\"\")","v":""}]
[null,null,null,null,null,null,null,null,null,null,null,null,null,null,null,null,null,null,null,null,null,null,null,null,null,null,null,null,null,null,null,null,null,null,null,null,null,null,null,null,null,null,null,null,null,null,null,0]
[null,70,null,null,null,null,null,null,null,null,null,null,null,null,null,null,null,null,null,null,null,null,null,null,null,null,null,null,null,null,null,null,null,null,null,null,null,null,null,null,null,null,null,null,null,null,null,0,{"$f":"AV152","v":0},{"$f":"IFERROR(ROUNDDOWN(AV152/$AT$3,1),\"\")","v":""}]
[null,null,null,null,null,null,null,null,null,null,null,null,null,null,null,null,null,null,null,null,null,null,null,null,null,null,null,null,null,null,null,null,null,null,null,null,null,null,null,null,null,null,null,null,null,null,null,0]
[null,71,null,null,null,null,null,null,null,null,null,null,null,null,null,null,null,null,null,null,null,null,null,null,null,null,null,null,null,null,null,null,null,null,null,null,null,null,null,null,null,null,null,null,null,null,null,0,{"$f":"AV154","v":0},{"$f":"IFERROR(ROUNDDOWN(AV154/$AT$3,1),\"\")","v":""}]
[null,null,null,null,null,null,null,null,null,null,null,null,null,null,null,null,null,null,null,null,null,null,null,null,null,null,null,null,null,null,null,null,null,null,null,null,null,null,null,null,null,null,null,null,null,null,null,0]
[null,72,null,null,null,null,null,null,null,null,null,null,null,null,null,null,null,null,null,null,null,null,null,null,null,null,null,null,null,null,null,null,null,null,null,null,null,null,null,null,null,null,null,null,null,null,null,0,{"$f":"AV156","v":0},{"$f":"IFERROR(ROUNDDOWN(AV156/$AT$3,1),\"\")","v":""}]
[null,null,null,null,null,null,null,null,null,null,null,null,null,null,null,null,null,null,null,null,null,null,null,null,null,null,null,null,null,null,null,null,null,null,null,null,null,null,null,null,null,null,null,null,null,null,null,0]
[null,73,null,null,null,null,null,null,null,null,null,null,null,null,null,null,null,null,null,null,null,null,null,null,null,null,null,null,null,null,null,null,null,null,null,null,null,null,null,null,null,null,null,null,null,null,null,0,{"$f":"AV158","v":0},{"$f":"IFERROR(ROUNDDOWN(AV158/$AT$3,1),\"\")","v":""}]
[null,null,null,null,null,null,null,null,null,null,null,null,null,null,null,null,null,null,null,null,null,null,null,null,null,null,null,null,null,null,null,null,null,null,null,null,null,null,null,null,null,null,null,null,null,null,null,0]
[null,74,null,null,null,null,null,null,null,null,null,null,null,null,null,null,null,null,null,null,null,null,null,null,null,null,null,null,null,null,null,null,null,null,null,null,null,null,null,null,null,null,null,null,null,null,null,0,{"$f":"AV160","v":0},{"$f":"IFERROR(ROUNDDOWN(AV160/$AT$3,1),\"\")","v":""}]
[null,null,null,null,null,null,null,null,null,null,null,null,null,null,null,null,null,null,null,null,null,null,null,null,null,null,null,null,null,null,null,null,null,null,null,null,null,null,null,null,null,null,null,null,null,null,null,0]
[null,75,null,null,null,null,null,null,null,null,null,null,null,null,null,null,null,null,null,null,null,null,null,null,null,null,null,null,null,null,null,null,null,null,null,null,null,null,null,null,null,null,null,null,null,null,null,0,{"$f":"AV162","v":0},{"$f":"IFERROR(ROUNDDOWN(AV162/$AT$3,1),\"\")","v":""}]
[null,null,null,null,null,null,null,null,null,null,null,null,null,null,null,null,null,null,null,null,null,null,null,null,null,null,null,null,null,null,null,null,null,null,null,null,null,null,null,null,null,null,null,null,null,null,null,0]
[null,76,null,null,null,null,null,null,null,null,null,null,null,null,null,null,null,null,null,null,null,null,null,null,null,null,null,null,null,null,null,null,null,null,null,null,null,null,null,null,null,null,null,null,null,null,null,0,{"$f":"AV164","v":0},{"$f":"IFERROR(ROUNDDOWN(AV164/$AT$3,1),\"\")","v":""}]
[null,null,null,null,null,null,null,null,null,null,null,null,null,null,null,null,null,null,null,null,null,null,null,null,null,null,null,null,null,null,null,null,null,null,null,null,null,null,null,null,null,null,null,null,null,null,null,0]
[null,77,null,null,null,null,null,null,null,null,null,null,null,null,null,null,null,null,null,null,null,null,null,null,null,null,null,null,null,null,null,null,null,null,null,null,null,null,null,null,null,null,null,null,null,null,null,0,{"$f":"AV166","v":0},{"$f":"IFERROR(ROUNDDOWN(AV166/$AT$3,1),\"\")","v":""}]
[null,null,null,null,null,null,null,null,null,null,null,null,null,null,null,null,null,null,null,null,null,null,null,null,null,null,null,null,null,null,null,null,null,null,null,null,null,null,null,null,null,null,null,null,null,null,null,0]
[null,78,null,null,null,null,null,null,null,null,null,null,null,null,null,null,null,null,null,null,null,null,null,null,null,null,null,null,null,null,null,null,null,null,null,null,null,null,null,null,null,null,null,null,null,null,null,0,{"$f":"AV168","v":0},{"$f":"IFERROR(ROUNDDOWN(AV168/$AT$3,1),\"\")","v":""}]
[null,null,null,null,null,null,null,null,null,null,null,null,null,null,null,null,null,null,null,null,null,null,null,null,null,null,null,null,null,null,null,null,null,null,null,null,null,null,null,null,null,null,null,null,null,null,null,0]
[null,79,null,null,null,null,null,null,null,null,null,null,null,null,null,null,null,null,null,null,null,null,null,null,null,null,null,null,null,null,null,null,null,null,null,null,null,null,null,null,null,null,null,null,null,null,null,0,{"$f":"AV170","v":0},{"$f":"IFERROR(ROUNDDOWN(AV170/$AT$3,1),\"\")","v":""}]
[null,null,null,null,null,null,null,null,null,null,null,null,null,null,null,null,null,null,null,null,null,null,null,null,null,null,null,null,null,null,null,null,null,null,null,null,null,null,null,null,null,null,null,null,null,null,null,0]
[null,80,null,null,null,null,null,null,null,null,null,null,null,null,null,null,null,null,null,null,null,null,null,null,null,null,null,null,null,null,null,null,null,null,null,null,null,null,null,null,null,null,null,null,null,null,null,0,{"$f":"AV172","v":0},{"$f":"IFERROR(ROUNDDOWN(AV172/$AT$3,1),\"\")","v":""}]
[null,null,null,null,null,null,null,null,null,null,null,null,null,null,null,null,null,null,null,null,null,null,null,null,null,null,null,null,null,null,null,null,null,null,null,null,null,null,null,null,null,null,null,null,null,null,null,0]
[null,81,null,null,null,null,null,null,null,null,null,null,null,null,null,null,null,null,null,null,null,null,null,null,null,null,null,null,null,null,null,null,null,null,null,null,null,null,null,null,null,null,null,null,null,null,null,0,{"$f":"AV174","v":0},{"$f":"IFERROR(ROUNDDOWN(AV174/$AT$3,1),\"\")","v":""}]
[null,null,null,null,null,null,null,null,null,null,null,null,null,null,null,null,null,null,null,null,null,null,null,null,null,null,null,null,null,null,null,null,null,null,null,null,null,null,null,null,null,null,null,null,null,null,null,0]
[null,82,null,null,null,null,null,null,null,null,null,null,null,null,null,null,null,null,null,null,null,null,null,null,null,null,null,null,null,null,null,null,null,null,null,null,null,null,null,null,null,null,null,null,null,null,null,0,{"$f":"AV176","v":0},{"$f":"IFERROR(ROUNDDOWN(AV176/$AT$3,1),\"\")","v":""}]
[null,null,null,null,null,null,null,null,null,null,null,null,null,null,null,null,null,null,null,null,null,null,null,null,null,null,null,null,null,null,null,null,null,null,null,null,null,null,null,null,null,null,null,null,null,null,null,0]
[null,83,null,null,null,null,null,null,null,null,null,null,null,null,null,null,null,null,null,null,null,null,null,null,null,null,null,null,null,null,null,null,null,null,null,null,null,null,null,null,null,null,null,null,null,null,null,0,{"$f":"AV178","v":0},{"$f":"IFERROR(ROUNDDOWN(AV178/$AT$3,1),\"\")","v":""}]
[null,null,null,null,null,null,null,null,null,null,null,null,null,null,null,null,null,null,null,null,null,null,null,null,null,null,null,null,null,null,null,null,null,null,null,null,null,null,null,null,null,null,null,null,null,null,null,0]
[null,{"$f":"B177+1","v":84},null,null,null,null,null,null,null,null,null,null,null,null,null,null,null,null,null,null,null,null,null,null,null,null,null,null,null,null,null,null,null,null,null,null,null,null,null,null,null,null,null,null,null,null,null,0,{"$f":"AV180","v":0},{"$f":"IFERROR(ROUNDDOWN(AV180/$AT$3,1),\"\")","v":""}]
[null,null,null,null,null,null,null,null,null,null,null,null,null,null,null,null,null,null,null,null,null,null,null,null,null,null,null,null,null,null,null,null,null,null,null,null,null,null,null,null,null,null,null,null,null,null,null,0]
[null,{"$f":"B179+1","v":85},null,null,null,null,null,null,null,null,null,null,null,null,null,null,null,null,null,null,null,null,null,null,null,null,null,null,null,null,null,null,null,null,null,null,null,null,null,null,null,null,null,null,null,null,null,0,{"$f":"AV182","v":0},{"$f":"IFERROR(ROUNDDOWN(AV182/$AT$3,1),\"\")","v":""}]
[null,null,null,null,null,null,null,null,null,null,null,null,null,null,null,null,null,null,null,null,null,null,null,null,null,null,null,null,null,null,null,null,null,null,null,null,null,null,null,null,null,null,null,null,null,null,null,0]
[null,86,null,null,null,null,null,null,null,null,null,null,null,null,null,null,null,null,null,null,null,null,null,null,null,null,null,null,null,null,null,null,null,null,null,null,null,null,null,null,null,null,null,null,null,null,null,0,{"$f":"AV184","v":0},{"$f":"IFERROR(ROUNDDOWN(AV184/$AT$3,1),\"\")","v":""}]
[null,null,null,null,null,null,null,null,null,null,null,null,null,null,null,null,null,null,null,null,null,null,null,null,null,null,null,null,null,null,null,null,null,null,null,null,null,null,null,null,null,null,null,null,null,null,null,0]
[null,87,null,null,null,null,null,null,null,null,null,null,null,null,null,null,null,null,null,null,null,null,null,null,null,null,null,null,null,null,null,null,null,null,null,null,null,null,null,null,null,null,null,null,null,null,null,0,{"$f":"AV186","v":0},{"$f":"IFERROR(ROUNDDOWN(AV186/$AT$3,1),\"\")","v":""}]
[null,null,null,null,null,null,null,null,null,null,null,null,null,null,null,null,null,null,null,null,null,null,null,null,null,null,null,null,null,null,null,null,null,null,null,null,null,null,null,null,null,null,null,null,null,null,null,0]
[null,88,null,null,null,null,null,null,null,null,null,null,null,null,null,null,null,null,null,null,null,null,null,null,null,null,null,null,null,null,null,null,null,null,null,null,null,null,null,null,null,null,null,null,null,null,null,{"$f":"COUNTA(Q187:AU187)","v":0},{"$f":"AV188","v":0},{"$f":"IFERROR(ROUNDDOWN(AV188/$AT$3,1),\"\")","v":""}]
[null,null,null,null,null,null,null,null,null,null,null,null,null,null,null,null,null,null,null,null,null,null,null,null,null,null,null,null,null,null,null,null,null,null,null,null,null,null,null,null,null,null,null,null,null,null,null,{"$f":"SUM(Q187:AU187)","v":0}]
[null,89,null,null,null,null,null,null,null,null,null,null,null,null,null,null,null,null,null,null,null,null,null,null,null,null,null,null,null,null,null,null,null,null,null,null,null,null,null,null,null,null,null,null,null,null,null,0,{"$f":"AV190","v":0},{"$f":"IFERROR(ROUNDDOWN(AV190/$AT$3,1),\"\")","v":""}]
[null,null,null,null,null,null,null,null,null,null,null,null,null,null,null,null,null,null,null,null,null,null,null,null,null,null,null,null,null,null,null,null,null,null,null,null,null,null,null,null,null,null,null,null,null,null,null,0]
[null,90,null,null,null,null,null,null,null,null,null,null,null,null,null,null,null,null,null,null,null,null,null,null,null,null,null,null,null,null,null,null,null,null,null,null,null,null,null,null,null,null,null,null,null,null,null,0,{"$f":"AV192","v":0},{"$f":"IFERROR(ROUNDDOWN(AV192/$AT$3,1),\"\")","v":""}]
[null,null,null,null,null,null,null,null,null,null,null,null,null,null,null,null,null,null,null,null,null,null,null,null,null,null,null,null,null,null,null,null,null,null,null,null,null,null,null,null,null,null,null,null,null,null,null,0]
[null,91,null,null,null,null,null,null,null,null,null,null,null,null,null,null,null,null,null,null,null,null,null,null,null,null,null,null,null,null,null,null,null,null,null,null,null,null,null,null,null,null,null,null,null,null,null,0,{"$f":"AV194","v":0},{"$f":"IFERROR(ROUNDDOWN(AV194/$AT$3,1),\"\")","v":""}]
[null,null,null,null,null,null,null,null,null,null,null,null,null,null,null,null,null,null,null,null,null,null,null,null,null,null,null,null,null,null,null,null,null,null,null,null,null,null,null,null,null,null,null,null,null,null,null,0]
[null,92,null,null,null,null,null,null,null,null,null,null,null,null,null,null,null,null,null,null,null,null,null,null,null,null,null,null,null,null,null,null,null,null,null,null,null,null,null,null,null,null,null,null,null,null,null,0,{"$f":"AV196","v":0},{"$f":"IFERROR(ROUNDDOWN(AV196/$AT$3,1),\"\")","v":""}]
[null,null,null,null,null,null,null,null,null,null,null,null,null,null,null,null,null,null,null,null,null,null,null,null,null,null,null,null,null,null,null,null,null,null,null,null,null,null,null,null,null,null,null,null,null,null,null,0]
[null,93,null,null,null,null,null,null,null,null,null,null,null,null,null,null,null,null,null,null,null,null,null,null,null,null,null,null,null,null,null,null,null,null,null,null,null,null,null,null,null,null,null,null,null,null,null,0,{"$f":"AV198","v":0},{"$f":"IFERROR(ROUNDDOWN(AV198/$AT$3,1),\"\")","v":""}]
[null,null,null,null,null,null,null,null,null,null,null,null,null,null,null,null,null,null,null,null,null,null,null,null,null,null,null,null,null,null,null,null,null,null,null,null,null,null,null,null,null,null,null,null,null,null,null,0]
[null,94,null,null,null,null,null,null,null,null,null,null,null,null,null,null,null,null,null,null,null,null,null,null,null,null,null,null,null,null,null,null,null,null,null,null,null,null,null,null,null,null,null,null,null,null,null,0,{"$f":"AV200","v":0},{"$f":"IFERROR(ROUNDDOWN(AV200/$AT$3,1),\"\")","v":""}]
[null,null,null,null,null,null,null,null,null,null,null,null,null,null,null,null,null,null,null,null,null,null,null,null,null,null,null,null,null,null,null,null,null,null,null,null,null,null,null,null,null,null,null,null,null,null,null,0]
[null,95,null,null,null,null,null,null,null,null,null,null,null,null,null,null,null,null,null,null,null,null,null,null,null,null,null,null,null,null,null,null,null,null,null,null,null,null,null,null,null,null,null,null,null,null,null,0,{"$f":"AV202","v":0},{"$f":"IFERROR(ROUNDDOWN(AV202/$AT$3,1),\"\")","v":""}]
[null,null,null,null,null,null,null,null,null,null,null,null,null,null,null,null,null,null,null,null,null,null,null,null,null,null,null,null,null,null,null,null,null,null,null,null,null,null,null,null,null,null,null,null,null,null,null,0]
[null,96,null,null,null,null,null,null,null,null,null,null,null,null,null,null,null,null,null,null,null,null,null,null,null,null,null,null,null,null,null,null,null,null,null,null,null,null,null,null,null,null,null,null,null,null,null,0,{"$f":"AV204","v":0},{"$f":"IFERROR(ROUNDDOWN(AV204/$AT$3,1),\"\")","v":""}]
[null,null,null,null,null,null,null,null,null,null,null,null,null,null,null,null,null,null,null,null,null,null,null,null,null,null,null,null,null,null,null,null,null,null,null,null,null,null,null,null,null,null,null,null,null,null,null,0]
[null,97,null,null,null,null,null,null,null,null,null,null,null,null,null,null,null,null,null,null,null,null,null,null,null,null,null,null,null,null,null,null,null,null,null,null,null,null,null,null,null,null,null,null,null,null,null,0,{"$f":"AV206","v":0},{"$f":"IFERROR(ROUNDDOWN(AV206/$AT$3,1),\"\")","v":""}]
[null,null,null,null,null,null,null,null,null,null,null,null,null,null,null,null,null,null,null,null,null,null,null,null,null,null,null,null,null,null,null,null,null,null,null,null,null,null,null,null,null,null,null,null,null,null,null,0]
[null,98,null,null,null,null,null,null,null,null,null,null,null,null,null,null,null,null,null,null,null,null,null,null,null,null,null,null,null,null,null,null,null,null,null,null,null,null,null,null,null,null,null,null,null,null,null,0,{"$f":"AV208","v":0},{"$f":"IFERROR(ROUNDDOWN(AV208/$AT$3,1),\"\")","v":""}]
[null,null,null,null,null,null,null,null,null,null,null,null,null,null,null,null,null,null,null,null,null,null,null,null,null,null,null,null,null,null,null,null,null,null,null,null,null,null,null,null,null,null,null,null,null,null,null,0]
[null,99,null,null,null,null,null,null,null,null,null,null,null,null,null,null,null,null,null,null,null,null,null,null,null,null,null,null,null,null,null,null,null,null,null,null,null,null,null,null,null,null,null,null,null,null,null,0,{"$f":"AV210","v":0},{"$f":"IFERROR(ROUNDDOWN(AV210/$AT$3,1),\"\")","v":""}]
[null,null,null,null,null,null,null,null,null,null,null,null,null,null,null,null,null,null,null,null,null,null,null,null,null,null,null,null,null,null,null,null,null,null,null,null,null,null,null,null,null,null,null,null,null,null,null,0]
[null,100,null,null,null,null,null,null,null,null,null,null,null,null,null,null,null,null,null,null,null,null,null,null,null,null,null,null,null,null,null,null,null,null,null,null,null,null,null,null,null,null,null,null,null,null,null,0,{"$f":"AV212","v":0},{"$f":"IFERROR(ROUNDDOWN(AV212/$AT$3,1),\"\")","v":""}]
[null,null,null,null,null,null,null,null,null,null,null,null,null,null,null,null,null,null,null,null,null,null,null,null,null,null,null,null,null,null,null,null,null,null,null,null,null,null,null,null,null,null,null,null,null,null,null,0]
[null,101,null,null,null,null,null,null,null,null,null,null,null,null,null,null,null,null,null,null,null,null,null,null,null,null,null,null,null,null,null,null,null,null,null,null,null,null,null,null,null,null,null,null,null,null,null,0,{"$f":"AV214","v":0},{"$f":"IFERROR(ROUNDDOWN(AV214/$AT$3,1),\"\")","v":""}]
[null,null,null,null,null,null,null,null,null,null,null,null,null,null,null,null,null,null,null,null,null,null,null,null,null,null,null,null,null,null,null,null,null,null,null,null,null,null,null,null,null,null,null,null,null,null,null,0]
[null,102,null,null,null,null,null,null,null,null,null,null,null,null,null,null,null,null,null,null,null,null,null,null,null,null,null,null,null,null,null,null,null,null,null,null,null,null,null,null,null,null,null,null,null,null,null,0,{"$f":"AV216","v":0},{"$f":"IFERROR(ROUNDDOWN(AV216/$AT$3,1),\"\")","v":""}]
[null,null,null,null,null,null,null,null,null,null,null,null,null,null,null,null,null,null,null,null,null,null,null,null,null,null,null,null,null,null,null,null,null,null,null,null,null,null,null,null,null,null,null,null,null,null,null,0]
[null,103,null,null,null,null,null,null,null,null,null,null,null,null,null,null,null,null,null,null,null,null,null,null,null,null,null,null,null,null,null,null,null,null,null,null,null,null,null,null,null,null,null,null,null,null,null,0,{"$f":"AV218","v":0},{"$f":"IFERROR(ROUNDDOWN(AV218/$AT$3,1),\"\")","v":""}]
[null,null,null,null,null,null,null,null,null,null,null,null,null,null,null,null,null,null,null,null,null,null,null,null,null,null,null,null,null,null,null,null,null,null,null,null,null,null,null,null,null,null,null,null,null,null,null,0]
[null,104,null,null,null,null,null,null,null,null,null,null,null,null,null,null,null,null,null,null,null,null,null,null,null,null,null,null,null,null,null,null,null,null,null,null,null,null,null,null,null,null,null,null,null,null,null,0,{"$f":"AV220","v":0},{"$f":"IFERROR(ROUNDDOWN(AV220/$AT$3,1),\"\")","v":""}]
[null,null,null,null,null,null,null,null,null,null,null,null,null,null,null,null,null,null,null,null,null,null,null,null,null,null,null,null,null,null,null,null,null,null,null,null,null,null,null,null,null,null,null,null,null,null,null,0]
[null,105,null,null,null,null,null,null,null,null,null,null,null,null,null,null,null,null,null,null,null,null,null,null,null,null,null,null,null,null,null,null,null,null,null,null,null,null,null,null,null,null,null,null,null,null,null,0,{"$f":"AV222","v":0},{"$f":"IFERROR(ROUNDDOWN(AV222/$AT$3,1),\"\")","v":""}]
[null,null,null,null,null,null,null,null,null,null,null,null,null,null,null,null,null,null,null,null,null,null,null,null,null,null,null,null,null,null,null,null,null,null,null,null,null,null,null,null,null,null,null,null,null,null,null,0]

{"sheet":"P3","index":6,"n_rows":36,"n_cols":16,"rows_kept":36,"cut":false,"hidden":false,"merged":[[13,2,13,3],[8,2,8,3],[9,2,9,3],[10,2,10,3],[11,2,11,3],[12,2,12,3],[19,2,19,3],[20,2,20,3],[21,2,21,3],[22,2,22,3],[14,2,14,3],[35,1,35,15],[24,2,24,3],[25,2,25,3],[26,2,26,3],[27,2,27,3],[28,2,28,3],[29,2,29,3],[30,2,30,3],[3,1,3,15],[34,1,34,15],[2,6,2,8],[2,10,2,12],[32,1,32,15],[33,1,33,15],[6,1,6,3],[31,1,31,15],[6,12,6,13],[7,1,7,3],[15,1,15,3],[23,1,23,3],[6,10,6,11],[16,2,16,3],[17,2,17,3],[18,2,18,3],[7,15,14,15],[7,14,14,14],[23,15,30,15],[23,14,30,14],[15,15,22,15],[15,14,22,14]]}
[null,"３　サービス提供責任者配置数の根拠　（直近３か月のサービス提供時間・実利用者数・従業者数の状況）"]
[]
[null,"（1）　サービス提供責任者の配置計算",null,null,null,null,"実人員配置方法",null,null,null,"常勤換算方法"]
[null,"※上記のうち、サービス提供責任者の配置計算で採用している方法を選択すること。"]
[]
[null,"（2）　配置数根拠"]
[null,null,null,null,{"$f":"MONTH(EOMONTH(DATE(2023,【共通】!N9,【共通】!P9),-4))","v":3},"月",{"$f":"MONTH(EOMONTH(DATE(2023,【共通】!N9,【共通】!P9),-3))","v":4},"月",{"$f":"MONTH(EOMONTH(DATE(2023,【共通】!N9,【共通】!P9),-2))","v":5},"月","合計",null,"３か月平均\n(a)",null,"係数\n(b)","必置数\n(a)÷(b)"]
[null,"月延べサービス提供時間 計\n（待機時間・移動時間を除く。）",null,null,{"$f":"SUM(E9:E15)","v":0},"時間",{"$f":"SUM(G9:G15)","v":0},"時間",{"$f":"SUM(I9:I15)","v":0},"時間",{"$f":"E8+G8+I8","v":0},"時間",{"$f":"ROUNDUP(K8/3,1)","v":0},"時間","450時間",{"$f":"M8/450","v":0}]
[null,null,"訪問介護",null,null,"時間",null,"時間",null,"時間",0,"時間",{"$f":"ROUNDUP(K9/3,1)","v":0},"時間"]
[null,null,"介護予防訪問介護",null,null,"時間",null,"時間",null,"時間",0,"時間",0,"時間"]
[null,null,"居宅介護",null,null,"時間",null,"時間",null,"時間",0,"時間",0,"時間"]
[null,null,"重度訪問介護",null,null,"時間",null,"時間",null,"時間",0,"時間",0,"時間"]
[null,null,"同行援護",null,null,"時間",null,"時間",null,"時間",0,"時間",0,"時間"]
[null,null,"行動援護",null,null,"時間",null,"時間",null,"時間",0,"時間",0,"時間"]
[null,null,"移動支援",null,null,"時間",null,"時間",null,"時間",0,"時間",0,"時間"]
[null,"各月の実利用者数　計",null,null,{"$f":"SUM(E17:E23)","v":0},"人",{"$f":"SUM(G17:G23)","v":0},"人",{"$f":"SUM(I17:I23)","v":0},"人",{"$f":"E16+G16+I16","v":0},"人",{"$f":"ROUNDUP(K16/3,1)","v":0},"人","40人",{"$f":"M16/40","v":0}]
[null,null,"訪問介護",null,null,"人",null,"人",null,"人",0,"人",0,"人"]
[null,null,"介護予防訪問介護",null,null,"人",null,"人",null,"人",0,"人",0,"人"]
[null,null,"居宅介護",null,null,"人",null,"人",null,"人",0,"人",0,"人"]
[null,null,"重度訪問介護",null,null,"人",null,"人",null,"人",0,"人",0,"人"]
[null,null,"同行援護",null,null,"人",null,"人",null,"人",0,"人",0,"人"]
[null,null,"行動援護",null,null,"人",null,"人",null,"人",0,"人",0,"人"]
[null,null,"移動支援",null,null,"人",null,"人",null,"人",0,"人",0,"人"]
[null,"各月の実従業者数　計",null,null,{"$f":"SUM(E25:E31)","v":0},"人",{"$f":"SUM(G25:G31)","v":0},"人",{"$f":"SUM(I25:I31)","v":0},"人",0,"人",0,"人","10人",{"$f":"M24/10","v":0}]
[null,null,"訪問介護",null,null,"人",null,"人",null,"人",0,"人",0,"人"]
[null,null,"介護予防訪問介護",null,null,"人",null,"人",null,"人",0,"人",0,"人"]
[null,null,"居宅介護",null,null,"人",null,"人",null,"人",0,"人",0,"人"]
[null,null,"重度訪問介護",null,null,"人",null,"人",null,"人",0,"人",0,"人"]
[null,null,"同行援護",null,null,"人",null,"人",null,"人",0,"人",0,"人"]
[null,null,"行動援護",null,null,"人",null,"人",null,"人",0,"人",0,"人"]
[null,null,"移動支援",null,null,"人",null,"人",null,"人",0,"人",0,"人"]
[]
[null,"※サービス提供責任者が各指定サービスを兼務する場合（各事業を一体に運営する場合に限る）、「サービス提供時間」は\n  各事業それぞれに記載し、「実利用者数」「実従業者数」は、いずれも居宅介護の欄に各サービスの合計を記載すること。"]
[null,"※サービス提供責任者を事業ごとに別に配置する場合（障害と介護で別のサ責を配置している場合等）は、\n　「サービス提供時間」「実利用者数」「実従業者数」いずれもサ責の配置事業ごと別に記載すること。"]
[null,"※「実利用者数」について、上記のサービスを複数利用する利用者は、二重計上せず、\n　いずれかひとつのサービスに記載すること。ただし、上記の場合を除く。"]
[null,"※居宅介護のうち通院等乗降介助のみを利用した利用者については、１人あたり0.1人として計算すること。"]

{"sheet":"（旧）P5-1","index":7,"n_rows":51,"n_cols":23,"rows_kept":51,"cut":false,"hidden":true,"merged":[[1,17,1,20],[17,1,17,2],[23,1,23,3],[26,1,26,3],[5,2,5,3],[31,1,31,3],[28,1,28,3],[10,1,10,3],[16,1,16,3],[1,12,1,14],[20,4,20,5],[3,1,3,3],[3,4,3,5],[22,4,22,5],[21,4,21,5],[4,14,4,15],[5,14,5,15],[6,4,6,5],[3,14,3,15],[31,16,31,17],[31,18,31,19],[12,8,12,16],[13,8,13,16],[5,20,5,21],[32,1,32,3],[34,1,34,2],[30,1,30,3],[6,2,6,3],[4,1,4,3],[12,1,12,3],[15,1,15,3],[33,1,33,3],[23,4,23,5],[8,1,8,3],[21,1,22,3],[25,1,25,3],[13,4,13,5],[14,4,14,5],[15,4,15,5],[16,4,16,5],[17,4,17,5],[28,4,28,5],[29,4,29,5],[33,4,33,5],[34,4,34,5],[31,4,31,5],[32,4,32,5],[5,4,5,5],[2,23,2,24],[5,1,6,1],[11,1,11,3],[13,1,13,3],[14,1,14,3],[29,1,29,3],[22,14,22,15],[23,14,23,15],[27,1,27,3],[21,14,21,15],[14,21,14,22],[9,1,9,3],[8,4,8,5],[9,4,9,5],[10,4,10,5],[11,4,11,5],[12,4,12,5],[25,4,25,5],[26,4,26,5],[27,4,27,5],[3,17,3,18],[4,17,4,18],[5,17,5,18],[4,4,4,5],[23,17,23,18],[27,8,28,13],[8,8,8,16],[9,8,9,16],[10,8,10,16],[33,8,33,13],[34,8,34,13],[29,8,29,13],[25,8,25,13],[26,8,26,13],[27,14,28,14],[30,14,31,14],[30,8,31,13],[32,8,32,13],[11,8,11,16],[3,20,3,21],[8,19,8,22],[9,19,9,21],[10,19,10,21],[11,19,11,21],[30,4,30,5],[28,16,28,18],[25,16,25,19],[21,7,21,8],[22,7,22,8],[23,7,23,8],[3,7,3,8],[4,7,4,8],[5,7,5,8],[6,7,6,8],[14,19,14,20],[14,8,14,16],[15,8,15,16],[16,8,16,16],[17,8,17,16],[26,16,26,18],[27,16,27,18],[21,17,21,18],[22,17,22,18]]}
[null,"４　障害福祉サービス費の請求状況"]
[]
[null,"(1)","居宅介護",null,{"$f":"【共通】!J9&【共通】!L4&【共通】!M4","v":"令和 8年"},{"$f":"IFERROR(【共通】!N4-1&【共通】!O4,\"\")","v":"5月"}]
[null,"身体介護中心",null,null,"～30分",null,0,"30分～1時間",null,0,"1時間～1時間30分",0,"1時間30分～2時間",0,"2時間～2時間30分",null,0,"2時間30分～3時間",null,0,"3時間～",null,0]
[null,"家事援助中心",null,null,"～30分",null,0,"30分～45分",null,0,"45分～1時間",0,"1時間～1時間15分",0,"1時間15分～1時間30分",null,0,"1時間30分～",null,0]
[null,"通院等介助","身体介護を伴う",null,"～30分",null,0,"30分～1時間",null,0,"1時間～1時間30分",0,"1時間30分～2時間",0,"2時間～2時間30分",null,0,"2時間30分～3時間",null,0,"3時間～",null,0]
[null,null,"身体介護を伴わない",null,"～30分",null,0,"30分～1時間",null,0,"1時間～1時間30分",0,"1時間30分～",0]
[]
[null,null,null,null,"算定回数",null,"実人員",null,null,null,null,null,null,null,null,null,null,"算定回数",null,"処遇改善加算等"]
[null,"通院等乗降介助",null,null,0,null,0,null,"2人の居宅介護従業者による支援に伴う算定　（基本部分×200％）",null,null,null,null,null,null,null,null,0,null,"処遇改善加算等"]
[null,"初回加算",null,null,0,null,0,null,"夜間又は早朝の支援に伴う加算　（＋基本部分×25％）",null,null,null,null,null,null,null,null,0,null,"特定処遇改善加算"]
[null,"利用者負担上限額管理加算",null,null,0,null,0,null,"深夜の支援に伴う加算　（＋基本部分×50％）",null,null,null,null,null,null,null,null,0,null,"ベースアップ等支援加算"]
[null,"福祉専門職員等連携加算",null,null,0,null,0,null,"基礎研修修了者による支援に伴う減算　（基本部分×70％ or ×90％）",null,null,null,null,null,null,null,null,0]
[null,"緊急時対応加算",null,null,0,null,0,null,"重度訪問介護研修修了者による支援に伴う算定　　（重度訪問介護の単価 or 基本部分×90％）",null,null,null,null,null,null,null,null,0,null,"【居宅介護】"]
[null,"特別地域加算",null,null,0,null,0,null,"初任者研修課程修了者等が計画作成をしている場合の減算　（基本部分×70％）",null,null,null,null,null,null,null,null,0,null,{"$f":"$F$3&\"分 請求額\"","v":"5月分 請求額"},null,0]
[null,"喀痰吸引等支援体制加算",null,null,0,null,0,null,"同一敷地内建物に居住する利用者への支援に伴う減算　（基本部分×90％）",null,null,null,null,null,null,null,null,0]
[null,"身体拘束廃止未実施減算",null,null,0,null,null,null,"利用者のうち同一建物に居住する者が20人以上の場合の減算　（基本部分×90％）",null,null,null,null,null,null,null,null,0]
[null,"特定事業所加算",null,null,0,null,null,null,"利用者のうち同一建物に居住する者が50人以上の場合の減算　（基本部分×85％）",null,null,null,null,null,null,null,null,0]
[]
[]
[null,"(2)","重度訪問介護　　　",null,{"$f":"E3&\" \"&F3","v":"令和 8年 5月"}]
[null,"重度訪問介護",null,null,"～1時間",null,0,"1時間～1時間30分",null,0,"1時間30分～2時間",0,"2時間～2時間30分",0,"2時間30分～3時間",null,0,"3時間～3時間30分",null,0]
[null,null,null,null,"3時間30分～4時間",null,0,"4時間～8時間",null,0,"8時間～12時間",0,"12時間～16時間",0,"16時間～20時間",null,0,"20時間～24時間",null,0]
[null,"移動介護加算",null,null,"～1時間",null,0,"1時間～1時間30分",null,0,"1時間30分～2時間",0,"2時間～2時間30分",0,"2時間30分～3時間",null,0,"3時間～",null,0]
[]
[null,null,null,null,"算定回数",null,"実人員",null,null,null,null,null,null,null,"算定回数",null,"処遇改善加算等"]
[null,"初回加算",null,null,0,null,0,null,"重度障害者への支援に伴う加算　（＋基本部分×15％）",null,null,null,null,null,0,null,"処遇改善加算等"]
[null,"利用者負担上限額管理加算",null,null,0,null,0,null,"障害支援区分6に該当する利用者への支援に対する加算\n（＋基本部分×8.5％）",null,null,null,null,null,0,null,"特定処遇改善加算"]
[null,"行動障害支援連携加算",null,null,0,null,0,null,null,null,null,null,null,null,null,null,"ベースアップ等支援加算"]
[null,"緊急時対応加算",null,null,0,null,0,null,"2人の居宅介護従業者による支援に伴う算定　（基本部分×200％）",null,null,null,null,null,0]
[null,"特別地域加算",null,null,0,null,0,null,"2人の居宅介護従業者による支援のうち熟練者の同行に伴う算定\n（基本部分×185％）",null,null,null,null,null,0,null,"【重度訪問介護】"]
[null,"喀痰吸引等支援体制加算",null,null,0,null,0,null,null,null,null,null,null,null,null,null,{"$f":"$F$3&\"分 請求額\"","v":"5月分 請求額"},null,0]
[null,"移動介護緊急時支援加算",null,null,0,null,0,null,"夜間又は早朝の支援に伴う加算　（＋基本部分×25％）",null,null,null,null,null,0]
[null,"身体拘束廃止未実施減算",null,null,0,null,null,null,"深夜の支援に伴う加算　（＋基本部分×50％）",null,null,null,null,null,0]
[null,"特定事業所加算",null,null,0,null,null,null,"90日以上利用減算　（基本部分×80％）",null,null,null,null,null,0]
[]
[]
[]
[]
[]
[]
[null,null,null,null,"Ⅰ型"]
[null,null,null,null,"Ⅱ型"]
[null,null,null,null,"Ⅲ型"]
[null,null,null,null,"Ⅳ型"]
[null,null,null,null,"なし"]
[]
[null,null,null,null,"Ⅰ型"]
[null,null,null,null,"Ⅱ型"]
[null,null,null,null,"Ⅲ型"]
[null,null,null,null,"なし"]

{"sheet":"（旧）P5-2","index":8,"n_rows":43,"n_cols":23,"rows_kept":43,"cut":false,"hidden":true,"merged":[[1,4,1,5],[16,4,16,5],[3,4,3,5],[27,1,27,3],[6,1,6,3],[2,1,3,3],[17,1,19,3],[8,1,8,3],[12,1,12,2],[7,1,7,3],[26,1,26,3],[24,1,24,3],[23,1,23,3],[25,1,25,3],[22,1,22,3],[5,1,5,3],[11,1,11,3],[11,4,11,5],[9,1,9,3],[10,1,10,3],[2,13,2,14],[3,13,3,14],[2,10,2,11],[3,10,3,11],[2,7,2,8],[3,7,3,8],[7,4,7,5],[8,4,8,5],[9,4,9,5],[10,4,10,5],[10,8,10,17],[5,4,5,5],[5,20,5,23],[5,8,5,17],[6,20,6,22],[6,4,6,5],[11,20,11,21],[11,22,11,23],[7,20,7,22],[6,8,6,17],[7,8,7,17],[8,8,8,17],[9,8,9,17],[11,8,11,17],[21,1,21,3],[21,4,21,5],[21,18,21,21],[17,19,17,20],[18,19,18,20],[17,16,17,17],[19,13,19,14],[19,10,19,11],[12,8,12,17],[13,8,13,17],[12,4,12,5],[17,13,17,14],[18,13,18,14],[17,10,17,11],[18,10,18,11],[18,16,18,17],[28,1,28,2],[8,20,8,22],[22,18,22,20],[23,18,23,20],[24,18,24,20],[27,18,27,19],[27,20,27,21],[27,4,27,5],[17,7,17,8],[18,7,18,8],[19,7,19,8],[17,4,17,5],[18,4,18,5],[19,4,19,5],[23,8,23,15],[22,4,22,5],[28,4,28,5],[21,8,21,15],[22,8,22,15],[24,4,24,5],[25,4,25,5],[26,4,26,5],[23,4,23,5]]}
[]
[null,"(3)","同行援護",null,{"$f":"'（旧）P5-1'!E$21:F$21","v":"令和 8年 5月"}]
[null,"同行援護",null,null,"～30分",null,0,"30分～1時間",null,0,"1時間～1時間30分",null,0,"1時間30分～2時間",null,0]
[null,null,null,null,"2時間～2時間30分",null,0,"2時間30分～3時間",null,0,"3時間～",null,0]
[]
[null,null,null,null,"算定回数",null,"実人員",null,null,null,null,null,null,null,null,null,null,null,"算定回数",null,"処遇改善加算等"]
[null,"初回加算",null,null,0,null,0,null,"2人の同行援護従業者による支援に伴う算定　（基本部分×200％）",null,null,null,null,null,null,null,null,null,0,null,"処遇改善加算等"]
[null,"利用者負担上限額管理加算",null,null,0,null,0,null,"夜間又は早朝の支援に伴う加算　（＋基本部分×25％）",null,null,null,null,null,null,null,null,null,0,null,"特定処遇改善加算"]
[null,"緊急時対応加算",null,null,0,null,0,null,"深夜の支援に伴う加算　（＋基本部分×50％）",null,null,null,null,null,null,null,null,null,0,null,"ベースアップ等支援加算"]
[null,"特別地域加算",null,null,0,null,0,null,"盲ろう者に対する盲ろう者向け通訳通訳・介助員による支援に伴う加算　（＋基本部分×25％）",null,null,null,null,null,null,null,null,null,0]
[null,"喀痰吸引等支援体制加算",null,null,0,null,0,null,"障害支援区分3に該当する利用者への支援に対する加算　（＋基本部分×20％）",null,null,null,null,null,null,null,null,null,0,null,"【同行援護】"]
[null,"身体拘束廃止未実施減算",null,null,0,null,null,null,"障害支援区分4に該当する利用者への支援に対する加算　（＋基本部分×40％）",null,null,null,null,null,null,null,null,null,0,null,{"$f":"'（旧）P5-1'!$F$3&\"分 請求額\"","v":"5月分 請求額"},null,0]
[null,"特定事業所加算",null,null,0,null,null,null,"基礎研修修了者による支援に伴う減算　（基本部分×90％）",null,null,null,null,null,null,null,null,null,0]
[null,null,null,null,null,null,null,null,"盲ろう者向け通訳通訳・介助員による支援に伴う減算　（基本部分×90％）",null,null,null,null,null,null,null,null,null,0]
[]
[]
[null,"(4)","行動援護",null,{"$f":"'（旧）P5-1'!E$21:F$21","v":"令和 8年 5月"}]
[null,"行動援護",null,null,"～30分",null,0,"30分～1時間",null,0,"1時間～1時間30分",null,0,"1時間30分～2時間",null,0,"2時間～2時間30分",null,0,"2時間30分～3時間",null,0]
[null,null,null,null,"3時間～3時間30分",null,0,"3時間30分～4時間",null,0,"4時間～4時間30分",null,0,"4時間30分～5時間",null,0,"5時間～5時間30分",null,0,"5時間30分～6時間",null,0]
[null,null,null,null,"6時間～6時間30分",null,0,"6時間30分～7時間",null,0,"7時間～7時間30分",null,0,"7時間30分～",null,0]
[]
[null,null,null,null,"算定回数",null,"実人員",null,null,null,null,null,null,null,null,null,"算定回数",null,"処遇改善加算等"]
[null,"初回加算",null,null,0,null,0,null,"2人の同行援護従業者による支援に伴う算定　（基本部分×200％）",null,null,null,null,null,null,null,0,null,"処遇改善加算等"]
[null,"利用者負担上限額管理加算",null,null,0,null,0,null,"支援計画シートが未作成の場合の減算　（基本部分×95％）",null,null,null,null,null,null,null,0,null,"特定処遇改善加算"]
[null,"行動障害支援連携加算",null,null,0,null,0,null,null,null,null,null,null,null,null,null,null,null,"ベースアップ等支援加算"]
[null,"緊急時対応加算",null,null,0,null,0]
[null,"特別地域加算",null,null,0,null,0,null,null,null,null,null,null,null,null,null,null,null,"【行動援護】"]
[null,"喀痰吸引等支援体制加算",null,null,0,null,0,null,null,null,null,null,null,null,null,null,null,null,{"$f":"'（旧）P5-1'!$F$3&\"分 請求額\"","v":"5月分 請求額"},null,0]
[null,"特定事業所加算",null,"Ⅰ型",0]
[]
[]
[]
[]
[null,null,null,null,"Ⅰ型"]
[null,null,null,null,"Ⅱ型"]
[null,null,null,null,"Ⅲ型"]
[null,null,null,null,"Ⅳ型"]
[null,null,null,null,"なし"]
[]
[null,null,null,null,"Ⅰ型"]
[null,null,null,null,"Ⅱ型"]
[null,null,null,null,"Ⅲ型"]
[null,null,null,null,"なし"]

{"sheet":"P4","index":9,"n_rows":85,"n_cols":11,"rows_kept":85,"cut":false,"hidden":false,"merged":[[2,2,3,2],[2,1,3,1],[2,3,3,3],[2,4,3,4],[2,5,2,7]]}
[null,"４　（一）体制要件 ア 研修の実施状況　※特定事業所加算Ⅰ/Ⅱ/Ⅲを算定している場合のみ",null,null,null,null,null,{"$f":"\" １ / \"&K1","v":" １ / 1"},null,null,{"$f":"IF(C65<>\"\",4,IF(C44<>\"\",3,IF(C23<>\"\",2,1)))","v":1}]
[]
[null,null,"職　　　　種","氏　　　　名","雇用\n形態","従業者（サービス提供責任者）ごとの研修計画"]
[null,null,null,null,null,"研修の目標","内容","研修期間・実施時期",null,null,"常勤／専従"]
[null,"例","管理者兼サービス提供責任者","○○　○○","正","利用者のニーズを把握し、自立支援に資する適切な居宅介護計画書を作成できる。","アセスメントの視点と目標設定の具体化について、課題分析の演習","2025.6.1～2025.7.1",null,null,"常勤／兼務"]
[null,"例","ヘルパー","□□　□□","正","利用者の能力を活かした「自立支援型」の家事援助ができる。","調理・掃除における安全確保と、利用者との共同作業のための工夫","2025.6.1～2025.7.1",null,null,"非常勤／専従"]
[null,"例","登録ヘルパー","△△　△△","登","　　　　　　　　　虐待防止の研修","虐待の事例検討、身体拘束の適正化について","2025.10.1～2025.11.1",null,null,"非常勤／兼務"]
[null,1,null,null,null,null,null,null,null,null,"同事業所"]
[null,{"$f":"B8+1","v":2},null,null,null,null,null,null,null,null,"同法人\n他事業所"]
[null,{"$f":"B9+1","v":3},null,null,null,null,null,null,null,null,"他法人"]
[null,4,null,null,null,null,null,null,null,null,"-"]
[null,{"$f":"B11+1","v":5},null,null,null,null,null,null,null,null,"1年未満"]
[null,6,null,null,null,null,null,null,null,null,"1年以上\n3年未満"]
[null,7,null,null,null,null,null,null,null,null,"3年以上\n5年未満"]
[null,8,null,null,null,null,null,null,null,null,"5年以上"]
[null,9]
[null,10]
[null,11]
[null,12]
[null,13]
[null,14]
[null,15]
[null,{"$f":"B22+1","v":16}]
[null,{"$f":"B23+1","v":17}]
[null,{"$f":"B24+1","v":18}]
[null,19]
[null,20]
[null,21]
[null,22]
[null,23]
[null,24]
[null,25]
[null,26]
[null,27]
[null,28]
[null,29]
[null,30]
[null,31]
[null,32]
[null,33]
[null,34]
[null,35]
[null,36]
[null,{"$f":"B43+1","v":37}]
[null,{"$f":"B44+1","v":38}]
[null,{"$f":"B45+1","v":39}]
[null,40]
[null,41]
[null,42]
[null,43]
[null,44]
[null,45]
[null,46]
[null,47]
[null,48]
[null,49]
[null,50]
[null,51]
[null,52]
[null,53]
[null,54]
[null,55]
[null,56]
[null,57]
[null,{"$f":"B64+1","v":58}]
[null,{"$f":"B65+1","v":59}]
[null,{"$f":"B66+1","v":60}]
[null,61]
[null,62]
[null,63]
[null,64]
[null,65]
[null,66]
[null,67]
[null,68]
[null,69]
[null,70]
[null,71]
[null,72]
[null,73]
[null,74]
[null,75]
[null,76]
[null,77]
[null,78]

{"sheet":"P5-1","index":10,"n_rows":185,"n_cols":31,"rows_kept":185,"cut":false,"hidden":false,"merged":[[64,7,65,7],[64,9,65,9],[95,13,96,13],[64,13,65,13],[126,1,127,1],[126,2,127,2],[126,3,127,3],[126,4,127,4],[126,5,127,5],[64,8,65,8],[95,8,96,8],[126,8,127,8],[64,1,65,1],[64,2,65,2],[64,3,65,3],[64,4,65,4],[95,14,95,16],[95,1,96,1],[95,2,96,2],[95,3,96,3],[95,4,96,4],[95,5,96,5],[95,6,96,6],[95,10,95,11],[95,7,96,7],[95,9,96,9],[95,12,96,12],[64,5,65,5],[2,1,3,1],[33,14,33,16],[33,1,34,1],[33,2,34,2],[33,3,34,3],[33,4,34,4],[33,5,34,5],[33,10,33,11],[33,7,34,7],[33,9,34,9],[2,8,3,8],[33,8,34,8],[2,12,3,12],[33,12,34,12],[64,12,65,12],[126,14,126,16],[2,14,2,16],[2,2,3,2],[2,3,3,3],[2,9,3,9],[2,13,3,13],[2,4,3,4],[2,5,3,5],[33,13,34,13],[2,10,2,11],[2,6,3,6],[2,7,3,7],[33,6,34,6],[64,14,64,16],[64,6,65,6],[64,10,64,11],[126,6,127,6],[126,7,127,7],[126,9,127,9],[126,10,126,11],[126,13,127,13],[126,12,127,12],[157,12,158,12],[157,14,157,16],[157,1,158,1],[157,2,158,2],[157,3,158,3],[157,4,158,4],[157,5,158,5],[157,6,158,6],[157,7,158,7],[157,9,158,9],[157,10,157,11],[157,13,158,13],[157,8,158,8]]}
[]
[null,"５－１　（居宅介護）　居宅介護等計画の作成状況・支給決定内容等",null,null,null,null,null,null,null,null,null,null,null,null,null,null,{"$f":"\" 1 / \"&COUNTA(C$5,C$37,C$68,C$99,C$130,C$161)","v":" 1 / 1"}]
[null,"No.","利用者氏名","性別","年齢","居住地","障害\n種別","障害\n支援\n区分","自己\n負担","利用開始時期\n（契約時期）","利用頻度",null,"2人\n介助","併用\nサービス","居宅介護計画の作成等　※新規・変更問わず直近のもの"]
[null,null,null,null,null,null,null,null,null,null,"身体介護","家事援助",null,null,"アセスメントの\n実　　施　　日","居宅介護計画の\n作　　成　　日","利用者の\n同 意 日"]
[null,"例","浜松　太郎","男",44,"中区","知的",3,"○","半年～1年以内","週2回","週4回","○","生活介護","2023-04-01","2023-04-10","2023-04-12",null,null,null,null,null,null,null,null,null,null,null,null,null,"半年以内"]
[null,1,null,null,null,null,null,null,null,null,null,null,null,null,null,null,null,null,null,null,null,null,null,null,null,null,null,null,null,null,"半年～1年以内"]
[null,{"$f":"B6+1","v":2},null,null,null,null,null,null,null,null,null,null,null,null,null,null,null,null,null,null,null,null,null,null,null,null,null,null,null,null,"1年～3年以内"]
[null,{"$f":"B7+1","v":3},null,null,null,null,null,null,null,null,null,null,null,null,null,null,null,null,null,null,null,null,null,null,null,null,null,null,null,null,"3年以上"]
[null,4]
[null,5]
[null,6]
[null,7]
[null,8]
[null,9]
[null,10]
[null,11]
[null,12]
[null,13]
[null,14]
[null,15]
[null,16]
[null,17]
[null,18]
[null,19]
[null,20]
[null,21]
[null,22]
[null,23]
[null,24]
[null,25]
[]
[]
[null,"５－１　（居宅介護）　居宅介護等計画の作成状況・支給決定内容等",null,null,null,null,null,null,null,null,null,null,null,null,null,null,{"$f":"\" 2 / \"&COUNTA(C$5,C$37,C$68,C$99,C$130,C$161)","v":" 2 / 1"}]
[null,"No.","利用者氏名","性別","年齢","居住地","障害\n種別","障害\n支援\n区分","自己\n負担","利用開始時期\n（契約時期）","利用頻度",null,"2人\n介助","併用\nサービス","居宅介護計画の作成等　※新規・変更問わず直近のもの"]
[null,null,null,null,null,null,null,null,null,null,"身体介護","家事援助",null,null,"アセスメントの\n実　　施　　日","居宅介護計画の\n作　　成　　日","利用者の\n同 意 日"]
[null,"例","浜松　太郎","男",44,"中区","知的",3,"○","半年～1年以内","週2回","週4回","○","生活介護","2023-04-01","2023-04-10","2023-04-12",null,null,null,null,null,null,null,null,null,null,null,null,null,"半年以内"]
[null,{"$f":"B30+1","v":26},null,null,null,null,null,null,null,null,null,null,null,null,null,null,null,null,null,null,null,null,null,null,null,null,null,null,null,null,"半年～1年以内"]
[null,{"$f":"B37+1","v":27},null,null,null,null,null,null,null,null,null,null,null,null,null,null,null,null,null,null,null,null,null,null,null,null,null,null,null,null,"1年～3年以内"]
[null,{"$f":"B38+1","v":28},null,null,null,null,null,null,null,null,null,null,null,null,null,null,null,null,null,null,null,null,null,null,null,null,null,null,null,null,"3年以上"]
[null,29]
[null,30]
[null,31]
[null,32]
[null,33]
[null,34]
[null,35]
[null,36]
[null,37]
[null,38]
[null,39]
[null,40]
[null,41]
[null,42]
[null,43]
[null,44]
[null,45]
[null,46]
[null,47]
[null,48]
[null,49]
[null,50]
[]
[]
[null,"５－１　（居宅介護）　居宅介護等計画の作成状況・支給決定内容等",null,null,null,null,null,null,null,null,null,null,null,null,null,null,{"$f":"\" 3 / \"&COUNTA(C$5,C$37,C$68,C$99,C$130,C$161)","v":" 3 / 1"}]
[null,"No.","利用者氏名","性別","年齢","居住地","障害\n種別","障害\n支援\n区分","自己\n負担","利用開始時期\n（契約時期）","利用頻度",null,"2人\n介助","併用\nサービス","居宅介護計画の作成等　※新規・変更問わず直近のもの"]
[null,null,null,null,null,null,null,null,null,null,"身体介護","家事援助",null,null,"アセスメントの\n実　　施　　日","居宅介護計画の\n作　　成　　日","利用者の\n同 意 日"]
[null,"例","浜松　太郎","男",44,"中区","知的",3,"○","半年～1年以内","週2回","週4回","○","生活介護","2023-04-01","2023-04-10","2023-04-12",null,null,null,null,null,null,null,null,null,null,null,null,null,"半年以内"]
[null,{"$f":"B61+1","v":51},null,null,null,null,null,null,null,null,null,null,null,null,null,null,null,null,null,null,null,null,null,null,null,null,null,null,null,null,"半年～1年以内"]
[null,{"$f":"B68+1","v":52},null,null,null,null,null,null,null,null,null,null,null,null,null,null,null,null,null,null,null,null,null,null,null,null,null,null,null,null,"1年～3年以内"]
[null,{"$f":"B69+1","v":53},null,null,null,null,null,null,null,null,null,null,null,null,null,null,null,null,null,null,null,null,null,null,null,null,null,null,null,null,"3年以上"]
[null,54]
[null,55]
[null,56]
[null,57]
[null,58]
[null,59]
[null,60]
[null,61]
[null,62]
[null,63]
[null,64]
[null,65]
[null,66]
[null,67]
[null,68]
[null,69]
[null,70]
[null,71]
[null,72]
[null,73]
[null,74]
[null,75]
[]
[]
[null,"５－１　（居宅介護）　居宅介護等計画の作成状況・支給決定内容等",null,null,null,null,null,null,null,null,null,null,null,null,null,null,{"$f":"\" 4 / \"&COUNTA(C$5,C$37,C$68,C$99,C$130,C$161)","v":" 4 / 1"}]
[null,"No.","利用者氏名","性別","年齢","居住地","障害\n種別","障害\n支援\n区分","自己\n負担","利用開始時期\n（契約時期）","利用頻度",null,"2人\n介助","併用\nサービス","居宅介護計画の作成等　※新規・変更問わず直近のもの"]
[null,null,null,null,null,null,null,null,null,null,"身体介護","家事援助",null,null,"アセスメントの\n実　　施　　日","居宅介護計画の\n作　　成　　日","利用者の\n同 意 日"]
[null,"例","浜松　太郎","男",44,"中区","知的",3,"○","半年～1年以内","週2回","週4回","○","生活介護","2023-04-01","2023-04-10","2023-04-12",null,null,null,null,null,null,null,null,null,null,null,null,null,"半年以内"]
[null,{"$f":"B92+1","v":76},null,null,null,null,null,null,null,null,null,null,null,null,null,null,null,null,null,null,null,null,null,null,null,null,null,null,null,null,"半年～1年以内"]
[null,{"$f":"B99+1","v":77},null,null,null,null,null,null,null,null,null,null,null,null,null,null,null,null,null,null,null,null,null,null,null,null,null,null,null,null,"1年～3年以内"]
[null,{"$f":"B100+1","v":78},null,null,null,null,null,null,null,null,null,null,null,null,null,null,null,null,null,null,null,null,null,null,null,null,null,null,null,null,"3年以上"]
[null,79]
[null,80]
[null,81]
[null,82]
[null,83]
[null,84]
[null,85]
[null,86]
[null,87]
[null,88]
[null,89]
[null,90]
[null,91]
[null,92]
[null,93]
[null,94]
[null,95]
[null,96]
[null,97]
[null,98]
[null,99]
[null,100]
[]
[]
[null,"５－１　（居宅介護）　居宅介護等計画の作成状況・支給決定内容等",null,null,null,null,null,null,null,null,null,null,null,null,null,null,{"$f":"\" 5 / \"&COUNTA(C$5,C$37,C$68,C$99,C$130,C$161)","v":" 5 / 1"}]
[null,"No.","利用者氏名","性別","年齢","居住地","障害\n種別","障害\n支援\n区分","自己\n負担","利用開始時期\n（契約時期）","利用頻度",null,"2人\n介助","併用\nサービス","居宅介護計画の作成等　※新規・変更問わず直近のもの"]
[null,null,null,null,null,null,null,null,null,null,"身体介護","家事援助",null,null,"アセスメントの\n実　　施　　日","居宅介護計画の\n作　　成　　日","利用者の\n同 意 日"]
[null,"例","浜松　太郎","男",44,"中区","知的",3,"○","半年～1年以内","週2回","週4回","○","生活介護","2023-04-01","2023-04-10","2023-04-12",null,null,null,null,null,null,null,null,null,null,null,null,null,"半年以内"]
[null,{"$f":"B123+1","v":101},null,null,null,null,null,null,null,null,null,null,null,null,null,null,null,null,null,null,null,null,null,null,null,null,null,null,null,null,"半年～1年以内"]
[null,{"$f":"B130+1","v":102},null,null,null,null,null,null,null,null,null,null,null,null,null,null,null,null,null,null,null,null,null,null,null,null,null,null,null,null,"1年～3年以内"]
[null,{"$f":"B131+1","v":103},null,null,null,null,null,null,null,null,null,null,null,null,null,null,null,null,null,null,null,null,null,null,null,null,null,null,null,null,"3年以上"]
[null,104]
[null,105]
[null,106]
[null,107]
[null,108]
[null,109]
[null,110]
[null,111]
[null,112]
[null,113]
[null,114]
[null,115]
[null,116]
[null,117]
[null,118]
[null,119]
[null,120]
[null,121]
[null,122]
[null,123]
[null,124]
[null,125]
[]
[]
[null,"５－１　（居宅介護）　居宅介護等計画の作成状況・支給決定内容等",null,null,null,null,null,null,null,null,null,null,null,null,null,null,{"$f":"\" 6 / \"&COUNTA(C$5,C$37,C$68,C$99,C$130,C$161)","v":" 6 / 1"}]
[null,"No.","利用者氏名","性別","年齢","居住地","障害\n種別","障害\n支援\n区分","自己\n負担","利用開始時期\n（契約時期）","利用頻度",null,"2人\n介助","併用\nサービス","居宅介護計画の作成等　※新規・変更問わず直近のもの"]
[null,null,null,null,null,null,null,null,null,null,"身体介護","家事援助",null,null,"アセスメントの\n実　　施　　日","居宅介護計画の\n作　　成　　日","利用者の\n同 意 日"]
[null,"例","浜松　太郎","男",44,"中区","知的",3,"○","半年～1年以内","週2回","週4回","○","生活介護","2023-04-01","2023-04-10","2023-04-12",null,null,null,null,null,null,null,null,null,null,null,null,null,"半年以内"]
[null,{"$f":"B154+1","v":126},null,null,null,null,null,null,null,null,null,null,null,null,null,null,null,null,null,null,null,null,null,null,null,null,null,null,null,null,"半年～1年以内"]
[null,{"$f":"B161+1","v":127},null,null,null,null,null,null,null,null,null,null,null,null,null,null,null,null,null,null,null,null,null,null,null,null,null,null,null,null,"1年～3年以内"]
[null,{"$f":"B162+1","v":128},null,null,null,null,null,null,null,null,null,null,null,null,null,null,null,null,null,null,null,null,null,null,null,null,null,null,null,null,"3年以上"]
[null,129]
[null,130]
[null,131]
[null,132]
[null,133]
[null,134]
[null,135]
[null,136]
[null,137]
[null,138]
[null,139]
[null,140]
[null,141]
[null,142]
[null,143]
[null,144]
[null,145]
[null,146]
[null,147]
[null,148]
[null,149]
[null,150]

{"sheet":"P5-2","index":11,"n_rows":185,"n_cols":31,"rows_kept":185,"cut":false,"hidden":false,"merged":[[2,14,2,16],[2,8,3,8],[2,1,3,1],[2,2,3,2],[2,3,3,3],[2,4,3,4],[2,5,3,5],[2,6,3,6],[2,7,3,7],[2,9,3,9],[2,10,2,11],[2,12,3,12],[2,13,3,13],[33,14,33,16],[33,8,34,8],[33,1,34,1],[33,2,34,2],[33,3,34,3],[33,4,34,4],[33,5,34,5],[33,6,34,6],[33,7,34,7],[33,9,34,9],[33,10,33,11],[33,12,34,12],[33,13,34,13],[64,14,64,16],[64,8,65,8],[64,1,65,1],[64,2,65,2],[64,3,65,3],[64,4,65,4],[64,5,65,5],[64,6,65,6],[64,7,65,7],[64,9,65,9],[64,10,64,11],[64,12,65,12],[64,13,65,13],[95,14,95,16],[95,8,96,8],[95,1,96,1],[95,2,96,2],[95,3,96,3],[95,4,96,4],[95,5,96,5],[95,6,96,6],[95,7,96,7],[95,9,96,9],[95,10,95,11],[95,12,96,12],[95,13,96,13],[126,14,126,16],[126,8,127,8],[126,1,127,1],[126,2,127,2],[126,3,127,3],[126,4,127,4],[126,5,127,5],[126,6,127,6],[126,7,127,7],[126,9,127,9],[126,10,126,11],[126,12,127,12],[126,13,127,13],[157,14,157,16],[157,8,158,8],[157,1,158,1],[157,2,158,2],[157,3,158,3],[157,4,158,4],[157,5,158,5],[157,6,158,6],[157,7,158,7],[157,9,158,9],[157,10,157,11],[157,12,158,12],[157,13,158,13]]}
[]
[null,"５－２　（重度訪問介護）　居宅介護等計画の作成状況・支給決定内容等",null,null,null,null,null,null,null,null,null,null,null,null,null,null,{"$f":"\" 1 / \"&COUNTA(C$5,C$37,C$68,C$99,C$130,C$161)","v":" 1 / 1"}]
[null,"No.","利用者氏名","性別","年齢","居住地","障害\n種別","障害\n支援\n区分","自己\n負担","利用開始時期\n（契約時期）","利用頻度",null,"2人\n介助","併用\nサービス","居宅介護計画の作成等　※新規・変更問わず直近のもの"]
[null,null,null,null,null,null,null,null,null,null,"身体介護","家事援助",null,null,"アセスメントの\n実　　施　　日","居宅介護計画の\n作　　成　　日","利用者の\n同 意 日"]
[null,"例","浜松　太郎","男",44,"中区","知的",3,"○","半年～1年以内","週2回","週4回","○","生活介護","2023-04-01","2023-04-10","2023-04-12",null,null,null,null,null,null,null,null,null,null,null,null,null,"半年以内"]
[null,1,null,null,null,null,null,null,null,null,null,null,null,null,null,null,null,null,null,null,null,null,null,null,null,null,null,null,null,null,"半年～1年以内"]
[null,{"$f":"B6+1","v":2},null,null,null,null,null,null,null,null,null,null,null,null,null,null,null,null,null,null,null,null,null,null,null,null,null,null,null,null,"1年～3年以内"]
[null,{"$f":"B7+1","v":3},null,null,null,null,null,null,null,null,null,null,null,null,null,null,null,null,null,null,null,null,null,null,null,null,null,null,null,null,"3年以上"]
[null,4]
[null,5]
[null,6]
[null,7]
[null,8]
[null,9]
[null,10]
[null,11]
[null,12]
[null,13]
[null,14]
[null,15]
[null,16]
[null,17]
[null,18]
[null,19]
[null,20]
[null,21]
[null,22]
[null,23]
[null,24]
[null,25]
[]
[]
[null,"５－２　（重度訪問介護）　居宅介護等計画の作成状況・支給決定内容等",null,null,null,null,null,null,null,null,null,null,null,null,null,null,{"$f":"\" 2 / \"&COUNTA(C$5,C$37,C$68,C$99,C$130,C$161)","v":" 2 / 1"}]
[null,"No.","利用者氏名","性別","年齢","居住地","障害\n種別","障害\n支援\n区分","自己\n負担","利用開始時期\n（契約時期）","利用頻度",null,"2人\n介助","併用\nサービス","居宅介護計画の作成等　※新規・変更問わず直近のもの"]
[null,null,null,null,null,null,null,null,null,null,"身体介護","家事援助",null,null,"アセスメントの\n実　　施　　日","居宅介護計画の\n作　　成　　日","利用者の\n同 意 日"]
[null,"例","浜松　太郎","男",44,"中区","知的",3,"○","半年～1年以内","週2回","週4回","○","生活介護","2023-04-01","2023-04-10","2023-04-12",null,null,null,null,null,null,null,null,null,null,null,null,null,"半年以内"]
[null,{"$f":"B30+1","v":26},null,null,null,null,null,null,null,null,null,null,null,null,null,null,null,null,null,null,null,null,null,null,null,null,null,null,null,null,"半年～1年以内"]
[null,{"$f":"B37+1","v":27},null,null,null,null,null,null,null,null,null,null,null,null,null,null,null,null,null,null,null,null,null,null,null,null,null,null,null,null,"1年～3年以内"]
[null,{"$f":"B38+1","v":28},null,null,null,null,null,null,null,null,null,null,null,null,null,null,null,null,null,null,null,null,null,null,null,null,null,null,null,null,"3年以上"]
[null,29]
[null,30]
[null,31]
[null,32]
[null,33]
[null,34]
[null,35]
[null,36]
[null,37]
[null,38]
[null,39]
[null,40]
[null,41]
[null,42]
[null,43]
[null,44]
[null,45]
[null,46]
[null,47]
[null,48]
[null,49]
[null,50]
[]
[]
[null,"５－２　（重度訪問介護）　居宅介護等計画の作成状況・支給決定内容等",null,null,null,null,null,null,null,null,null,null,null,null,null,null,{"$f":"\" 3 / \"&COUNTA(C$5,C$37,C$68,C$99,C$130,C$161)","v":" 3 / 1"}]
[null,"No.","利用者氏名","性別","年齢","居住地","障害\n種別","障害\n支援\n区分","自己\n負担","利用開始時期\n（契約時期）","利用頻度",null,"2人\n介助","併用\nサービス","居宅介護計画の作成等　※新規・変更問わず直近のもの"]
[null,null,null,null,null,null,null,null,null,null,"身体介護","家事援助",null,null,"アセスメントの\n実　　施　　日","居宅介護計画の\n作　　成　　日","利用者の\n同 意 日"]
[null,"例","浜松　太郎","男",44,"中区","知的",3,"○","半年～1年以内","週2回","週4回","○","生活介護","2023-04-01","2023-04-10","2023-04-12",null,null,null,null,null,null,null,null,null,null,null,null,null,"半年以内"]
[null,{"$f":"B61+1","v":51},null,null,null,null,null,null,null,null,null,null,null,null,null,null,null,null,null,null,null,null,null,null,null,null,null,null,null,null,"半年～1年以内"]
[null,{"$f":"B68+1","v":52},null,null,null,null,null,null,null,null,null,null,null,null,null,null,null,null,null,null,null,null,null,null,null,null,null,null,null,null,"1年～3年以内"]
[null,{"$f":"B69+1","v":53},null,null,null,null,null,null,null,null,null,null,null,null,null,null,null,null,null,null,null,null,null,null,null,null,null,null,null,null,"3年以上"]
[null,54]
[null,55]
[null,56]
[null,57]
[null,58]
[null,59]
[null,60]
[null,61]
[null,62]
[null,63]
[null,64]
[null,65]
[null,66]
[null,67]
[null,68]
[null,69]
[null,70]
[null,71]
[null,72]
[null,73]
[null,74]
[null,75]
[]
[]
[null,"５－２　（重度訪問介護）　居宅介護等計画の作成状況・支給決定内容等",null,null,null,null,null,null,null,null,null,null,null,null,null,null,{"$f":"\" 4 / \"&COUNTA(C$5,C$37,C$68,C$99,C$130,C$161)","v":" 4 / 1"}]
[null,"No.","利用者氏名","性別","年齢","居住地","障害\n種別","障害\n支援\n区分","自己\n負担","利用開始時期\n（契約時期）","利用頻度",null,"2人\n介助","併用\nサービス","居宅介護計画の作成等　※新規・変更問わず直近のもの"]
[null,null,null,null,null,null,null,null,null,null,"身体介護","家事援助",null,null,"アセスメントの\n実　　施　　日","居宅介護計画の\n作　　成　　日","利用者の\n同 意 日"]
[null,"例","浜松　太郎","男",44,"中区","知的",3,"○","半年～1年以内","週2回","週4回","○","生活介護","2023-04-01","2023-04-10","2023-04-12",null,null,null,null,null,null,null,null,null,null,null,null,null,"半年以内"]
[null,{"$f":"B92+1","v":76},null,null,null,null,null,null,null,null,null,null,null,null,null,null,null,null,null,null,null,null,null,null,null,null,null,null,null,null,"半年～1年以内"]
[null,{"$f":"B99+1","v":77},null,null,null,null,null,null,null,null,null,null,null,null,null,null,null,null,null,null,null,null,null,null,null,null,null,null,null,null,"1年～3年以内"]
[null,{"$f":"B100+1","v":78},null,null,null,null,null,null,null,null,null,null,null,null,null,null,null,null,null,null,null,null,null,null,null,null,null,null,null,null,"3年以上"]
[null,79]
[null,80]
[null,81]
[null,82]
[null,83]
[null,84]
[null,85]
[null,86]
[null,87]
[null,88]
[null,89]
[null,90]
[null,91]
[null,92]
[null,93]
[null,94]
[null,95]
[null,96]
[null,97]
[null,98]
[null,99]
[null,100]
[]
[]
[null,"５－２　（重度訪問介護）　居宅介護等計画の作成状況・支給決定内容等",null,null,null,null,null,null,null,null,null,null,null,null,null,null,{"$f":"\" 5 / \"&COUNTA(C$5,C$37,C$68,C$99,C$130,C$161)","v":" 5 / 1"}]
[null,"No.","利用者氏名","性別","年齢","居住地","障害\n種別","障害\n支援\n区分","自己\n負担","利用開始時期\n（契約時期）","利用頻度",null,"2人\n介助","併用\nサービス","居宅介護計画の作成等　※新規・変更問わず直近のもの"]
[null,null,null,null,null,null,null,null,null,null,"身体介護","家事援助",null,null,"アセスメントの\n実　　施　　日","居宅介護計画の\n作　　成　　日","利用者の\n同 意 日"]
[null,"例","浜松　太郎","男",44,"中区","知的",3,"○","半年～1年以内","週2回","週4回","○","生活介護","2023-04-01","2023-04-10","2023-04-12",null,null,null,null,null,null,null,null,null,null,null,null,null,"半年以内"]
[null,{"$f":"B123+1","v":101},null,null,null,null,null,null,null,null,null,null,null,null,null,null,null,null,null,null,null,null,null,null,null,null,null,null,null,null,"半年～1年以内"]
[null,{"$f":"B130+1","v":102},null,null,null,null,null,null,null,null,null,null,null,null,null,null,null,null,null,null,null,null,null,null,null,null,null,null,null,null,"1年～3年以内"]
[null,{"$f":"B131+1","v":103},null,null,null,null,null,null,null,null,null,null,null,null,null,null,null,null,null,null,null,null,null,null,null,null,null,null,null,null,"3年以上"]
[null,104]
[null,105]
[null,106]
[null,107]
[null,108]
[null,109]
[null,110]
[null,111]
[null,112]
[null,113]
[null,114]
[null,115]
[null,116]
[null,117]
[null,118]
[null,119]
[null,120]
[null,121]
[null,122]
[null,123]
[null,124]
[null,125]
[]
[]
[null,"５－２　（重度訪問介護）　居宅介護等計画の作成状況・支給決定内容等",null,null,null,null,null,null,null,null,null,null,null,null,null,null,{"$f":"\" 6 / \"&COUNTA(C$5,C$37,C$68,C$99,C$130,C$161)","v":" 6 / 1"}]
[null,"No.","利用者氏名","性別","年齢","居住地","障害\n種別","障害\n支援\n区分","自己\n負担","利用開始時期\n（契約時期）","利用頻度",null,"2人\n介助","併用\nサービス","居宅介護計画の作成等　※新規・変更問わず直近のもの"]
[null,null,null,null,null,null,null,null,null,null,"身体介護","家事援助",null,null,"アセスメントの\n実　　施　　日","居宅介護計画の\n作　　成　　日","利用者の\n同 意 日"]
[null,"例","浜松　太郎","男",44,"中区","知的",3,"○","半年～1年以内","週2回","週4回","○","生活介護","2023-04-01","2023-04-10","2023-04-12",null,null,null,null,null,null,null,null,null,null,null,null,null,"半年以内"]
[null,{"$f":"B154+1","v":126},null,null,null,null,null,null,null,null,null,null,null,null,null,null,null,null,null,null,null,null,null,null,null,null,null,null,null,null,"半年～1年以内"]
[null,{"$f":"B161+1","v":127},null,null,null,null,null,null,null,null,null,null,null,null,null,null,null,null,null,null,null,null,null,null,null,null,null,null,null,null,"1年～3年以内"]
[null,{"$f":"B162+1","v":128},null,null,null,null,null,null,null,null,null,null,null,null,null,null,null,null,null,null,null,null,null,null,null,null,null,null,null,null,"3年以上"]
[null,129]
[null,130]
[null,131]
[null,132]
[null,133]
[null,134]
[null,135]
[null,136]
[null,137]
[null,138]
[null,139]
[null,140]
[null,141]
[null,142]
[null,143]
[null,144]
[null,145]
[null,146]
[null,147]
[null,148]
[null,149]
[null,150]

{"sheet":"P5-3","index":12,"n_rows":185,"n_cols":31,"rows_kept":185,"cut":false,"hidden":false,"merged":[[2,14,2,16],[2,8,3,8],[2,1,3,1],[2,2,3,2],[2,3,3,3],[2,4,3,4],[2,5,3,5],[2,6,3,6],[2,7,3,7],[2,9,3,9],[2,10,2,11],[2,12,3,12],[2,13,3,13],[33,14,33,16],[33,8,34,8],[33,1,34,1],[33,2,34,2],[33,3,34,3],[33,4,34,4],[33,5,34,5],[33,6,34,6],[33,7,34,7],[33,9,34,9],[33,10,33,11],[33,12,34,12],[33,13,34,13],[64,14,64,16],[64,8,65,8],[64,1,65,1],[64,2,65,2],[64,3,65,3],[64,4,65,4],[64,5,65,5],[64,6,65,6],[64,7,65,7],[64,9,65,9],[64,10,64,11],[64,12,65,12],[64,13,65,13],[95,14,95,16],[95,8,96,8],[95,1,96,1],[95,2,96,2],[95,3,96,3],[95,4,96,4],[95,5,96,5],[95,6,96,6],[95,7,96,7],[95,9,96,9],[95,10,95,11],[95,12,96,12],[95,13,96,13],[126,14,126,16],[126,8,127,8],[126,1,127,1],[126,2,127,2],[126,3,127,3],[126,4,127,4],[126,5,127,5],[126,6,127,6],[126,7,127,7],[126,9,127,9],[126,10,126,11],[126,12,127,12],[126,13,127,13],[157,14,157,16],[157,8,158,8],[157,1,158,1],[157,2,158,2],[157,3,158,3],[157,4,158,4],[157,5,158,5],[157,6,158,6],[157,7,158,7],[157,9,158,9],[157,10,157,11],[157,12,158,12],[157,13,158,13]]}
[]
[null,"５－３　（行動援護）　居宅介護等計画の作成状況・支給決定内容等",null,null,null,null,null,null,null,null,null,null,null,null,null,null,{"$f":"\" 1 / \"&COUNTA(C$5,C$37,C$68,C$99,C$130,C$161)","v":" 1 / 1"}]
[null,"No.","利用者氏名","性別","年齢","居住地","障害\n種別","障害\n支援\n区分","自己\n負担","利用開始時期\n（契約時期）","利用頻度",null,"2人\n介助","併用\nサービス","居宅介護計画の作成等　※新規・変更問わず直近のもの"]
[null,null,null,null,null,null,null,null,null,null,"身体介護","家事援助",null,null,"アセスメントの\n実　　施　　日","居宅介護計画の\n作　　成　　日","利用者の\n同 意 日"]
[null,"例","浜松　太郎","男",44,"中区","知的",3,"○","半年～1年以内","週2回","週4回","○","生活介護","2023-04-01","2023-04-10","2023-04-12",null,null,null,null,null,null,null,null,null,null,null,null,null,"半年以内"]
[null,1,null,null,null,null,null,null,null,null,null,null,null,null,null,null,null,null,null,null,null,null,null,null,null,null,null,null,null,null,"半年～1年以内"]
[null,{"$f":"B6+1","v":2},null,null,null,null,null,null,null,null,null,null,null,null,null,null,null,null,null,null,null,null,null,null,null,null,null,null,null,null,"1年～3年以内"]
[null,{"$f":"B7+1","v":3},null,null,null,null,null,null,null,null,null,null,null,null,null,null,null,null,null,null,null,null,null,null,null,null,null,null,null,null,"3年以上"]
[null,4]
[null,5]
[null,6]
[null,7]
[null,8]
[null,9]
[null,10]
[null,11]
[null,12]
[null,13]
[null,14]
[null,15]
[null,16]
[null,17]
[null,18]
[null,19]
[null,20]
[null,21]
[null,22]
[null,23]
[null,24]
[null,25]
[]
[]
[null,"５－３　（行動援護）　居宅介護等計画の作成状況・支給決定内容等",null,null,null,null,null,null,null,null,null,null,null,null,null,null,{"$f":"\" 2 / \"&COUNTA(C$5,C$37,C$68,C$99,C$130,C$161)","v":" 2 / 1"}]
[null,"No.","利用者氏名","性別","年齢","居住地","障害\n種別","障害\n支援\n区分","自己\n負担","利用開始時期\n（契約時期）","利用頻度",null,"2人\n介助","併用\nサービス","居宅介護計画の作成等　※新規・変更問わず直近のもの"]
[null,null,null,null,null,null,null,null,null,null,"身体介護","家事援助",null,null,"アセスメントの\n実　　施　　日","居宅介護計画の\n作　　成　　日","利用者の\n同 意 日"]
[null,"例","浜松　太郎","男",44,"中区","知的",3,"○","半年～1年以内","週2回","週4回","○","生活介護","2023-04-01","2023-04-10","2023-04-12",null,null,null,null,null,null,null,null,null,null,null,null,null,"半年以内"]
[null,{"$f":"B30+1","v":26},null,null,null,null,null,null,null,null,null,null,null,null,null,null,null,null,null,null,null,null,null,null,null,null,null,null,null,null,"半年～1年以内"]
[null,{"$f":"B37+1","v":27},null,null,null,null,null,null,null,null,null,null,null,null,null,null,null,null,null,null,null,null,null,null,null,null,null,null,null,null,"1年～3年以内"]
[null,{"$f":"B38+1","v":28},null,null,null,null,null,null,null,null,null,null,null,null,null,null,null,null,null,null,null,null,null,null,null,null,null,null,null,null,"3年以上"]
[null,29]
[null,30]
[null,31]
[null,32]
[null,33]
[null,34]
[null,35]
[null,36]
[null,37]
[null,38]
[null,39]
[null,40]
[null,41]
[null,42]
[null,43]
[null,44]
[null,45]
[null,46]
[null,47]
[null,48]
[null,49]
[null,50]
[]
[]
[null,"５－３　（行動援護）　居宅介護等計画の作成状況・支給決定内容等",null,null,null,null,null,null,null,null,null,null,null,null,null,null,{"$f":"\" 3 / \"&COUNTA(C$5,C$37,C$68,C$99,C$130,C$161)","v":" 3 / 1"}]
[null,"No.","利用者氏名","性別","年齢","居住地","障害\n種別","障害\n支援\n区分","自己\n負担","利用開始時期\n（契約時期）","利用頻度",null,"2人\n介助","併用\nサービス","居宅介護計画の作成等　※新規・変更問わず直近のもの"]
[null,null,null,null,null,null,null,null,null,null,"身体介護","家事援助",null,null,"アセスメントの\n実　　施　　日","居宅介護計画の\n作　　成　　日","利用者の\n同 意 日"]
[null,"例","浜松　太郎","男",44,"中区","知的",3,"○","半年～1年以内","週2回","週4回","○","生活介護","2023-04-01","2023-04-10","2023-04-12",null,null,null,null,null,null,null,null,null,null,null,null,null,"半年以内"]
[null,{"$f":"B61+1","v":51},null,null,null,null,null,null,null,null,null,null,null,null,null,null,null,null,null,null,null,null,null,null,null,null,null,null,null,null,"半年～1年以内"]
[null,{"$f":"B68+1","v":52},null,null,null,null,null,null,null,null,null,null,null,null,null,null,null,null,null,null,null,null,null,null,null,null,null,null,null,null,"1年～3年以内"]
[null,{"$f":"B69+1","v":53},null,null,null,null,null,null,null,null,null,null,null,null,null,null,null,null,null,null,null,null,null,null,null,null,null,null,null,null,"3年以上"]
[null,54]
[null,55]
[null,56]
[null,57]
[null,58]
[null,59]
[null,60]
[null,61]
[null,62]
[null,63]
[null,64]
[null,65]
[null,66]
[null,67]
[null,68]
[null,69]
[null,70]
[null,71]
[null,72]
[null,73]
[null,74]
[null,75]
[]
[]
[null,"５－３　（行動援護）　居宅介護等計画の作成状況・支給決定内容等",null,null,null,null,null,null,null,null,null,null,null,null,null,null,{"$f":"\" 4 / \"&COUNTA(C$5,C$37,C$68,C$99,C$130,C$161)","v":" 4 / 1"}]
[null,"No.","利用者氏名","性別","年齢","居住地","障害\n種別","障害\n支援\n区分","自己\n負担","利用開始時期\n（契約時期）","利用頻度",null,"2人\n介助","併用\nサービス","居宅介護計画の作成等　※新規・変更問わず直近のもの"]
[null,null,null,null,null,null,null,null,null,null,"身体介護","家事援助",null,null,"アセスメントの\n実　　施　　日","居宅介護計画の\n作　　成　　日","利用者の\n同 意 日"]
[null,"例","浜松　太郎","男",44,"中区","知的",3,"○","半年～1年以内","週2回","週4回","○","生活介護","2023-04-01","2023-04-10","2023-04-12",null,null,null,null,null,null,null,null,null,null,null,null,null,"半年以内"]
[null,{"$f":"B92+1","v":76},null,null,null,null,null,null,null,null,null,null,null,null,null,null,null,null,null,null,null,null,null,null,null,null,null,null,null,null,"半年～1年以内"]
[null,{"$f":"B99+1","v":77},null,null,null,null,null,null,null,null,null,null,null,null,null,null,null,null,null,null,null,null,null,null,null,null,null,null,null,null,"1年～3年以内"]
[null,{"$f":"B100+1","v":78},null,null,null,null,null,null,null,null,null,null,null,null,null,null,null,null,null,null,null,null,null,null,null,null,null,null,null,null,"3年以上"]
[null,79]
[null,80]
[null,81]
[null,82]
[null,83]
[null,84]
[null,85]
[null,86]
[null,87]
[null,88]
[null,89]
[null,90]
[null,91]
[null,92]
[null,93]
[null,94]
[null,95]
[null,96]
[null,97]
[null,98]
[null,99]
[null,100]
[]
[]
[null,"５－３　（行動援護）　居宅介護等計画の作成状況・支給決定内容等",null,null,null,null,null,null,null,null,null,null,null,null,null,null,{"$f":"\" 5 / \"&COUNTA(C$5,C$37,C$68,C$99,C$130,C$161)","v":" 5 / 1"}]
[null,"No.","利用者氏名","性別","年齢","居住地","障害\n種別","障害\n支援\n区分","自己\n負担","利用開始時期\n（契約時期）","利用頻度",null,"2人\n介助","併用\nサービス","居宅介護計画の作成等　※新規・変更問わず直近のもの"]
[null,null,null,null,null,null,null,null,null,null,"身体介護","家事援助",null,null,"アセスメントの\n実　　施　　日","居宅介護計画の\n作　　成　　日","利用者の\n同 意 日"]
[null,"例","浜松　太郎","男",44,"中区","知的",3,"○","半年～1年以内","週2回","週4回","○","生活介護","2023-04-01","2023-04-10","2023-04-12",null,null,null,null,null,null,null,null,null,null,null,null,null,"半年以内"]
[null,{"$f":"B123+1","v":101},null,null,null,null,null,null,null,null,null,null,null,null,null,null,null,null,null,null,null,null,null,null,null,null,null,null,null,null,"半年～1年以内"]
[null,{"$f":"B130+1","v":102},null,null,null,null,null,null,null,null,null,null,null,null,null,null,null,null,null,null,null,null,null,null,null,null,null,null,null,null,"1年～3年以内"]
[null,{"$f":"B131+1","v":103},null,null,null,null,null,null,null,null,null,null,null,null,null,null,null,null,null,null,null,null,null,null,null,null,null,null,null,null,"3年以上"]
[null,104]
[null,105]
[null,106]
[null,107]
[null,108]
[null,109]
[null,110]
[null,111]
[null,112]
[null,113]
[null,114]
[null,115]
[null,116]
[null,117]
[null,118]
[null,119]
[null,120]
[null,121]
[null,122]
[null,123]
[null,124]
[null,125]
[]
[]
[null,"５－３　（行動援護）　居宅介護等計画の作成状況・支給決定内容等",null,null,null,null,null,null,null,null,null,null,null,null,null,null,{"$f":"\" 6 / \"&COUNTA(C$5,C$37,C$68,C$99,C$130,C$161)","v":" 6 / 1"}]
[null,"No.","利用者氏名","性別","年齢","居住地","障害\n種別","障害\n支援\n区分","自己\n負担","利用開始時期\n（契約時期）","利用頻度",null,"2人\n介助","併用\nサービス","居宅介護計画の作成等　※新規・変更問わず直近のもの"]
[null,null,null,null,null,null,null,null,null,null,"身体介護","家事援助",null,null,"アセスメントの\n実　　施　　日","居宅介護計画の\n作　　成　　日","利用者の\n同 意 日"]
[null,"例","浜松　太郎","男",44,"中区","知的",3,"○","半年～1年以内","週2回","週4回","○","生活介護","2023-04-01","2023-04-10","2023-04-12",null,null,null,null,null,null,null,null,null,null,null,null,null,"半年以内"]
[null,{"$f":"B154+1","v":126},null,null,null,null,null,null,null,null,null,null,null,null,null,null,null,null,null,null,null,null,null,null,null,null,null,null,null,null,"半年～1年以内"]
[null,{"$f":"B161+1","v":127},null,null,null,null,null,null,null,null,null,null,null,null,null,null,null,null,null,null,null,null,null,null,null,null,null,null,null,null,"1年～3年以内"]
[null,{"$f":"B162+1","v":128},null,null,null,null,null,null,null,null,null,null,null,null,null,null,null,null,null,null,null,null,null,null,null,null,null,null,null,null,"3年以上"]
[null,129]
[null,130]
[null,131]
[null,132]
[null,133]
[null,134]
[null,135]
[null,136]
[null,137]
[null,138]
[null,139]
[null,140]
[null,141]
[null,142]
[null,143]
[null,144]
[null,145]
[null,146]
[null,147]
[null,148]
[null,149]
[null,150]

{"sheet":"P5-4","index":13,"n_rows":185,"n_cols":31,"rows_kept":185,"cut":false,"hidden":false,"merged":[[2,14,2,16],[2,8,3,8],[2,1,3,1],[2,2,3,2],[2,3,3,3],[2,4,3,4],[2,5,3,5],[2,6,3,6],[2,7,3,7],[2,9,3,9],[2,10,2,11],[2,12,3,12],[2,13,3,13],[33,14,33,16],[33,8,34,8],[33,1,34,1],[33,2,34,2],[33,3,34,3],[33,4,34,4],[33,5,34,5],[33,6,34,6],[33,7,34,7],[33,9,34,9],[33,10,33,11],[33,12,34,12],[33,13,34,13],[64,14,64,16],[64,8,65,8],[64,1,65,1],[64,2,65,2],[64,3,65,3],[64,4,65,4],[64,5,65,5],[64,6,65,6],[64,7,65,7],[64,9,65,9],[64,10,64,11],[64,12,65,12],[64,13,65,13],[95,14,95,16],[95,8,96,8],[95,1,96,1],[95,2,96,2],[95,3,96,3],[95,4,96,4],[95,5,96,5],[95,6,96,6],[95,7,96,7],[95,9,96,9],[95,10,95,11],[95,12,96,12],[95,13,96,13],[126,14,126,16],[126,8,127,8],[126,1,127,1],[126,2,127,2],[126,3,127,3],[126,4,127,4],[126,5,127,5],[126,6,127,6],[126,7,127,7],[126,9,127,9],[126,10,126,11],[126,12,127,12],[126,13,127,13],[157,14,157,16],[157,8,158,8],[157,1,158,1],[157,2,158,2],[157,3,158,3],[157,4,158,4],[157,5,158,5],[157,6,158,6],[157,7,158,7],[157,9,158,9],[157,10,157,11],[157,12,158,12],[157,13,158,13]]}
[]
[null,"５－４　（同行援護）　居宅介護等計画の作成状況・支給決定内容等",null,null,null,null,null,null,null,null,null,null,null,null,null,null,{"$f":"\" 1 / \"&COUNTA(C$5,C$37,C$68,C$99,C$130,C$161)","v":" 1 / 1"}]
[null,"No.","利用者氏名","性別","年齢","居住地","障害\n種別","障害\n支援\n区分","自己\n負担","利用開始時期\n（契約時期）","利用頻度",null,"2人\n介助","併用\nサービス","居宅介護計画の作成等　※新規・変更問わず直近のもの"]
[null,null,null,null,null,null,null,null,null,null,"身体介護","家事援助",null,null,"アセスメントの\n実　　施　　日","居宅介護計画の\n作　　成　　日","利用者の\n同 意 日"]
[null,"例","浜松　太郎","男",44,"中区","知的",3,"○","半年～1年以内","週2回","週4回","○","生活介護","2023-04-01","2023-04-10","2023-04-12",null,null,null,null,null,null,null,null,null,null,null,null,null,"半年以内"]
[null,1,null,null,null,null,null,null,null,null,null,null,null,null,null,null,null,null,null,null,null,null,null,null,null,null,null,null,null,null,"半年～1年以内"]
[null,{"$f":"B6+1","v":2},null,null,null,null,null,null,null,null,null,null,null,null,null,null,null,null,null,null,null,null,null,null,null,null,null,null,null,null,"1年～3年以内"]
[null,{"$f":"B7+1","v":3},null,null,null,null,null,null,null,null,null,null,null,null,null,null,null,null,null,null,null,null,null,null,null,null,null,null,null,null,"3年以上"]
[null,4]
[null,5]
[null,6]
[null,7]
[null,8]
[null,9]
[null,10]
[null,11]
[null,12]
[null,13]
[null,14]
[null,15]
[null,16]
[null,17]
[null,18]
[null,19]
[null,20]
[null,21]
[null,22]
[null,23]
[null,24]
[null,25]
[]
[]
[null,"５－４　（同行援護）　居宅介護等計画の作成状況・支給決定内容等",null,null,null,null,null,null,null,null,null,null,null,null,null,null,{"$f":"\" 2 / \"&COUNTA(C$5,C$37,C$68,C$99,C$130,C$161)","v":" 2 / 1"}]
[null,"No.","利用者氏名","性別","年齢","居住地","障害\n種別","障害\n支援\n区分","自己\n負担","利用開始時期\n（契約時期）","利用頻度",null,"2人\n介助","併用\nサービス","居宅介護計画の作成等　※新規・変更問わず直近のもの"]
[null,null,null,null,null,null,null,null,null,null,"身体介護","家事援助",null,null,"アセスメントの\n実　　施　　日","居宅介護計画の\n作　　成　　日","利用者の\n同 意 日"]
[null,"例","浜松　太郎","男",44,"中区","知的",3,"○","半年～1年以内","週2回","週4回","○","生活介護","2023-04-01","2023-04-10","2023-04-12",null,null,null,null,null,null,null,null,null,null,null,null,null,"半年以内"]
[null,{"$f":"B30+1","v":26},null,null,null,null,null,null,null,null,null,null,null,null,null,null,null,null,null,null,null,null,null,null,null,null,null,null,null,null,"半年～1年以内"]
[null,{"$f":"B37+1","v":27},null,null,null,null,null,null,null,null,null,null,null,null,null,null,null,null,null,null,null,null,null,null,null,null,null,null,null,null,"1年～3年以内"]
[null,{"$f":"B38+1","v":28},null,null,null,null,null,null,null,null,null,null,null,null,null,null,null,null,null,null,null,null,null,null,null,null,null,null,null,null,"3年以上"]
[null,29]
[null,30]
[null,31]
[null,32]
[null,33]
[null,34]
[null,35]
[null,36]
[null,37]
[null,38]
[null,39]
[null,40]
[null,41]
[null,42]
[null,43]
[null,44]
[null,45]
[null,46]
[null,47]
[null,48]
[null,49]
[null,50]
[]
[]
[null,"５－４　（同行援護）　居宅介護等計画の作成状況・支給決定内容等",null,null,null,null,null,null,null,null,null,null,null,null,null,null,{"$f":"\" 3 / \"&COUNTA(C$5,C$37,C$68,C$99,C$130,C$161)","v":" 3 / 1"}]
[null,"No.","利用者氏名","性別","年齢","居住地","障害\n種別","障害\n支援\n区分","自己\n負担","利用開始時期\n（契約時期）","利用頻度",null,"2人\n介助","併用\nサービス","居宅介護計画の作成等　※新規・変更問わず直近のもの"]
[null,null,null,null,null,null,null,null,null,null,"身体介護","家事援助",null,null,"アセスメントの\n実　　施　　日","居宅介護計画の\n作　　成　　日","利用者の\n同 意 日"]
[null,"例","浜松　太郎","男",44,"中区","知的",3,"○","半年～1年以内","週2回","週4回","○","生活介護","2023-04-01","2023-04-10","2023-04-12",null,null,null,null,null,null,null,null,null,null,null,null,null,"半年以内"]
[null,{"$f":"B61+1","v":51},null,null,null,null,null,null,null,null,null,null,null,null,null,null,null,null,null,null,null,null,null,null,null,null,null,null,null,null,"半年～1年以内"]
[null,{"$f":"B68+1","v":52},null,null,null,null,null,null,null,null,null,null,null,null,null,null,null,null,null,null,null,null,null,null,null,null,null,null,null,null,"1年～3年以内"]
[null,{"$f":"B69+1","v":53},null,null,null,null,null,null,null,null,null,null,null,null,null,null,null,null,null,null,null,null,null,null,null,null,null,null,null,null,"3年以上"]
[null,54]
[null,55]
[null,56]
[null,57]
[null,58]
[null,59]
[null,60]
[null,61]
[null,62]
[null,63]
[null,64]
[null,65]
[null,66]
[null,67]
[null,68]
[null,69]
[null,70]
[null,71]
[null,72]
[null,73]
[null,74]
[null,75]
[]
[]
[null,"５－４　（同行援護）　居宅介護等計画の作成状況・支給決定内容等",null,null,null,null,null,null,null,null,null,null,null,null,null,null,{"$f":"\" 4 / \"&COUNTA(C$5,C$37,C$68,C$99,C$130,C$161)","v":" 4 / 1"}]
[null,"No.","利用者氏名","性別","年齢","居住地","障害\n種別","障害\n支援\n区分","自己\n負担","利用開始時期\n（契約時期）","利用頻度",null,"2人\n介助","併用\nサービス","居宅介護計画の作成等　※新規・変更問わず直近のもの"]
[null,null,null,null,null,null,null,null,null,null,"身体介護","家事援助",null,null,"アセスメントの\n実　　施　　日","居宅介護計画の\n作　　成　　日","利用者の\n同 意 日"]
[null,"例","浜松　太郎","男",44,"中区","知的",3,"○","半年～1年以内","週2回","週4回","○","生活介護","2023-04-01","2023-04-10","2023-04-12",null,null,null,null,null,null,null,null,null,null,null,null,null,"半年以内"]
[null,{"$f":"B92+1","v":76},null,null,null,null,null,null,null,null,null,null,null,null,null,null,null,null,null,null,null,null,null,null,null,null,null,null,null,null,"半年～1年以内"]
[null,{"$f":"B99+1","v":77},null,null,null,null,null,null,null,null,null,null,null,null,null,null,null,null,null,null,null,null,null,null,null,null,null,null,null,null,"1年～3年以内"]
[null,{"$f":"B100+1","v":78},null,null,null,null,null,null,null,null,null,null,null,null,null,null,null,null,null,null,null,null,null,null,null,null,null,null,null,null,"3年以上"]
[null,79]
[null,80]
[null,81]
[null,82]
[null,83]
[null,84]
[null,85]
[null,86]
[null,87]
[null,88]
[null,89]
[null,90]
[null,91]
[null,92]
[null,93]
[null,94]
[null,95]
[null,96]
[null,97]
[null,98]
[null,99]
[null,100]
[]
[]
[null,"５－４　（同行援護）　居宅介護等計画の作成状況・支給決定内容等",null,null,null,null,null,null,null,null,null,null,null,null,null,null,{"$f":"\" 5 / \"&COUNTA(C$5,C$37,C$68,C$99,C$130,C$161)","v":" 5 / 1"}]
[null,"No.","利用者氏名","性別","年齢","居住地","障害\n種別","障害\n支援\n区分","自己\n負担","利用開始時期\n（契約時期）","利用頻度",null,"2人\n介助","併用\nサービス","居宅介護計画の作成等　※新規・変更問わず直近のもの"]
[null,null,null,null,null,null,null,null,null,null,"身体介護","家事援助",null,null,"アセスメントの\n実　　施　　日","居宅介護計画の\n作　　成　　日","利用者の\n同 意 日"]
[null,"例","浜松　太郎","男",44,"中区","知的",3,"○","半年～1年以内","週2回","週4回","○","生活介護","2023-04-01","2023-04-10","2023-04-12",null,null,null,null,null,null,null,null,null,null,null,null,null,"半年以内"]
[null,{"$f":"B123+1","v":101},null,null,null,null,null,null,null,null,null,null,null,null,null,null,null,null,null,null,null,null,null,null,null,null,null,null,null,null,"半年～1年以内"]
[null,{"$f":"B130+1","v":102},null,null,null,null,null,null,null,null,null,null,null,null,null,null,null,null,null,null,null,null,null,null,null,null,null,null,null,null,"1年～3年以内"]
[null,{"$f":"B131+1","v":103},null,null,null,null,null,null,null,null,null,null,null,null,null,null,null,null,null,null,null,null,null,null,null,null,null,null,null,null,"3年以上"]
[null,104]
[null,105]
[null,106]
[null,107]
[null,108]
[null,109]
[null,110]
[null,111]
[null,112]
[null,113]
[null,114]
[null,115]
[null,116]
[null,117]
[null,118]
[null,119]
[null,120]
[null,121]
[null,122]
[null,123]
[null,124]
[null,125]
[]
[]
[null,"５－４　（同行援護）　居宅介護等計画の作成状況・支給決定内容等",null,null,null,null,null,null,null,null,null,null,null,null,null,null,{"$f":"\" 6 / \"&COUNTA(C$5,C$37,C$68,C$99,C$130,C$161)","v":" 6 / 1"}]
[null,"No.","利用者氏名","性別","年齢","居住地","障害\n種別","障害\n支援\n区分","自己\n負担","利用開始時期\n（契約時期）","利用頻度",null,"2人\n介助","併用\nサービス","居宅介護計画の作成等　※新規・変更問わず直近のもの"]
[null,null,null,null,null,null,null,null,null,null,"身体介護","家事援助",null,null,"アセスメントの\n実　　施　　日","居宅介護計画の\n作　　成　　日","利用者の\n同 意 日"]
[null,"例","浜松　太郎","男",44,"中区","知的",3,"○","半年～1年以内","週2回","週4回","○","生活介護","2023-04-01","2023-04-10","2023-04-12",null,null,null,null,null,null,null,null,null,null,null,null,null,"半年以内"]
[null,{"$f":"B154+1","v":126},null,null,null,null,null,null,null,null,null,null,null,null,null,null,null,null,null,null,null,null,null,null,null,null,null,null,null,null,"半年～1年以内"]
[null,{"$f":"B161+1","v":127},null,null,null,null,null,null,null,null,null,null,null,null,null,null,null,null,null,null,null,null,null,null,null,null,null,null,null,null,"1年～3年以内"]
[null,{"$f":"B162+1","v":128},null,null,null,null,null,null,null,null,null,null,null,null,null,null,null,null,null,null,null,null,null,null,null,null,null,null,null,null,"3年以上"]
[null,129]
[null,130]
[null,131]
[null,132]
[null,133]
[null,134]
[null,135]
[null,136]
[null,137]
[null,138]
[null,139]
[null,140]
[null,141]
[null,142]
[null,143]
[null,144]
[null,145]
[null,146]
[null,147]
[null,148]
[null,149]
[null,150]